Workbook

Sheet CoverSheet
A3: Financial Model
A4: Wellington Electricity Customised Price-Quality Path
A5: WACC change reconsideration model for March 2020 consultation paper
A16: 2020-03-01

Sheet Overview
B1: Overview of Wellington Electricity CPP reconsideration model, 2020
B2: This workbook has been prepared by the Commerce Commission in 2020 as part of the reconsideration of the Wellington Electricity CPP price path, which
B3: has been reconsidered as a result of a WACC change. It has been published in a consultation of the reconsideration draft decision in early March 2020.
B4: This workbook has been based on the Wellington Electricity CPP model prepared in 2017 and 2018. Amendments have been made to the 2018 model to
B5: calculate the recondidered price path.
B6: Changed input values are shown on the INPUTS sheet with this fill colour:
A10: The rows below are from the overview in the 2018 CPP model:
B11: Overview of Wellington Electricity CPP Model
B12: This workbook is released by the Commerce Commission as part of the Wellington Electricity CPP final decision in March 2018.
B13: This workbook is a copy of the financial model provided by Wellington Electricity as part of its CPP application, with modifications by the Commission.
B14: Those modifications comprise:
B15: • The addition of a number of rows of calculations below the thick horizontal line at Row 63 on the Sheet "MAR". This includes:
B16:  - projecting forward the 2015/16 MAR (unchanged from the draft decision) using the most recently available CPI data. This is a change from the
B17:  proposal, and is discussed starting at Paragraph 69 of our reasons paper.
B18:  - calculating the adjustment in allowable revenues arising from using most recent CPI data. These numbers are used in the definition of
B19:  ‘MARbt (DPP)’ in the IM variations deed.
B20:  - calculating the capex wash up amount for 2020/21
B21:  - tabulating the forecast values of commissioned assets for the determination schedule for both business as usual and for resilience expenditure
B22:  - calculating the revenue at risk with respect to the completion of resilience expenditure. This is required as part of the resilience quality incentive
B23:  and is discussed in our reasons paper starting at Paragraph 99.
B24: • Changes to the formulas in Row 49 on the BBARx sheet. These previously referred to Row 55 on the MAR sheet, and now refer to Row 73 on the MAR
B25: sheet. This results in the DPP component of the total BBAR to be the allowable revenue projected forward using actual CPI rather than forecast CPI.
B26: • The addition of the sheet "CPI". This calculates the change in CPI time series used to project forward the MAR values from the 2020/21 MAR, using the most
B27: available CPI data. The output from this sheet is used only in the additional rows on the MAR sheet.
B28: • A change to cell D12 on the MARx sheet. This cell contained a constant that was changed in the goal seek operation provided by a VBA macro. It has been
B29: replaced by a formula which performs the same function and removes the risk of the goal seek operation not being run before data is extracted. Note that
B30: cell D43 provides a check that the formula method gives a correct result.
B31: • Changes to this "Overview" sheet. The rows above the thick horizontal line below have been added by the Commission. All the rows below that line are as
B32: provided by Wellington Electricity in its application. The reference in Wellington's overview (At Row 27) to the "approved maximum allowable revenue" will
B33: now refer to the 2015/16 MAR rolled forward using the most recent CPI data, rather than by the CPI forecast at the time the DPP was determined.
B35: The description below was provided by Wellington Electricity and has been included for reasons of completeness. It does not take account
B36: of the subsequent modifications to the model made by the Commission.
B38: Overview
B40: Following the Kaikoura earthquake in November 2016 the Government asked key infrastructure providers in the Wellington region what could be done to improve readiness to respond to a major earthquake event. Wellington Electricity Lines Limited (Wellington Electricity or WE) has undertaken work to identify a programme of prudent short-term options aimed at improving the network’s readiness to respond to a major earthquake event. Funding those options, which constitute the earthquake readiness expenditure, is the purpose of the proposed ‘streamlined’ CPP application.
B42: The proposed streamlined CPP will involve additional expenditure of $32.6 million (capex and opex) over the three years to enhance Wellington Electricity’s readiness to respond in the event of a major earthquake (earthquake readiness expenditure).
B44: The purpose of this workbook (the Model) is to calculate Wellington Electricity's proposed maximum allowable revenue (MAR) for Regulatory Year (RY)19 - RY21.
B46: For the first two regulatory years of the CPP (RY19 and RY20) the building block costs used to set the CPP MAR will comprise: - the approved maximum allowable revenue (MAR) in the current default price-quality path (DPP) determination as applicable to Wellington Electricity (DPP MAR); plus - the building block costs of the earthquake readiness expenditure (CPP BBAR) relevant to each year. For the third regulatory year of the CPP (RY21) the building block costs used to set the CPP MAR allowed revenues will comprise: - a roll forward of the building block values from the current DPP period using projected RY21 business as usual capital and operating expenditure; plus - the relevant CPP BBAR costs. The form of control will be by way of a revenue cap (consistent with the CPP IMs). This requires the determination of Wellington Electricity's MAR in each year of the CPP, using a smoothing process.
B48: Figure 1 provides an illustrative overview of the approach to calculating MAR.
B50: Figure 1: Streamline CPP Revenue Path Approach
B74: Structure
B76: Figure 2 provides an illustrative overview of the structure of the Model.
B78: Figure 2: Model structure
B115: Calculations
B117: As illustrated above, the key calculations in the Model are separated into three sections:
B119: 1. DPP Model
B120: The DPP Model is used to calculate the DPP BBAR for RY21. The RY19 and RY20 DPP MAR are also taken from the DPP Model - these are unchanged from the Commission's 2014 determination. The DPP Model is based on the final 2015 DPP financial model for electricity distribution 2015-2020 for Wellington Electricity, rolled forward to RY21.
B122: 2. Tax & RAB roll forward
B123: The tax and RAB roll forward provides the detailed RAB and tax asset base roll forwards for the CPP readiness expenditure. The outputs from these calculations are used as inputs in the CPP modelling. - The RAB roll forward is consistent with the RAB roll forward in the 2013 CPP model. - The tax asset base roll forward is consistent with current tax rules IM 5.3.20 (3).
B125: 3. CPP Model
B126: The CPP Model is used to calculate the CPP readiness expenditure BBAR and the CPP MAR. The CPP Model is based on the final model for Orion's customised price-quality path for 2014-2019, updated to reflect the three year CPP period and changes to the IMs since 2013. A section has also been added to the 'BBARx' sheet which combines the outputs from the DPP Model with the CPP readiness expenditure BBAR.
B128: Table 1 outlines where the calculations for each component in Figure 1 are within the Model.
B130: Table 1: Calculation directory
B132: Component | C132: Relevant section | D132: Comment
B133: DPP BBAR RY19 and RY20 | C133: DPP Model | D133: Unchanged from 2015 DPP financial model for Wellington Electricity
B134: DPP MAR Increment RY19 & RY20 | C134: DPP Model | D134: Unchanged from 2015 DPP financial model for Wellington Electricity
B135: DPP BBAR (rolled forward) RY21 | C135: DPP Model | D135: Consistent with 2015 DPP financial model
B136: CPP BBAR Readiness Expenditure | C136: CPP Model | D136: Consistent with 2013 CPP model, updated for the following IM amendments: - excluded other regulated income IM 5.3.2 (1) - updated notional deductible interest formula IM 5.3.16 (2).
B137: CPP MAR | C137: CPP Model | D137: Consistent with 2013 CPP model, updated for the following IM amendment: - removed change in quantities as not required for a revenue cap IM 5.3.4 (6).
B140: Inputs
B142: Input model | C142: Description
B143: Supporting Model - Other regulated income and disposed assets | C143: Other regulated income and disposals for RY21 are sourced from the 2015 DPP model ‘Other-regulated-income-and-disposed-assets-model-EDB-DPP-2015-2020.xlsx' published on 28 November 2014.
B144: Supporting Model - AMP 2017 schedules | C144: Source of BAU commissioned assets and operating expenditure for RY21.
B145: Supporting Model - CPI projections | C145: Inflation for RY19 - RY21 and revaluations rate for RY21 are sourced from the 2015 DPP model ‘CPI-projections-model-EDB-DPP-2015-2020.xlsx' published on 28 November 2014.
B146: Supporting Model - CPP readiness capex and opex | C146: Source of earthquake readiness expenditure (opex and capex), earthquake readiness tax asset values, and asset life and DV rates.
B148: Definitions
B150: Term | C150: Definition
B151: 2015 DPP financial model | C151: Refers to the Commerce Commission's final financial model for the DPP for electricity distribution 2015-2020. Titled "Financial-model-EDB-DPP-2015-2020". Available at "http://www.comcom.govt.nz/regulated-industries/electricity/electricity-default-price-quality-path/default-price-quality-path-from-2015/"
B152: 2013 CPP model | C152: Refers to the Commerce Commission's final model for Orion's CPP for 2014-2019. Titled "Orion Customised Price-Quality Path Model 29 November 2013". Available at "http://www.comcom.govt.nz/regulated-industries/electricity/cpp/cpp-proposals-and-decisions/orions-2014-2019-cpp/orion-customised-price-quality-path-final-decision/"
B153: IM variation proposal | C153: Refers to proposed IM variations set out in section 2.4 of Regulatory Compliance Schedules of the CPP Proposal.
B155: Shading
B157: Colour | C157: Interpretation
C158: Identifies cells where calculations have been edited or added
C159: Identifies output that is used elsewhere in the workbook

Sheet CPP Model >
B2: This sheet has been deliberately left blank.

Sheet OUTPUTS
A1: WELLINGTON ELECTRICITY CPP OUTPUTS MODULE
D3: CPP Regulatory Period
A4: Ref. | B4: Output Name | C4: Discrete Output | D4: =INPUTS!D4 -> 2019 | E4: =INPUTS!E4 -> 2020 | F4: =INPUTS!F4 -> 2021 | G4: Description | I4: Logic explanation
A5: OUT1 | B5: CPP regulatory period | D5: =INPUTS!D4 -> 2019 | E5: =INPUTS!E4 -> 2020 | F5: =INPUTS!F4 -> 2021 | G5: The period of continuous disclosure years in respect of which the customised price-quality path applies, and which follows the assessment period. | I5: No change in logic from 2013 CPP model.
A7: OUT2 | B7: Allowed Controllable Opex | D7: =INPUTS!D7 -> 0 | E7: =INPUTS!E7 -> 0 | F7: =INPUTS!F7 -> 0 | G7: A series of values ($000) for the CPP regulatory period where a single value for a disclosure year represents the allowance for operating expenditure for that year in categories specified by the Commission as controllable by the supplier. | I7: Not required - as the CPP commences after 27 November 2014 as per IM 3.3.15.
A9: OUT3 | B9: Building Blocks Allowable Revenue Before Tax | D9: =BBARx!D61 -> 103122.1138 | E9: =BBARx!E61 -> 106046.7536 | F9: =BBARx!F61 -> 95467.28521 | G9: A series of values ($000) for the next period where a single value for a disclosure year represents the revenue required to be generated by a supplier in that year in compensate it for its economic costs for that year expressed in nominal terms and excluding claw-back or pass through or recoverable costs. | I9: Updated to reflect total BBAR before tax consistent with IM variation proposal.
A11: OUT4 | B11: Building Blocks Allowable Revenue After Tax | D11: =BBARx!D67 -> 93700.66989 | E11: =BBARx!E67 -> 96060.28278 | F11: =BBARx!F67 -> 87567.23618 | G11: A series of values ($000) for the next period where a single value for a disclosure year represents the Building Blocks Allowable Revenue Before Tax less the forecast regulatory tax allowance for that year. | I11: Updated to reflect total BBAR after tax consistent with IM variation proposal.
A13: OUT5 | B13: Maximum Allowable Revenue Before Tax | D13: =MARx_!C17 -> 105206 | E13: =MARx_!D17 -> 107383 | F13: =MARx_!E17 -> 91696.52686 | G13: A series of values ($000) which determine the revenue path for a supplier for the CPP regulatory period whereby a single value for a disclosure year represents the maximum allowable revenue in nominal terms that the supplier may recover from customers through prices for that year allowing for claw-back amounts, and net of pass through costs and recoverable costs. | I13: No change in logic from 2013 CPP model.
A14: =IF(ABS(ResultCell)>0.00000001,"Present value equality requirement NOT met, run macro on MARx","Present value equality requirement met") -> Present value equality requirement met
A15: OUT6 | B15: Maximum Allowable Revenue After Tax | D15: =MARx_!C19 -> 95784.55609 | E15: =MARx_!D19 -> 97396.52919 | F15: =MARx_!E19 -> 83796.47784 | G15: A series of values ($000) for the CPP regulatory period where a single value for a disclosure year represents the maximum allowable revenue that the supplier may recover through prices for that year, less a forecast amount of tax. | I15: No change in logic from 2013 CPP model.
A17: OUT7 | B17: ‘X’ factor | C17: =INPUTS!C9 -> 0 | G17: A single value (percentage 3 d.p.) representing the rate of change allowed for the maximum allowable revenue path where the path is expressed in ‘CPI-X’ terms. | I17: No change in logic from 2013 CPP model.
A19: OUT8 | B19: Pass-Through Costs | D19: =INPUTS!D11 -> 0 | E19: =INPUTS!E11 -> 0 | F19: =INPUTS!F11 -> 0 | G19: Future uncontrollable costs of the supplier which are to be treated as pass-through costs in each year of the CPP regulatory period in addition to those rates or levies already specified in cl. 3.1.2 of the EDB input methodologies. | I19: Set to zero as none proposed.
A21: OUT9 | B21: Recoverable Costs | D21: =INPUTS!D13 -> 0 | E21: =INPUTS!E13 -> 0 | F21: =INPUTS!F13 -> 0 | G21: A series of values ($000) which are the nominal amounts of verifier fees, auditor’s costs or engineer fees associated with the CPP process that are treated as recoverable costs for each of the disclosure years of the CPP regulatory period. | I21: Set to zero. Final amounts to be determined, post application.
A24: The following calculation only has validity when the scenario '2018 data' is shown. See Scenario Manager or macro buttons on the 'Reconcile' sheet.
B26: 2021 MAR before tax as calculated by the 2018 model | C26: =INPUTS!F154 -> 109531
C27: =F13 -> 91696.52686
B28: =B13 -> Maximum Allowable Revenue Before Tax | C28: =C26-C27 -> 17834.47314 | D28: This difference should be close to nil when the '2018 data' scenario is shown.
B29: Difference

Sheet MARx_
A1: Maximum Allowable Revenue (MAR) Module | F1: This sheet has been entirely re-written from the version in the 2018 CPP financial model
A2: This sheet applies the convention of each precedent cell to a
A3: formula cell being either to the left or above the formula cell. | D3: CPP Regulatory Period
A4: It is different from other sheets in this workbook in this respect. | B4: Years ending: | C4: =INPUTS!D4 -> 2019 | D4: =INPUTS!E4 -> 2020 | E4: =INPUTS!F4 -> 2021 | F4: The vertical brown line separates the high WACC area from the low WACC area.
A5: Present value factors etc
A6: WACC up until 2020 | B6: =INPUTS!E15 -> 0.0719
A7: WACC for 2021 | B7: =INPUTS!F15 -> 0.0457
A8: TFrev | C8: =INPUTS!D29 -> 1.028553621 | D8: =INPUTS!E29 -> 1.028553621 | E8: =INPUTS!F29 -> 1.018284618
A9: Number of years used to discount to present value at earlier WACC | C9: 1 | D9: 2 | E9: 2
A10: Number of years used to discount to present value at later WACC | C10: 0 | D10: 0 | E10: 1
A11: Present value (PV) factor for each year for both BBAR and MAR (PV expressed in 31-3-18 terms, source revenue in revenue date terms) | C11: =C8/((1+$B$7)^C$10*(1+$B$6)^C9) -> 0.9595611722 | D11: =D8/((1+$B$7)^D$10*(1+$B$6)^D9) -> 0.895196541 | E11: =E8/((1+$B$7)^E$10*(1+$B$6)^E9) -> 0.8475269826
A12: Price setting
A13: MAR before tax, revenue date terms, 2021 value by goal seek macro | C13: =INPUTS!D154 -> 105206 | D13: =INPUTS!E154 -> 107383 | E13: 91696.52686
A14: Check that PV(MAR after Tax) = PV(MAR after tax)
A15: BBAR after tax in revenue date terms | C15: =BBARx!D67 -> 93700.66989 | D15: =BBARx!E67 -> 96060.28278 | E15: =BBARx!F67 -> 87567.23618
A16: Total PV BBAR after tax for 2019 to 2023 as at 31-3-2019 | B16: =SUMPRODUCT(C15:E15,C11:E11) -> 250119.953
A17: MAR before tax in revenue date terms | C17: =C13 -> 105206 | D17: =D13 -> 107383 | E17: =E13 -> 91696.52686
A18: less Forecast regulatory tax allowance | C18: =TAXx!D12+BBAR!I44 -> 9421.443912 | D18: =TAXx!E12+BBAR!J44 -> 9986.470812 | E18: =TAXx!F12+BBAR!K44 -> 7900.049024
A19: MAR after tax in revenue date terms | C19: =(C17-C18) -> 95784.55609 | D19: =(D17-D18) -> 97396.52919 | E19: =(E17-E18) -> 83796.47784
A20: Total PV MAR after tax for 2019 to 2023 as at 31-3-2019 | B20: =SUMPRODUCT(C19:E19,C11:E11) -> 250119.953
A21: PV(MAR after Tax) - PV(BBAR after tax), should = 0 | B21: =B16-B20 -> 0 | C21: =IF(ABS(ResultCell)>0.00000001,"Present value equality requirement NOT met, run macro","Present value equality requirement met") -> Present value equality requirement met
A23: MAR after tax in revenue date terms | C23: =C13-C18 -> 95784.55609 | D23: =D13-D18 -> 97396.52919 | E23: =E13-E18 -> 83796.47784

Sheet BBARx
A1: BUILDING BLOCKS ALLOWABLE REVENUE (BBAR) MODULE | D1: Cells with this fill colour apply equally to the 2018 model and the reconsideration model. They do not refer to
D2: amendments made to produce the reconsideration model
D3: CPP Regulatory Period
D4: =INPUTS!D4 -> 2019 | E4: =INPUTS!E4 -> 2020 | F4: =INPUTS!F4 -> 2021 | G4: Additional Notes | H4: Input reference | I4: Logic explanation
G5: References to 'deed' in this column are references to the IM variation Deed in Schedule 11 of the Wellington CPP determination.
A6: Building Blocks Allowable Revenue Before Tax (BBAR Before Tax)
A8: Calculation A
A9: Regulatory investment value x Cost of capital | D9: =D45*INPUTS!D15 -> 0 | E9: =E45*INPUTS!E15 -> 598.1549199 | F9: =F45*INPUTS!F15 -> 881.5611748 | G9: Made formulas dependent on INPUTS!D15:F15 rather than INPUTS!C15 | H9: BBAR, INPUT6 | CALC | I9: No change in logic from 2013 CPP model. Consistent with 5.3.2 (1).
A10: add (Total value of commissioned assets x (TFVCA - 1)) | D10: =RABx!D14*(RABx!D32-1) -> 145.6679656 | E10: =RABx!E14*(RABx!E32-1) -> 195.1631933 | F10: =RABx!F14*(RABx!F32-1) -> 133.4828559 | H10: RAB | CALC | I10: No change in logic from 2013 CPP model. Consistent with 5.3.2 (1).
A11: add (Term credit spread differential allowance x TF) | D11: =INPUTS!D25*INPUTS!D27 -> 0 | E11: =INPUTS!E25*INPUTS!E27 -> 0 | F11: =INPUTS!F25*INPUTS!F27 -> 0 | H11: INPUT10, INPUT11 | CALC | I11: No change in logic from 2013 CPP model. Consistent with 5.3.2 (1).
A12: less Total revaluation | D12: =RABx!D13 -> 0 | E12: =RABx!E13 -> 171.0144658 | F12: =RABx!F13 -> 368.676552 | H12: RAB | I12: No change in logic from 2013 CPP model. Consistent with 5.3.2 (1).
D13: =D9+D10+D11-D12 -> 145.6679656 | E13: 622.3036474 | F13: 646.3674787 | H13: CALC | I13: No change in logic from 2013 CPP model. Consistent with 5.3.2 (1).
A14: divide by TFrev - Corporate tax rate x TF | D14: =INPUTS!D29-TAXx!D75*INPUTS!D27 -> 0.7386899018 | E14: =INPUTS!E29-TAXx!E75*INPUTS!E27 -> 0.7386899018 | F14: =INPUTS!F29-TAXx!F75*INPUTS!F27 -> 0.7319756181 | H14: INPUT12, TAX, INPUT11 | CALC | I14: No change in logic from 2013 CPP model. Consistent with 5.3.2 (1).
A15: Subtotal A | D15: =D13/D14 -> 197.1977216 | E15: 842.4423373 | F15: 883.0450944 | H15: CALC | I15: No change in logic from 2013 CPP model. Consistent with 5.3.2 (1).
G16: Rows 8 to 32 reflect the amendments to IM 5.3.2(1)
A17: Calculation B | G17: made by Clause 16 of the deed. The amendments
A18: add Total depreciation x (1 - Corporate tax rate x TF) | D18: =RABx!D11*(1-TAXx!D75*INPUTS!D27) -> 0 | E18: =RABx!E11*(1-TAXx!E75*INPUTS!E27) -> 164.9200422 | F18: =RABx!F11*(1-TAXx!F75*INPUTS!F27) -> 444.0258727 | G18: are that rather than IM 5.3.2(1) defining 'building | H18: RAB, TAX, INPUT11 | CALC | I18: No change in logic from 2013 CPP model. Consistent with 5.3.2 (1).
A19: add Forecast operating expenditure x TF x (1 - Corporate tax rate) | D19: =INPUTS!D31*INPUTS!D27*(1-TAXx!D75) -> 169.8255322 | E19: =INPUTS!E31*INPUTS!E27*(1-TAXx!E75) -> 294.3545815 | F19: =INPUTS!F31*INPUTS!F27*(1-TAXx!F75) -> 445.4227735 | G19: blocks allowable revenue before tax', it defines | H19: INPUT13, TAX, INPUT11 | CALC | I19: No change in logic from 2013 CPP model. Consistent with 5.3.2 (1).
A20: less Other regulated income x TF x (1 - Corporate tax rate) | G20: 'BBARbt(readiness)'. | I20: Excluded. Consistent with IM amendments to IM 5.3.2 (1).
A21: add (Closing deferred tax - Opening deferred tax) x (TF - 1) | D21: =(DTAXx!D23-DTAXx!D7)*(INPUTS!D27-1) -> 0 | E21: =(DTAXx!E23-DTAXx!E7)*(INPUTS!E27-1) -> -4.010664583 | F21: =(DTAXx!F23-DTAXx!F7)*(INPUTS!F27-1) -> -8.440428484 | G21: The amendments add the following to IM 5.3.2(1): | H21: DTAX, DTAX, INPUT11 | CALC | I21: No change in logic from 2013 CPP model. Consistent with 5.3.2 (1).
A22: Add | G22: "where the values of each term specified in this
A23: Permanent differences | D23: =TAXx!D41 -> 0 | E23: =TAXx!E41 -> 0 | F23: =TAXx!F41 -> 0 | G23: formula, and the terms used to calculate those | H23: TAX | I23: No change in logic from 2013 CPP model. Consistent with 5.3.2 (1).
A24: add Regulatory tax adjustments | D24: =TAXx!D64 -> -54.1075092 | E24: =TAXx!E64 -> -288.9222572 | F24: =TAXx!F64 -> -276.4347861 | G24: values, only reflect earthquake readiness | H24: TAX | I24: No change in logic from 2013 CPP model. Consistent with 5.3.2 (1).
A25: less Utilised tax losses | D25: =TAXx!D31 -> 0 | E25: =TAXx!E31 -> 0 | F25: =TAXx!F31 -> 0 | G25: expenditure incurred during the CPP regulatory | H25: TAX | I25: No change in logic from 2013 CPP model. Consistent with 5.3.2 (1).
D26: =D23+D24-D25 -> -54.1075092 | E26: -288.9222572 | F26: -276.4347861 | G26: period." | H26: CALC | I26: No change in logic from 2013 CPP model. Consistent with 5.3.2 (1).
A27: multiply by (Corporate tax rate x TF) | D27: =TAXx!D75*INPUTS!D27 -> 0.2898637187 | E27: =TAXx!E75*INPUTS!E27 -> 0.2898637187 | F27: =TAXx!F75*INPUTS!F27 -> 0.2863090001 | H27: TAX, INPUT11 | CALC | I27: No change in logic from 2013 CPP model. Consistent with 5.3.2 (1).
D28: =D26*D27 -> -15.68380383 | E28: -83.74807991 | F28: -79.1457672 | H28: CALC | I28: No change in logic from 2013 CPP model. Consistent with 5.3.2 (1).
A29: Subtotal | D29: =D28+D18+D19+D21 -> 154.1417283 | E29: =E28+E18+E19+E21 -> 371.5158791 | F29: 801.8624505 | H29: CALC | I29: Updated formula to exclude other regulated income. Consistent with IM amendments to IM 5.3.2 (1).
A30: divide by (TFrev - Corporate tax rate x TF) | D30: =INPUTS!D29-TAXx!D75*INPUTS!D27 -> 0.7386899018 | E30: =INPUTS!E29-TAXx!E75*INPUTS!E27 -> 0.7386899018 | F30: =INPUTS!F29-TAXx!F75*INPUTS!F27 -> 0.7319756181 | H30: INPUT12, TAX, INPUT11 | CALC | I30: No change in logic from 2013 CPP model. Consistent with 5.3.2 (1).
A31: Subtotal B | D31: =D29/D30 -> 208.6690612 | E31: 502.9388898 | F31: 1095.476995 | H31: CALC | I31: No change in logic from 2013 CPP model. Consistent with 5.3.2 (1).
A33: BBAR before tax (A+B) | D33: =D31+D15 -> 405.8667828 | E33: 1345.381227 | F33: =F31+F15 -> 1978.522089 | G33: BBARbt(readiness) per deed clause 16 | H33: CALC | I33: No change in logic from 2013 CPP model. Consistent with 5.3.2 (1).
A35: Building Blocks Allowable Revenue After Tax (BBAR After Tax)
A37: BBAR before tax | D37: =D33 -> 405.8667828 | E37: 1345.381227 | F37: 1978.522089 | H37: BBAR | I37: No change in logic from 2013 CPP model.
A38: less Forecast regulatory tax allowance | D38: =TAXx!D12 -> 34.69670803 | E38: =TAXx!E12 -> 120.2061972 | F38: =TAXx!F12 -> 132.9783054 | H38: TAX | I38: No change in logic from 2013 CPP model.
A39: BBAR after tax | D39: =D37-D38 -> 371.1700748 | E39: 1225.17503 | F39: 1845.543784 | H39: CALC | I39: No change in logic from 2013 CPP model. Consistent with IM 5.3.3.
A41: Regulatory Investment Value
A43: Total opening RAB value | D43: =RABx!D10 -> 0 | E43: =RABx!E10 -> 8319.261752 | F43: =RABx!F10 -> 19404.02905 | H43: RAB | I43: No change in logic from 2013 CPP model.
A44: add Opening deferred tax | D44: =DTAXx!D7 -> 0 | E44: =DTAXx!E7 -> 0 | F44: =DTAXx!F7 -> -113.8501728 | H44: DTAX | I44: No change in logic from 2013 CPP model.
A45: Regulatory investment value | D45: =D43+D44 -> 0 | E45: 8319.261752 | F45: 19290.17888 | H45: CALC | I45: No change in logic from 2013 CPP model. Consistent with 5.3.2 (2).
A47: BBAR After Tax, DPP Model
A49: MAR before tax, revenue date terms | D49: =MAR!G73 -> 102716.247 | E49: =MAR!H73 -> 104701.3724 | G49: MARbt(DPP) per IM5.3.2(7) per Deed clause 18 | H49: DPP MAR | I49: 2019 & 2020 DPP MAR for Wellington Electricity from the DPP financial model.
A50: FY21 BBAR before tax, revenue date terms | F50: =BBAR!K59 -> 93488.76312 | G50: BBARbt(DPP) per IM5.3.2(8) per Deed clause 19 | H50: DPP BBAR | I50: 2021 BBAR for Wellington Electricity from the DPP financial model.
A51: BBAR before tax, DPP Model | D51: =D49+D50 -> 102716.247 | E51: =E49+E50 -> 104701.3724 | F51: 93488.76312 | H51: CALC | I51: BBAR before tax, revenue date terms, from the DPP financial model consistent with IM variation proposal.
A53: BBAR before tax, DPP Model | D53: =D51 -> 102716.247 | E53: =E51 -> 104701.3724 | F53: 93488.76312 | H53: BBAR | I53: BBAR before tax, revenue date terms, from the DPP financial model.
A54: less Forecast regulatory tax allowance | D54: =BBAR!I44 -> 9386.747204 | E54: =BBAR!J44 -> 9866.264615 | F54: =BBAR!K44 -> 7767.070718 | H54: DPP BBAR | I54: Forecast regulatory tax allowance from the DPP financial model.
A55: BBAR after tax, DPP Model | D55: =D53-D54 -> 93329.49981 | E55: =E53-E54 -> 94835.10775 | F55: 85721.6924 | H55: CALC | I55: BBAR after tax, revenue date terms, from DPP financial model.
A57: Building Blocks Allowable Revenue before Tax (BBAR Before Tax), Total
A59: BBAR before tax, 2013 CPP model | D59: =D33 -> 405.8667828 | E59: =E33 -> 1345.381227 | F59: 1978.522089 | H59: BBAR | I59: Calculation added consistent with IM variation proposal.
A60: BBAR before tax, DPP Model | D60: =D51 -> 102716.247 | E60: =E51 -> 104701.3724 | F60: 93488.76312 | H60: BBAR | I60: Calculation added consistent with IM variation proposal.
A61: BBAR before tax, Total | D61: =D59+D60 -> 103122.1138 | E61: =E59+E60 -> 106046.7536 | F61: =F59+F60 -> 95467.28521 | G61: BBAR before tax per IM Clause 1.1.4(2) per Deed clause 2.3 | H61: CALC | I61: Calculation added consistent with IM variation proposal.
A63: Building Blocks Allowable Revenue After Tax (BBAR After Tax), Total
A65: BBAR after tax, 2013 CPP model | D65: =D39 -> 371.1700748 | E65: =E39 -> 1225.17503 | F65: =F39 -> 1845.543784 | H65: BBAR | I65: Calculation added consistent with IM variation proposal.
A66: BBAR after tax, DPP Model | D66: =D55 -> 93329.49981 | E66: =E55 -> 94835.10775 | F66: 85721.6924 | H66: BBAR | I66: Calculation added consistent with IM variation proposal.
A67: BBAR after tax, Total | D67: =D65+D66 -> 93700.66989 | E67: =E65+E66 -> 96060.28278 | F67: 87567.23618 | H67: CALC | I67: Calculation added consistent with IM variation proposal.

Sheet TAXx
A1: REGULATORY TAX MODULE | D1: There are no differences on this sheet between the 2018 model and this reconsideration model.
D3: CPP Regulatory Period
D4: =INPUTS!D4 -> 2019 | E4: =INPUTS!E4 -> 2020 | F4: =INPUTS!F4 -> 2021 | G4: Input reference | H4: Logic explanation
A6: Forecast regulatory tax allowance
A8: Regulatory taxable income | D8: =D19 -> 123.9168144 | E8: 429.3078473 | F8: 474.9225194 | G8: TAX | H8: No change in logic from 2013 CPP model.
A9: less Utilised tax losses | D9: =D33 -> 0 | E9: 0 | F9: 0 | G9: TAX | H9: No change in logic from 2013 CPP model.
A10: Adjusted regulatory taxable income (nil if <0) | D10: =MAX(D8-D9,0) -> 123.9168144 | E10: 429.3078473 | F10: 474.9225194 | G10: CALC | H10: No change in logic from 2013 CPP model. Consistent with IM 5.3.13 (1).
A11: multiply by Corporate tax rate | D11: =D75 -> 0.28 | E11: 0.28 | F11: 0.28 | G11: TAX | H11: No change in logic from 2013 CPP model.
A12: Forecast regulatory tax allowance | D12: =D10*D11 -> 34.69670803 | E12: 120.2061972 | F12: 132.9783054 | G12: CALC | H12: No change in logic from 2013 CPP model. Consistent with IM 5.3.13 (1).
A14: Regulatory taxable income
A16: Regulatory profit/(loss) before tax | D16: =D27 -> 178.0243236 | E16: 718.2301045 | F16: 751.3573055 | G16: TAX | H16: No change in logic from 2013 CPP model.
A17: add permanent differences | D17: =D41 -> 0 | E17: 0 | F17: 0 | G17: TAX | H17: No change in logic from 2013 CPP model.
A18: add regulatory tax adjustments | D18: =D64 -> -54.1075092 | E18: -288.9222572 | F18: -276.4347861 | G18: TAX | H18: No change in logic from 2013 CPP model.
A19: Regulatory taxable income | D19: =SUM(D16:D18) -> 123.9168144 | E19: 429.3078473 | F19: 474.9225194 | G19: CALC | H19: No change in logic from 2013 CPP model. Consistent with IM 5.3.13 (3)
A21: Regulatory profit / (loss) before tax
A23: Building blocks allowable revenue before tax | D23: =BBARx!D33 -> 405.8667828 | E23: =BBARx!E33 -> 1345.381227 | F23: =BBARx!F33 -> 1978.522089 | G23: BBAR | H23: No change in logic from 2013 CPP model.
A24: add Other regulated income | H24: Excluded. Consistent with IM amendments and IM 5.3.13 (4).
A25: less Forecast operating expenditure | D25: =INPUTS!D31 -> 227.8424592 | E25: =INPUTS!E31 -> 394.91395 | F25: =INPUTS!F31 -> 605.0105565 | G25: INPUT13 | H25: No change in logic from 2013 CPP model.
A26: less Total depreciation | D26: =RABx!D11 -> 0 | E26: =RABx!E11 -> 232.2371727 | F26: =RABx!F11 -> 622.1542274 | G26: RAB | H26: No change in logic from 2013 CPP model.
A27: Regulatory profit/(loss) before tax | D27: =D23-D25-D26 -> 178.0243236 | E27: 718.2301045 | F27: 751.3573055 | G27: CALC | H27: Updated formula to exclude other regulated income. Consistent with IM 5.3.13 (4).
A29: Utilised tax losses
A31: Opening tax losses | D31: =IF(D4=INPUTS!$D$4,INPUTS!$D$37,C34) -> 0 | E31: =IF(E4=INPUTS!$D$4,INPUTS!$D$37,D34) -> 0 | F31: =IF(F4=INPUTS!$D$4,INPUTS!$D$37,E34) -> 0 | G31: INPUT16 | CALC | H31: RY19 linked to input sheet. No change in logic from 2013 CPP model. Consistent with 5.3.14 (3).
A32: add Regulatory taxable income losses | D32: =-MIN(D27,0) -> 0 | E32: =-MIN(E27,0) -> 0 | F32: 0 | G32: TAX | H32: No change in logic from 2013 CPP model.
A33: less Utilised tax losses | D33: =MIN(D31,MAX(D27,0)) -> 0 | E33: 0 | F33: 0 | G33: TAX | H33: No change in logic from 2013 CPP model. Consistent with 5.3.14 (1).
A34: Closing tax losses | D34: =D31+D32-D33 -> 0 | E34: 0 | F34: 0 | G34: CALC | H34: No change in logic from 2013 CPP model. Consistent with 5.3.14 (5).
A36: Permanent differences
A38: Positive permanent differences | D38: =INPUTS!D39 -> 0 | E38: =INPUTS!E39 -> 0 | F38: =INPUTS!F39 -> 0 | G38: INPUT17 | H38: No change in logic from 2013 CPP model.
A39: less Discretionary discounts and customer rebates | D39: =INPUTS!D41 -> 0 | E39: =INPUTS!E41 -> 0 | F39: =INPUTS!F41 -> 0 | G39: INPUT18 | H39: No change in logic from 2013 CPP model.
A40: less Negative permanent differences | D40: =INPUTS!D43 -> 0 | E40: =INPUTS!E43 -> 0 | F40: =INPUTS!F43 -> 0 | G40: INPUT19 | H40: No change in logic from 2013 CPP model.
A41: Permanent Differences | D41: =D38-D39-D40 -> 0 | E41: 0 | F41: 0 | G41: CALC | H41: No change in logic from 2013 CPP model. Consistent with IM 5.3.15 (1)
A43: Regulatory tax adjustments
A45: Amortisation of initial differences in asset values | D45: =D69 -> 0 | E45: 0 | F45: 0 | G45: TAX | H45: No change in logic from 2013 CPP model.
A46: add:
A47: Amortisation of revaluations
A48: Total depreciation | D48: =RABx!D11 -> 0 | E48: =RABx!E11 -> 232.2371727 | F48: =RABx!F11 -> 622.1542274 | G48: RAB | H48: No change in logic from 2013 CPP model.
A49: less Adjusted Depreciation | D49: =RABx!D21 -> 0 | E49: =RABx!E21 -> 232.2371727 | F49: =RABx!F21 -> 616.6709656 | G49: RAB | H49: No change in logic from 2013 CPP model.
A50: Amortisation of revaluations | D50: =D48-D49 -> 0 | E50: 0 | F50: 5.48326188 | G50: CALC | H50: No change in logic from 2013 CPP model. Consistent with IM 5.3.18.
A51: less:
A52: Notional deductible interest
A53: regulatory investment value | D53: =BBARx!D45 -> 0 | E53: =BBARx!E45 -> 8319.261752 | F53: =BBARx!F45 -> 19290.17888 | G53: BBAR | H53: No change in logic from 2013 CPP model.
A54: add RAB proportionate investment | D54: =RABx!D37 -> 2079.815438 | E54: =RABx!E37 -> 2786.497502 | F54: =RABx!F37 -> 2970.440319 | G54: RAB | H54: No change in logic from 2013 CPP model.
A55: Asset Base | D55: =D53+D54 -> 2079.815438 | E55: 11105.75925 | F55: 22260.6192 | G55: CALC | H55: No change in logic from 2013 CPP model.
A56: multiply by Company Debt leverage | D56: =INPUTS!$C$45 -> 0.44 | E56: =INPUTS!$C$45 -> 0.44 | F56: =INPUTS!$C$45 -> 0.44 | G56: INPUT20 | H56: No change in logic from 2013 CPP model.
A57: Proportion of Asset base funded by Debt | D57: =D55*D56 -> 915.1187927 | E57: 4886.534072 | F57: 9794.672448 | G57: CALC | H57: No change in logic from 2013 CPP model.
A58: multiply by cost of debt | D58: =INPUTS!D47 -> 0.0609 | E58: =INPUTS!E47 -> 0.0609 | F58: =INPUTS!F47 -> 0.0292 | G58: INPUT21 | H58: No change in logic from 2013 CPP model.
A59: Notional interest | D59: =D57*D58 -> 55.73073447 | E59: 297.589925 | F59: 286.0044355 | G59: CALC | H59: No change in logic from 2013 CPP model.
A60: add term credit spread differential | D60: =INPUTS!D25 -> 0 | E60: =INPUTS!E25 -> 0 | F60: =INPUTS!F25 -> 0 | G60: INPUT10 | H60: No change in logic from 2013 CPP model.
A61: divide by (1+ cost of debt)^(1/2) | D61: =(1+INPUTS!D47)^(1/2) -> 1.03 | E61: =(1+INPUTS!E47)^(1/2) -> 1.03 | F61: =(1+INPUTS!F47)^(1/2) -> 1.014494948 | H61: Added to reflect IM amendments. Consistent with IM 5.3.16 (2).
A62: Notional deductible interest | D62: =(D59+D60)/D61 -> 54.1075092 | E62: =(E59+E60)/E61 -> 288.9222572 | F62: 281.918048 | G62: CALC | H62: Updated to reflect IM amendments. Consistent with IM 5.3.16 (2).
A64: Regulatory tax adjustments | D64: =D45+D50-D62 -> -54.1075092 | E64: -288.9222572 | F64: -276.4347861 | H64: No change in logic from 2013 CPP model. Consistent with IM 5.3.16.
A66: Amortisation of initial differences in asset values
A68: Opening unamortised initial difference in asset values | D68: =IF(D4=INPUTS!$D$4,INPUTS!$D$49,C71) -> 0 | E68: =IF(E4=INPUTS!$D$4,INPUTS!$D$49,D71) -> 0 | F68: =IF(F4=INPUTS!$D$4,INPUTS!$D$49,E71) -> 0 | G68: INPUT22 | CALC | H68: RY19 linked to input sheet. Consistent with IM 5.3.17 (2).
A69: less Amortisation based on weighted average remaining useful life of relevant assets | D69: =IF(INPUTS!D53=0,0,D68/INPUTS!D53) -> 0 | E69: =IF(INPUTS!E53=0,0,E68/INPUTS!E53) -> 0 | F69: =IF(INPUTS!F53=0,0,F68/INPUTS!F53) -> 0 | G69: INPUT24 | CALC | H69: Formula updated to remove error when dividing by zero. Consistent with IM 5.3.17 (1)
A70: add Adjustment to opening unamortised initial differences in asset values for sold or acquired assets | D70: =INPUTS!D51 -> 0 | E70: =INPUTS!E51 -> 0 | F70: =INPUTS!F51 -> 0 | G70: INPUT23 | H70: No change in logic from 2013 CPP model. Consistent with 5.3.17 (6).
A71: Closing unamortised initial difference in asset values | D71: =D68-D69+D70 -> 0 | E71: 0 | F71: =F68-F69+F70 -> 0 | G71: CALC | H71: No change in logic from 2013 CPP model. Consistent with 5.3.17 (5).
A73: Corporate Tax Rate
A75: Corporate Tax Rate | D75: =INPUTS!D35 -> 0.28 | E75: =INPUTS!E35 -> 0.28 | F75: =INPUTS!F35 -> 0.28 | G75: INPUT15 | H75: No change in logic from 2013 CPP model.

Sheet DTAXx
A1: DEFERRED TAX MODULE | E1: There are no differences on this sheet between the 2018 model and this reconsideration model.
D3: CPP Regulatory Period
D4: =INPUTS!D4 -> 2019 | E4: =INPUTS!E4 -> 2020 | F4: =INPUTS!F4 -> 2021 | G4: Input reference | H4: Logic explanation
A7: Opening Deferred Tax | D7: =IF(D4=INPUTS!$D$4,INPUTS!$D$55,C23) -> 0 | E7: =IF(E4=INPUTS!$D$4,INPUTS!$D$55,D23) -> 0 | F7: =IF(F4=INPUTS!$D$4,INPUTS!$D$55,E23) -> -113.8501728 | G7: INPUT25 | CALC | H7: RY19 linked to input sheet. Consistent with IM 5.3.19.
A9: Less:
A10: tax effect of amortisation of initial difference in asset values | D10: =TAXx!D69*TAXx!D75 -> 0 | E10: =TAXx!E69*TAXx!E75 -> 0 | F10: =TAXx!F69*TAXx!F75 -> 0 | G10: TAX | CALC | H10: No change in logic from 2013 CPP model. No opening balance for earthquake readiness expenditure incurred during CPP period. Consistent with IM 5.3.17.
A12: Add:
A13: Tax Effect of Temporary Differences
A14: Adjusted Depreciation | D14: =RABx!D21*TAXx!D75 -> 0 | E14: =RABx!E21*TAXx!E75 -> 65.02640835 | F14: =RABx!F21*TAXx!F75 -> 172.6678704 | G14: RAB, TAX | CALC | H14: No change in logic from 2013 CPP model. Consistent with tax effect definition in IM 1.1.4.
A15: less Tax depreciation | D15: =INPUTS!D57*TAXx!D75 -> 0 | E15: =INPUTS!E57*TAXx!E75 -> 178.8765812 | F15: =INPUTS!F57*TAXx!F75 -> 547.2628826 | G15: INPUT26, TAX | CALC | H15: No change in logic from 2013 CPP model. Consistent with tax effect definition in IM 1.1.4.
A16: Tax effect of Depreciation temporary differences | D16: =D14-D15 -> 0 | E16: -113.8501728 | F16: -374.5950122 | G16: CALC | H16: No change in logic from 2013 CPP model.
A17: Tax effect of positive temporary differences | D17: =INPUTS!D59*TAXx!D75 -> 0 | E17: =INPUTS!E59*TAXx!E75 -> 0 | F17: =INPUTS!F59*TAXx!F75 -> 0 | G17: INPUT27, TAX | CALC | H17: No change in logic from 2013 CPP model. Consistent with tax effect definition in IM 1.1.4.
A18: less Tax effect of negative temporary differences | D18: =-INPUTS!D61*TAXx!D75 -> 0 | E18: =-INPUTS!E61*TAXx!E75 -> 0 | F18: =-INPUTS!F61*TAXx!F75 -> 0 | G18: INPUT28, TAX | CALC | H18: No change in logic from 2013 CPP model. Consistent with tax effect definition in IM 1.1.4.
A19: tax effect of temporary differences | D19: =SUM(D16:D18) -> 0 | E19: -113.8501728 | F19: -374.5950122 | G19: CALC | H19: No change in logic from 2013 CPP model.
A20: deferred tax balance relating to assets acquired in the disclosure year in question | D20: =INPUTS!D63 -> 0 | E20: =INPUTS!E63 -> 0 | F20: =INPUTS!F63 -> 0 | G20: INPUT29 | H20: No change in logic from 2013 CPP model.
A21: cost allocation adjustment | D21: =INPUTS!D65 -> 0 | E21: =INPUTS!E65 -> 0 | F21: =INPUTS!F65 -> 0 | G21: INPUT30 | H21: No change in logic from 2013 CPP model.
A23: Closing Deferred Tax | D23: =D7-D10+SUM(D19:D22) -> 0 | E23: =E7-E10+SUM(E19:E22) -> -113.8501728 | F23: -488.445185 | G23: CALC | H23: No change in logic from 2013 CPP model. Consistent with IM 5.3.19.

Sheet RABx
A1: REGULATORY ASSET BASE (RAB) MODULE | D1: There are no differences on this sheet between the 2018 model and this reconsideration model.
D3: CPP Regulatory Period | I3: Asset Category
D4: =INPUTS!D4 -> 2019 | E4: =INPUTS!E4 -> 2020 | F4: =INPUTS!F4 -> 2021 | G4: Additional Notes | H4: Input reference | I4: for formatting purposes | J4: Logic explanation
A6: RAB AGGREGATED INFORMATION
A8: Total Opening RAB value
A10: Opening RAB value | D10: =D44+D85+D126+D167+D208+D249+D290+D331+D372 -> 0 | E10: =E44+E85+E126+E167+E208+E249+E290+E331+E372 -> 8319.261752 | F10: 19404.02905 | H10: Σ(INPUT31) | CALC | J10: No change in logic from 2013 CPP model. Consistent with IM 5.3.6.
A11: less Depreciation | D11: =D64+D105+D146+D187+D228+D269+D310+D351+D392 -> 0 | E11: =E64+E105+E146+E187+E228+E269+E310+E351+E392 -> 232.2371727 | F11: 622.1542274 | H11: Σ(RAB) | J11: No change in logic from 2013 CPP model. Consistent with IM 5.3.6.
A12: less Disposals | D12: =D46+D87+D128+D169+D210+D251+D292+D333+D374 -> 0 | E12: =E46+E87+E128+E169+E210+E251+E292+E333+E374 -> 0 | F12: 0 | H12: Σ(INPUT32) | J12: No change in logic from 2013 CPP model. Consistent with IM 5.3.6.
A13: add Revaluation | D13: =D58+D99+D140+D181+D222+D263+D304+D345+D386 -> 0 | E13: =E58+E99+E140+E181+E222+E263+E304+E345+E386 -> 171.0144658 | F13: 368.676552 | H13: Σ(RAB) | J13: No change in logic from 2013 CPP model. Consistent with IM 5.3.6.
A14: add Total value of commissioned assets | D14: =D48+D89+D130+D171+D212+D253+D294+D335+D376 -> 8319.261752 | E14: =E48+E89+E130+E171+E212+E253+E294+E335+E376 -> 11145.99001 | F14: 11881.76128 | H14: Σ(INPUT33) | J14: No change in logic from 2013 CPP model. Consistent with IM 5.3.6.
A15: Closing RAB value | D15: =D10-D11-D12+D13+D14 -> 8319.261752 | E15: =E10-E11-E12+E13+E14 -> 19404.02905 | F15: 31032.31266 | H15: CALC | J15: No change in logic from 2013 CPP model. Consistent with IM 5.3.6.
A16: Warning: out of balance | D16: =D49+D90+D131+D172+D213+D254+D295+D336+D377-D15 -> 0 | E16: =E49+E90+E131+E172+E213+E254+E295+E336+E377-E15 -> 0 | F16: =F49+F90+F131+F172+F213+F254+F295+F336+F377-F15 -> 0 | J16: No change in logic from 2013 CPP model. Consistent with IM 5.3.6.
A18: RAB roll-forward without revaluations
A20: Opening RAB value without revaluations | D20: =D68+D109+D150+D191+D232+D273+D314+D355+D396 -> 0 | E20: =E68+E109+E150+E191+E232+E273+E314+E355+E396 -> 8319.261752 | F20: 19233.01459 | H20: Σ(INPUT37) | CALC | J20: No change in logic from 2013 CPP model. Consistent with adjusted depreciation definition in IM 1.1.4.
A21: less Adjusted depreciation | D21: =D78+D119+D160+D201+D242+D283+D324+D365+D406 -> 0 | E21: =E78+E119+E160+E201+E242+E283+E324+E365+E406 -> 232.2371727 | F21: 616.6709656 | H21: Σ(INPUT36) | CALC | J21: No change in logic from 2013 CPP model. Consistent with adjusted depreciation definition in IM 1.1.4.
A22: less Disposals without revaluations | D22: =D70+D111+D152+D193+D234+D275+D316+D357+D398 -> 0 | E22: =E70+E111+E152+E193+E234+E275+E316+E357+E398 -> 0 | F22: 0 | H22: Σ(INPUT32) | J22: No change in logic from 2013 CPP model. Consistent with adjusted depreciation definition in IM 1.1.4.
A23: add Total value of commissioned assets | D23: =D71+D112+D153+D194+D235+D276+D317+D358+D399 -> 8319.261752 | E23: =E71+E112+E153+E194+E235+E276+E317+E358+E399 -> 11145.99001 | F23: 11881.76128 | H23: Σ(RAB) | J23: No change in logic from 2013 CPP model. Consistent with adjusted depreciation definition in IM 1.1.4.
A24: Closing RAB value without revaluations | D24: =D20-D21-D22+D23 -> 8319.261752 | E24: =E20-E21-E22+E23 -> 19233.01459 | F24: 30498.1049 | H24: CALC | J24: No change in logic from 2013 CPP model. Consistent with adjusted depreciation definition in IM 1.1.4.
A25: Warning: out of balance | D25: =D72+D113+D154+D195+D236+D277+D318+D359+D400-D24 -> 0 | E25: =E72+E113+E154+E195+E236+E277+E318+E359+E400-E24 -> 0 | F25: =F72+F113+F154+F195+F236+F277+F318+F359+F400-F24 -> 0 | J25: No change in logic from 2013 CPP model. Consistent with adjusted depreciation definition in IM 1.1.4.
A27: TFVCA
A29: PVVCA | D29: =INPUTS!D100 -> 7897.126334 | E29: =INPUTS!E100 -> 10580.42094 | F29: =INPUTS!F100 -> 11490.14453 | H29: INPUT34 | J29: No change in logic from 2013 CPP model.
A30: multiply by (1 + Cost of capital) | D30: =1+INPUTS!D15 -> 1.0719 | E30: =1+INPUTS!E15 -> 1.0719 | F30: =1+INPUTS!F15 -> 1.0457 | G30: Made dependent on INPUTS!D15:F15. | H30: INPUT6 | CALC | J30: No change in logic from 2013 CPP model. Consistent with IM 5.3.2 (4)(c).
A31: divide by Total value of commissioned assets | D31: =D14 -> 8319.261752 | E31: 11145.99001 | F31: 11881.76128 | H31: Σ(INPUT33) | J31: No change in logic from 2013 CPP model. Consistent with IM 5.3.2 (4)(c).
A32: TFVCA | D32: =D29*D30/D31 -> 1.017509723 | E32: =E29*E30/E31 -> 1.017509723 | F32: 1.011234265 | H32: CALC | J32: No change in logic from 2013 CPP model. Consistent with IM 5.3.2 (4)(c).
A35: RAB proportionate investment
A37: RAB proportionate investment | D37: =INPUTS!D132 -> 2079.815438 | E37: =INPUTS!E132 -> 2786.497502 | F37: =INPUTS!F132 -> 2970.440319 | H37: INPUT38 | J37: No change in logic from 2013 CPP model.
A40: RAB BREAKDOWN BY ASSET CLASS | I40: Asset Category
I41: for formatting purposes
A42: Total Opening RAB value | I42: 1
I43: 1
A44: Opening RAB value | D44: =IF($I44>INPUTS!$C$69,0,IF(D$4=INPUTS!$D$4,INPUTS!$D$70,C49)) -> 0 | E44: =IF($I44>INPUTS!$C$69,0,IF(E$4=INPUTS!$D$4,INPUTS!$D$70,D49)) -> 8319.261752 | F44: =IF($I44>INPUTS!$C$69,0,IF(F$4=INPUTS!$D$4,INPUTS!$D$70,E49)) -> 19404.02905 | H44: INPUT31 | CALC | I44: 1 | J44: RY19 linked to input sheet. No change in logic from 2013 CPP model. Consistent with IM 5.3.6.
A45: less Depreciation | D45: =D64 -> 0 | E45: =E64 -> 232.2371727 | F45: 622.1542274 | H45: RAB | I45: 1 | J45: No change in logic from 2013 CPP model. Consistent with IM 5.3.6.
A46: less Disposals | D46: =IF($I46>INPUTS!$C$69,0,INPUTS!D$80) -> 0 | E46: =IF($I46>INPUTS!$C$69,0,INPUTS!E$80) -> 0 | F46: =IF($I46>INPUTS!$C$69,0,INPUTS!F$80) -> 0 | H46: INPUT32 | I46: 1 | J46: No change in logic from 2013 CPP model. Consistent with IM 5.3.6.
A47: add Revaluation | D47: =D58 -> 0 | E47: =E58 -> 171.0144658 | F47: 368.676552 | H47: RAB | I47: 1 | J47: No change in logic from 2013 CPP model. Consistent with IM 5.3.6.
A48: add Total value of commissioned assets | D48: =IF($I48>INPUTS!$C$69,0,INPUTS!D$90) -> 8319.261752 | E48: =IF($I48>INPUTS!$C$69,0,INPUTS!E$90) -> 11145.99001 | F48: =IF($I48>INPUTS!$C$69,0,INPUTS!F$90) -> 11881.76128 | H48: INPUT33 | I48: 1 | J48: No change in logic from 2013 CPP model. Consistent with IM 5.3.6.
A49: Closing RAB value | D49: =D44-D45-D46+D47+D48 -> 8319.261752 | E49: =E44-E45-E46+E47+E48 -> 19404.02905 | F49: 31032.31266 | I49: 1 | J49: No change in logic from 2013 CPP model. Consistent with IM 5.3.6.
I50: 1 | J50: No change in logic from 2013 CPP model. Consistent with IM 5.3.6.
A51: Total Revaluation | I51: 1
I52: 1
A53: Opening RAB value | D53: =D44 -> 0 | E53: =E44 -> 8319.261752 | F53: 19404.02905 | H53: RAB | I53: 1 | J53: No change in logic from 2013 CPP model. Consistent with IM 5.3.10.
A54: less Fully depreciated assets | D54: =IF($I54>INPUTS!$C$69,0,INPUTS!D$144) -> 0 | E54: =IF($I54>INPUTS!$C$69,0,INPUTS!E$144) -> 0 | F54: =IF($I54>INPUTS!$C$69,0,INPUTS!F$144) -> 0 | H54: INPUT40 | I54: 1 | J54: No change in logic from 2013 CPP model. Consistent with IM 5.3.10.
A55: less Disposals | D55: =IF($I55>INPUTS!$C$69,0,INPUTS!D$80) -> 0 | E55: =IF($I55>INPUTS!$C$69,0,INPUTS!E$80) -> 0 | F55: =IF($I55>INPUTS!$C$69,0,INPUTS!F$80) -> 0 | H55: INPUT32 | I55: 1 | J55: No change in logic from 2013 CPP model. Consistent with IM 5.3.10.
A56: Adjusted RAB value | D56: =D53-D54-D55 -> 0 | E56: =E53-E54-E55 -> 8319.261752 | F56: 19404.02905 | H56: CALC | I56: 1 | J56: No change in logic from 2013 CPP model. Consistent with IM 5.3.10.
A57: multiply by Revaluation rate | D57: =IF($I57>INPUTS!$C$69,0,INPUTS!D$102) -> 0.0211128946 | E57: =IF($I57>INPUTS!$C$69,0,INPUTS!E$102) -> 0.0205564473 | F57: =IF($I57>INPUTS!$C$69,0,INPUTS!F$102) -> 0.019 | H57: INPUT35 | I57: 1 | J57: No change in logic from 2013 CPP model. Consistent with IM 5.3.10.
A58: Total Revaluation | D58: =D56*D57 -> 0 | E58: =E56*E57 -> 171.0144658 | F58: 368.676552 | H58: CALC | RAB | I58: 1 | J58: No change in logic from 2013 CPP model. Consistent with IM 5.3.10.
I59: 1
A60: Total depreciation | I60: 1
I61: 1
A62: Opening RAB value | D62: =D44 -> 0 | E62: =E44 -> 8319.261752 | F62: 19404.02905 | H62: RAB | I62: 1 | J62: No change in logic from 2013 CPP model. Consistent with 5.3.7 (2)(b).
A63: multiply by (1 / Remaining asset life) | D63: =IF($I63>INPUTS!$C$69,0,IFERROR(1/INPUTS!D$112,0)) -> 0 | E63: =IF($I63>INPUTS!$C$69,0,IFERROR(1/INPUTS!E$112,0)) -> 0.02791559872 | F63: =IF($I63>INPUTS!$C$69,0,IFERROR(1/INPUTS!F$112,0)) -> 0.03206314656 | H63: INPUT36 | CALC | I63: 1 | J63: No change in logic from 2013 CPP model. Consistent with 5.3.7 (2)(b).
A64: Total depreciation | D64: =IFERROR(D62*D63,0) -> 0 | E64: =IFERROR(E62*E63,0) -> 232.2371727 | F64: 622.1542274 | I64: 1 | J64: No change in logic from 2013 CPP model. Consistent with 5.3.7 (2)(b).
I65: 1
A66: Total opening RAB value without revaluations | I66: 1
I67: 1
A68: Opening RAB value without revaluations | D68: =IF($I68>INPUTS!$C$69,0,IF(D$4=INPUTS!$D$4,INPUTS!D$122,C72)) -> 0 | E68: =IF($I68>INPUTS!$C$69,0,IF(E$4=INPUTS!$D$4,INPUTS!E$122,D72)) -> 8319.261752 | F68: =IF($I68>INPUTS!$C$69,0,IF(F$4=INPUTS!$D$4,INPUTS!F$122,E72)) -> 19233.01459 | H68: INPUT37 | CALC | I68: 1 | J68: RY19 linked to input sheet. No change in logic from 2013 CPP model. Consistent with adjusted depreciation definition in IM 1.1.4.
A69: less Adjusted depreciation | D69: =D78 -> 0 | E69: =E78 -> 232.2371727 | F69: 616.6709656 | H69: RAB6 | I69: 1 | J69: No change in logic from 2013 CPP model. Consistent with adjusted depreciation definition in IM 1.1.4.
A70: less Disposals without revaluations | D70: =IF($I70>INPUTS!$C$69,0,INPUTS!D$134) -> 0 | E70: =IF($I70>INPUTS!$C$69,0,INPUTS!E$134) -> 0 | F70: =IF($I70>INPUTS!$C$69,0,INPUTS!F$134) -> 0 | H70: INPUT39 | I70: 1 | J70: No change in logic from 2013 CPP model. Consistent with adjusted depreciation definition in IM 1.1.4.
A71: add Total value of commissioned assets | D71: =D48 -> 8319.261752 | E71: =E48 -> 11145.99001 | F71: 11881.76128 | H71: INPUT33 | I71: 1 | J71: No change in logic from 2013 CPP model. Consistent with adjusted depreciation definition in IM 1.1.4.
A72: Closing RAB value without revaluations | D72: =D68-D69-D70+D71 -> 8319.261752 | E72: =E68-E69-E70+E71 -> 19233.01459 | F72: 30498.1049 | H72: CALC | I72: 1 | J72: No change in logic from 2013 CPP model. Consistent with adjusted depreciation definition in IM 1.1.4.
I73: 1
A74: Total adjusted depreciation | I74: 1
I75: 1
A76: Opening RAB value | D76: =D68 -> 0 | E76: =E68 -> 8319.261752 | F76: 19233.01459 | H76: INPUT37 | CALC | I76: 1 | J76: No change in logic from 2013 CPP model. Consistent with adjusted depreciation definition in IM 1.1.4.
A77: multiply by (1 / Remaining asset life) | D77: =IF($I77>INPUTS!$C$69,0,IFERROR(1/INPUTS!D$112,0)) -> 0 | E77: =IF($I77>INPUTS!$C$69,0,IFERROR(1/INPUTS!E$112,0)) -> 0.02791559872 | F77: =IF($I77>INPUTS!$C$69,0,IFERROR(1/INPUTS!F$112,0)) -> 0.03206314656 | H77: INPUT36 | CALC | I77: 1 | J77: Linked to input sheet. Consistent with adjusted depreciation definition in IM 1.1.4.
A78: Total depreciation | D78: =IFERROR(D76*D77,0) -> 0 | E78: =IFERROR(E76*E77,0) -> 232.2371727 | F78: 616.6709656 | I78: 1 | J78: No change in logic from 2013 CPP model. Consistent with adjusted depreciation definition in IM 1.1.4.
I79: 1
I80: 1
A81: =(INPUTS!C81) -> Two | I81: 2
I82: 2
A83: ="Total Opening RAB value ("&INPUTS!$C$71&")" -> Total Opening RAB value (Two) | I83: 2
I84: 2
A85: Opening RAB value | D85: =IF($I85>INPUTS!$C$69,0,IF(D$4=INPUTS!$D$4,INPUTS!$D$71,C90)) -> 0 | E85: =IF($I85>INPUTS!$C$69,0,IF(E$4=INPUTS!$D$4,INPUTS!$D$71,D90)) -> 0 | F85: =IF($I85>INPUTS!$C$69,0,IF(F$4=INPUTS!$D$4,INPUTS!$D$71,E90)) -> 0 | H85: INPUT31 | CALC | I85: 2
A86: less Depreciation | D86: =D105 -> 0 | E86: =E105 -> 0 | F86: 0 | H86: I-RAB5 | I86: 2
A87: less Disposals | D87: =IF($I87>INPUTS!$C$69,0,INPUTS!D$81) -> 0 | E87: =IF($I87>INPUTS!$C$69,0,INPUTS!E$81) -> 0 | F87: =IF($I87>INPUTS!$C$69,0,INPUTS!F$81) -> 0 | H87: INPUT32 | I87: 2
A88: add Revaluation | D88: =D99 -> 0 | E88: =E99 -> 0 | F88: 0 | H88: I-RAB4 | I88: 2
A89: add Total value of commissioned assets | D89: =IF($I89>INPUTS!$C$69,0,INPUTS!D$91) -> 0 | E89: =IF($I89>INPUTS!$C$69,0,INPUTS!E$91) -> 0 | F89: =IF($I89>INPUTS!$C$69,0,INPUTS!F$91) -> 0 | H89: INPUT33 | I89: 2
A90: Closing RAB value | D90: =D85-D86-D87+D88+D89 -> 0 | E90: =E85-E86-E87+E88+E89 -> 0 | F90: 0 | I90: 2
I91: 2
A92: ="Total Revaluation ("&INPUTS!$C$71&")" -> Total Revaluation (Two) | I92: 2
I93: 2
A94: Opening RAB value | D94: =D85 -> 0 | E94: =E85 -> 0 | F94: 0 | H94: I-RAB1 | I94: 2
A95: less Fully depreciated assets | D95: =IF($I95>INPUTS!$C$69,0,INPUTS!D$145) -> 0 | E95: =IF($I95>INPUTS!$C$69,0,INPUTS!E$145) -> 0 | F95: =IF($I95>INPUTS!$C$69,0,INPUTS!F$145) -> 0 | H95: INPUT40 | I95: 2
A96: less Disposals | D96: =IF($I96>INPUTS!$C$69,0,INPUTS!D$81) -> 0 | E96: =IF($I96>INPUTS!$C$69,0,INPUTS!E$81) -> 0 | F96: =IF($I96>INPUTS!$C$69,0,INPUTS!F$81) -> 0 | H96: INPUT32 | I96: 2
A97: Adjusted RAB value | D97: =D94-D95-D96 -> 0 | E97: =E94-E95-E96 -> 0 | F97: 0 | H97: CALC | I97: 2
A98: multiply by Revaluation rate | D98: =IF($I98>INPUTS!$C$69,0,INPUTS!D$103) -> 0 | E98: =IF($I98>INPUTS!$C$69,0,INPUTS!E$103) -> 0 | F98: =IF($I98>INPUTS!$C$69,0,INPUTS!F$103) -> 0 | H98: INPUT35 | I98: 1
A99: Total Revaluation | D99: =D97*D98 -> 0 | E99: =E97*E98 -> 0 | F99: 0 | H99: CALC | O-RAB4 | I99: 2
I100: 2
A101: ="Total depreciation ("&INPUTS!$C$71&")" -> Total depreciation (Two) | I101: 2
I102: 2
A103: Opening RAB value | D103: =D85 -> 0 | E103: =E85 -> 0 | F103: 0 | H103: I-RAB1 | I103: 2
A104: multiply by (1 / Remaining asset life) | D104: =IF($I104>INPUTS!$C$69,0,IFERROR(1/INPUTS!D$113,0)) -> 0 | E104: =IF($I104>INPUTS!$C$69,0,IFERROR(1/INPUTS!E$113,0)) -> 0 | F104: =IF($I104>INPUTS!$C$69,0,IFERROR(1/INPUTS!F$113,0)) -> 0 | H104: INPUT36 | CALC | I104: 2
A105: Total depreciation | D105: =IFERROR(D103*D104,0) -> 0 | E105: =IFERROR(E103*E104,0) -> 0 | F105: 0 | H105: O-RAB5 | I105: 2
I106: 2
A107: ="Total opening RAB value without revaluations ("&INPUTS!$C$71&")" -> Total opening RAB value without revaluations (Two) | I107: 2
I108: 2
A109: Opening RAB value without revaluations | D109: =IF($I109>INPUTS!$C$69,0,IF(D$4=INPUTS!$D$4,INPUTS!$D$123,C113)) -> 0 | E109: =IF($I109>INPUTS!$C$69,0,IF(E$4=INPUTS!$D$4,INPUTS!$D$123,D113)) -> 0 | F109: =IF($I109>INPUTS!$C$69,0,IF(F$4=INPUTS!$D$4,INPUTS!$D$123,E113)) -> 0 | H109: INPUT37 | CALC | I109: 2
A110: less Adjusted depreciation | D110: =D119 -> 0 | E110: =E119 -> 0 | F110: 0 | H110: I-RAB6 | I110: 2
A111: less Disposals without revaluations | D111: =IF($I111>INPUTS!$C$69,0,INPUTS!D$135) -> 0 | E111: =IF($I111>INPUTS!$C$69,0,INPUTS!E$135) -> 0 | F111: =IF($I111>INPUTS!$C$69,0,INPUTS!F$135) -> 0 | H111: INPUT39 | I111: 2
A112: add Total value of commissioned assets | D112: =D89 -> 0 | E112: =E89 -> 0 | F112: 0 | H112: INPUT33 | I112: 2
A113: Closing RAB value without revaluations | D113: =D109-D110-D111+D112 -> 0 | E113: =E109-E110-E111+E112 -> 0 | F113: 0 | H113: CALC | I113: 2
I114: 2
A115: ="Total adjusted depreciation ("&INPUTS!$C$71&")" -> Total adjusted depreciation (Two) | I115: 2
I116: 2
A117: Opening RAB value | D117: =D109 -> 0 | E117: =E109 -> 0 | F117: 0 | H117: INPUT37 | | I117: 2
A118: multiply by (1 / Remaining asset life) | D118: =IF($I118>INPUTS!$C$69,0,IFERROR(1/INPUTS!D$113,0)) -> 0 | E118: =IF($I118>INPUTS!$C$69,0,IFERROR(1/INPUTS!E$113,0)) -> 0 | F118: =IF($I118>INPUTS!$C$69,0,IFERROR(1/INPUTS!F$113,0)) -> 0 | H118: INPUT36 | CALC | I118: 2
A119: Total depreciation | D119: =IFERROR(D117*D118,0) -> 0 | E119: =IFERROR(E117*E118,0) -> 0 | F119: 0 | H119: O-RAB6 | I119: 2
I120: 2
I121: 2
A122: =(INPUTS!C72) -> Three | I122: 3
I123: 3
A124: ="Total Opening RAB value ("&INPUTS!$C$72&")" -> Total Opening RAB value (Three) | I124: 3
I125: 3
A126: Opening RAB value | D126: =IF($I126>INPUTS!$C$69,0,IF(D$4=INPUTS!$D$4,INPUTS!$D$72,C131)) -> 0 | E126: =IF($I126>INPUTS!$C$69,0,IF(E$4=INPUTS!$D$4,INPUTS!$D$72,D131)) -> 0 | F126: =IF($I126>INPUTS!$C$69,0,IF(F$4=INPUTS!$D$4,INPUTS!$D$72,E131)) -> 0 | H126: INPUT31 | CALC | I126: 3
A127: less Depreciation | D127: =D146 -> 0 | E127: =E146 -> 0 | F127: 0 | H127: I-RAB5 | I127: 3
A128: less Disposals | D128: =IF($I128>INPUTS!$C$69,0,INPUTS!D$82) -> 0 | E128: =IF($I128>INPUTS!$C$69,0,INPUTS!E$82) -> 0 | F128: =IF($I128>INPUTS!$C$69,0,INPUTS!F$82) -> 0 | H128: INPUT32 | I128: 3
A129: add Revaluation | D129: =D140 -> 0 | E129: =E140 -> 0 | F129: 0 | H129: I-RAB4 | I129: 3
A130: add Total value of commissioned assets | D130: =IF($I130>INPUTS!$C$69,0,INPUTS!D$92) -> 0 | E130: =IF($I130>INPUTS!$C$69,0,INPUTS!E$92) -> 0 | F130: =IF($I130>INPUTS!$C$69,0,INPUTS!F$92) -> 0 | H130: INPUT33 | I130: 3
A131: Closing RAB value | D131: =D126-D127-D128+D129+D130 -> 0 | E131: =E126-E127-E128+E129+E130 -> 0 | F131: 0 | I131: 3
I132: 3
A133: ="Total Revaluation ("&INPUTS!$C$72&")" -> Total Revaluation (Three) | I133: 3
I134: 3
A135: Opening RAB value | D135: =D126 -> 0 | E135: =E126 -> 0 | F135: 0 | H135: I-RAB1 | I135: 3
A136: less Fully depreciated assets | D136: =IF($I136>INPUTS!$C$69,0,INPUTS!D$146) -> 0 | E136: =IF($I136>INPUTS!$C$69,0,INPUTS!E$146) -> 0 | F136: =IF($I136>INPUTS!$C$69,0,INPUTS!F$146) -> 0 | H136: INPUT40 | I136: 3
A137: less Disposals | D137: =IF($I137>INPUTS!$C$69,0,INPUTS!D$82) -> 0 | E137: =IF($I137>INPUTS!$C$69,0,INPUTS!E$82) -> 0 | F137: =IF($I137>INPUTS!$C$69,0,INPUTS!F$82) -> 0 | H137: INPUT32 | I137: 3
A138: Adjusted RAB value | D138: =D135-D136-D137 -> 0 | E138: =E135-E136-E137 -> 0 | F138: 0 | H138: CALC | I138: 3
A139: multiply by Revaluation rate | D139: =IF($I139>INPUTS!$C$69,0,INPUTS!D$104) -> 0 | E139: =IF($I139>INPUTS!$C$69,0,INPUTS!E$104) -> 0 | F139: =IF($I139>INPUTS!$C$69,0,INPUTS!F$104) -> 0 | H139: INPUT35 | I139: 1
A140: Total Revaluation | D140: =D138*D139 -> 0 | E140: =E138*E139 -> 0 | F140: 0 | H140: CALC | O-RAB4 | I140: 3
I141: 3
A142: ="Total depreciation ("&INPUTS!$C$72&")" -> Total depreciation (Three) | I142: 3
I143: 3
A144: Opening RAB value | D144: =D126 -> 0 | E144: =E126 -> 0 | F144: 0 | H144: I-RAB1 | I144: 3
A145: multiply by (1 / Remaining asset life) | D145: =IF($I145>INPUTS!$C$69,0,IFERROR(1/INPUTS!D$114,0)) -> 0 | E145: =IF($I145>INPUTS!$C$69,0,IFERROR(1/INPUTS!E$114,0)) -> 0 | F145: =IF($I145>INPUTS!$C$69,0,IFERROR(1/INPUTS!F$114,0)) -> 0 | H145: INPUT36 | CALC | I145: 3
A146: Total depreciation | D146: =IFERROR(D144*D145,0) -> 0 | E146: =IFERROR(E144*E145,0) -> 0 | F146: 0 | H146: O-RAB5 | I146: 3
I147: 3
A148: ="Total opening RAB value without revaluations ("&INPUTS!$C$72&")" -> Total opening RAB value without revaluations (Three) | I148: 3
I149: 3
A150: Opening RAB value without revaluations | D150: =IF($I150>INPUTS!$C$69,0,IF(D$4=INPUTS!$D$4,INPUTS!$D$124,C154)) -> 0 | E150: =IF($I150>INPUTS!$C$69,0,IF(E$4=INPUTS!$D$4,INPUTS!$D$124,D154)) -> 0 | F150: =IF($I150>INPUTS!$C$69,0,IF(F$4=INPUTS!$D$4,INPUTS!$D$124,E154)) -> 0 | H150: INPUT37 | CALC | I150: 3
A151: less Adjusted depreciation | D151: =D160 -> 0 | E151: =E160 -> 0 | F151: 0 | H151: I-RAB6 | I151: 3
A152: less Disposals without revaluations | D152: =IF($I152>INPUTS!$C$69,0,INPUTS!D$136) -> 0 | E152: =IF($I152>INPUTS!$C$69,0,INPUTS!E$136) -> 0 | F152: =IF($I152>INPUTS!$C$69,0,INPUTS!F$136) -> 0 | H152: INPUT39 | I152: 3
A153: add Total value of commissioned assets | D153: =D130 -> 0 | E153: =E130 -> 0 | F153: 0 | H153: INPUT33 | I153: 3
A154: Closing RAB value without revaluations | D154: =D150-D151-D152+D153 -> 0 | E154: =E150-E151-E152+E153 -> 0 | F154: 0 | H154: CALC | I154: 3
I155: 3
A156: ="Total adjusted depreciation ("&INPUTS!$C$72&")" -> Total adjusted depreciation (Three) | I156: 3
I157: 3
A158: Opening RAB value | D158: =D150 -> 0 | E158: =E150 -> 0 | F158: 0 | H158: INPUT37 | | I158: 3
A159: multiply by (1 / Remaining asset life) | D159: =IF($I159>INPUTS!$C$69,0,IFERROR(1/INPUTS!D$114,0)) -> 0 | E159: =IF($I159>INPUTS!$C$69,0,IFERROR(1/INPUTS!E$114,0)) -> 0 | F159: =IF($I159>INPUTS!$C$69,0,IFERROR(1/INPUTS!F$114,0)) -> 0 | H159: INPUT36 | CALC | I159: 3
A160: Total depreciation | D160: =IFERROR(D158*D159,0) -> 0 | E160: =IFERROR(E158*E159,0) -> 0 | F160: 0 | H160: O-RAB6 | I160: 3
I161: 3
I162: 3
A163: =(INPUTS!C125) -> Four | I163: 4
I164: 4
A165: ="Total Opening RAB value ("&INPUTS!$C$73&")" -> Total Opening RAB value (Four) | I165: 4
I166: 4
A167: Opening RAB value | D167: =IF($I167>INPUTS!$C$69,0,IF(D$4=INPUTS!$D$4,INPUTS!$D$73,C172)) -> 0 | E167: =IF($I167>INPUTS!$C$69,0,IF(E$4=INPUTS!$D$4,INPUTS!$D$73,D172)) -> 0 | F167: =IF($I167>INPUTS!$C$69,0,IF(F$4=INPUTS!$D$4,INPUTS!$D$73,E172)) -> 0 | H167: INPUT31 | CALC | I167: 4
A168: less Depreciation | D168: =D187 -> 0 | E168: =E187 -> 0 | F168: 0 | H168: I-RAB5 | I168: 4
A169: less Disposals | D169: =IF($I169>INPUTS!$C$69,0,INPUTS!D$83) -> 0 | E169: =IF($I169>INPUTS!$C$69,0,INPUTS!E$83) -> 0 | F169: =IF($I169>INPUTS!$C$69,0,INPUTS!F$83) -> 0 | H169: INPUT32 | I169: 4
A170: add Revaluation | D170: =D181 -> 0 | E170: =E181 -> 0 | F170: 0 | H170: I-RAB4 | I170: 4
A171: add Total value of commissioned assets | D171: =IF($I171>INPUTS!$C$69,0,INPUTS!D$93) -> 0 | E171: =IF($I171>INPUTS!$C$69,0,INPUTS!E$93) -> 0 | F171: =IF($I171>INPUTS!$C$69,0,INPUTS!F$93) -> 0 | H171: INPUT33 | I171: 4
A172: Closing RAB value | D172: =D167-D168-D169+D170+D171 -> 0 | E172: =E167-E168-E169+E170+E171 -> 0 | F172: 0 | I172: 4
I173: 4
A174: ="Total Revaluation ("&INPUTS!$C$73&")" -> Total Revaluation (Four) | I174: 4
I175: 4
A176: Opening RAB value | D176: =D167 -> 0 | E176: =E167 -> 0 | F176: 0 | H176: I-RAB1 | I176: 4
A177: less Fully depreciated assets | D177: =IF($I177>INPUTS!$C$69,0,INPUTS!D$147) -> 0 | E177: =IF($I177>INPUTS!$C$69,0,INPUTS!E$147) -> 0 | F177: =IF($I177>INPUTS!$C$69,0,INPUTS!F$147) -> 0 | H177: INPUT40 | I177: 4
A178: less Disposals | D178: =IF($I178>INPUTS!$C$69,0,INPUTS!D$83) -> 0 | E178: =IF($I178>INPUTS!$C$69,0,INPUTS!E$83) -> 0 | F178: =IF($I178>INPUTS!$C$69,0,INPUTS!F$83) -> 0 | H178: INPUT32 | I178: 4
A179: Adjusted RAB value | D179: =D176-D177-D178 -> 0 | E179: =E176-E177-E178 -> 0 | F179: 0 | H179: CALC | I179: 4
A180: multiply by Revaluation rate | D180: =IF($I180>INPUTS!$C$69,0,INPUTS!D$105) -> 0 | E180: =IF($I180>INPUTS!$C$69,0,INPUTS!E$105) -> 0 | F180: =IF($I180>INPUTS!$C$69,0,INPUTS!F$105) -> 0 | H180: INPUT35 | I180: 1
A181: Total Revaluation | D181: =D179*D180 -> 0 | E181: =E179*E180 -> 0 | F181: 0 | H181: CALC | O-RAB4 | I181: 4
I182: 4
A183: ="Total depreciation ("&INPUTS!$C$73&")" -> Total depreciation (Four) | I183: 4
I184: 4
A185: Opening RAB value | D185: =D167 -> 0 | E185: =E167 -> 0 | F185: 0 | H185: I-RAB1 | I185: 4
A186: multiply by (1 / Remaining asset life) | D186: =IF($I186>INPUTS!$C$69,0,IFERROR(1/INPUTS!D$115,0)) -> 0 | E186: =IF($I186>INPUTS!$C$69,0,IFERROR(1/INPUTS!E$115,0)) -> 0 | F186: =IF($I186>INPUTS!$C$69,0,IFERROR(1/INPUTS!F$115,0)) -> 0 | H186: INPUT36 | CALC | I186: 4
A187: Total depreciation | D187: =IFERROR(D185*D186,0) -> 0 | E187: =IFERROR(E185*E186,0) -> 0 | F187: 0 | H187: O-RAB5 | I187: 4
I188: 4
A189: ="Total opening RAB value without revaluations ("&INPUTS!$C$73&")" -> Total opening RAB value without revaluations (Four) | I189: 4
I190: 4
A191: Opening RAB value without revaluations | D191: =IF($I191>INPUTS!$C$69,0,IF(D$4=INPUTS!$D$4,INPUTS!$D$125,C195)) -> 0 | E191: =IF($I191>INPUTS!$C$69,0,IF(E$4=INPUTS!$D$4,INPUTS!$D$125,D195)) -> 0 | F191: =IF($I191>INPUTS!$C$69,0,IF(F$4=INPUTS!$D$4,INPUTS!$D$125,E195)) -> 0 | H191: INPUT37 | CALC | I191: 4
A192: less Adjusted depreciation | D192: =D201 -> 0 | E192: =E201 -> 0 | F192: 0 | H192: I-RAB6 | I192: 4
A193: less Disposals without revaluations | D193: =IF($I193>INPUTS!$C$69,0,INPUTS!D$137) -> 0 | E193: =IF($I193>INPUTS!$C$69,0,INPUTS!E$137) -> 0 | F193: =IF($I193>INPUTS!$C$69,0,INPUTS!F$137) -> 0 | H193: INPUT39 | I193: 4
A194: add Total value of commissioned assets | D194: =D171 -> 0 | E194: =E171 -> 0 | F194: 0 | H194: INPUT33 | I194: 4
A195: Closing RAB value without revaluations | D195: =D191-D192-D193+D194 -> 0 | E195: =E191-E192-E193+E194 -> 0 | F195: 0 | H195: CALC | I195: 4
I196: 4
A197: ="Total adjusted depreciation ("&INPUTS!$C$73&")" -> Total adjusted depreciation (Four) | I197: 4
I198: 4
A199: Opening RAB value | D199: =D191 -> 0 | E199: =E191 -> 0 | F199: 0 | H199: INPUT37 | | I199: 4
A200: multiply by (1 / Remaining asset life) | D200: =IF($I200>INPUTS!$C$69,0,IFERROR(1/INPUTS!D$115,0)) -> 0 | E200: =IF($I200>INPUTS!$C$69,0,IFERROR(1/INPUTS!E$115,0)) -> 0 | F200: =IF($I200>INPUTS!$C$69,0,IFERROR(1/INPUTS!F$115,0)) -> 0 | H200: INPUT36 | CALC | I200: 4
A201: Total depreciation | D201: =IFERROR(D199*D200,0) -> 0 | E201: =IFERROR(E199*E200,0) -> 0 | F201: 0 | H201: O-RAB6 | I201: 4
I202: 4
I203: 4
A204: =(INPUTS!C74) -> Five | I204: 5
I205: 5
A206: ="Total Opening RAB value ("&INPUTS!$C$74&")" -> Total Opening RAB value (Five) | I206: 5
I207: 5
A208: Opening RAB value | D208: =IF($I208>INPUTS!$C$69,0,IF(D$4=INPUTS!$D$4,INPUTS!$D$74,C213)) -> 0 | E208: =IF($I208>INPUTS!$C$69,0,IF(E$4=INPUTS!$D$4,INPUTS!$D$74,D213)) -> 0 | F208: =IF($I208>INPUTS!$C$69,0,IF(F$4=INPUTS!$D$4,INPUTS!$D$74,E213)) -> 0 | H208: INPUT31 | CALC | I208: 5
A209: less Depreciation | D209: =D228 -> 0 | E209: =E228 -> 0 | F209: 0 | H209: I-RAB5 | I209: 5
A210: less Disposals | D210: =IF($I210>INPUTS!$C$69,0,INPUTS!D$84) -> 0 | E210: =IF($I210>INPUTS!$C$69,0,INPUTS!E$84) -> 0 | F210: =IF($I210>INPUTS!$C$69,0,INPUTS!F$84) -> 0 | H210: INPUT32 | I210: 5
A211: add Revaluation | D211: =D222 -> 0 | E211: =E222 -> 0 | F211: 0 | H211: I-RAB4 | I211: 5
A212: add Total value of commissioned assets | D212: =IF($I212>INPUTS!$C$69,0,INPUTS!D$94) -> 0 | E212: =IF($I212>INPUTS!$C$69,0,INPUTS!E$94) -> 0 | F212: =IF($I212>INPUTS!$C$69,0,INPUTS!F$94) -> 0 | H212: INPUT33 | I212: 5
A213: Closing RAB value | D213: =D208-D209-D210+D211+D212 -> 0 | E213: =E208-E209-E210+E211+E212 -> 0 | F213: 0 | I213: 5
... 194 more rows

Sheet INPUTS
A1: WELLINGTON ELECTRICITY EXTERNAL INPUTS MODULE | E1: Data inputs with this green fill colour can be set by the Scenario Manager. Note macro buttons.--->
F2: Data scenario chosen: | G2: Reconsideration data
D3: CPP Regulatory Period
A4: Ref. | B4: Input Name | C4: Discrete Input | D4: =$D$5 -> 2019 | E4: =D4+1 -> 2020 | F4: =E4+1 -> 2021 | G4: Modification notes | H4: Description | J4: Input explanation
A5: INPUT1 | B5: CPP regulatory period | C5: 3 | D5: 2019 | H5: The period of continuous disclosure years in respect of which the customised price-quality path applies. Input the number of years in the regulatory period and the first year in the regulatory period. | J5: 3 year CPP regulatory period starting RY19 consistent with IM variation proposal.
A7: INPUT2 | B7: Allowed controllable opex | D7: 0 | E7: 0 | F7: 0 | H7: A series of values ($000) for the CPP regulatory period where a single value for a disclosure year represents the allowance for operating expenditure for that year in categories specified by the Commission as controllable by the supplier. | J7: N/A. CPP commences after 27 November 2014 consistent with IM 3.3.15.
A9: INPUT3 | B9: ‘X’ factor | C9: 0 | H9: A single value (percentage 3 d.p.) representing the rate of change allowed for the maximum allowable revenue path where the path is expressed in ‘CPI-X’ terms. | J9: Set to zero. No X-Factor price smoothing proposed.
A11: INPUT4 | B11: Pass-through costs | D11: 0 | E11: 0 | F11: 0 | H11: Future uncontrollable costs of the supplier which are to be treated as pass-through costs in each year of the CPP regulatory period in addition to those rates or levies already specified in cl. 3.1.2 of the EDB input methodologies. | J11: Set to zero as none proposed.
A13: INPUT5 | B13: Recoverable costs | D13: 0 | E13: 0 | F13: 0 | H13: A series of values ($000) which are the nominal amounts of verifier fees, auditor’s costs or engineer fees associated with the CPP process that are treated as recoverable costs for each of the disclosure years of the CPP regulatory period. | J13: Set to zero. Final amounts to be determined, post application.
A15: INPUT6 | B15: Cost of capital | C15: 0.0719 | D15: 0.0719 | E15: 0.0719 | F15: 0.0457 | G15: Original dependents of C15: INPUTS! D27 29 100 MAR! D33,E33,F33,D38,E38,F38 BBAR! D15, E15, F15; RAB! D30, E30, F30 | H15: Discount rate (equivalent to the 67 75th percentile estimate of cost of capital). | J15: Input sourced from DPP cost of capital determination consistent with IM 5.3.22. Adjusted description to remove reference to 67th percentile.
A17: INPUT7 | B17: Inflation rate | D17: 0.0212508524 | E17: 0.02069446164 | F17: 0.02 | H17: Series of values (percentage 3 d.p.) defined in cl. 3.3.1 5.3.4 (9) of the EDB input methodologies. | J17: CPI used for MAR smoothing. CPI inputs sourced from ‘Supporting Model - CPI projections’ consistent with IM 5.3.4 (9) formula. Use of DPP CPI inputs consistent with definition of forecast CPI set out in IM 1.1.4.
A21: INPUT8 | B21: ΔQ | H21: A series of values (percentage 3 d.p.) for the CPP regulatory period where a single value for a disclosure year represents the forecast weighted average growth in quantities from the preceding disclosure year to the current disclosure year. | J21: Not required for CPP revenue cap under IM 5.3.4 (6).
A23: INPUT9 | B23: Claw-back | C23: 0 | H23: A value ($000) representing the amount of shortfall (negative amount) or over-recovery (positive amount) of revenues relating to prices previously charged by the supplier to be recovered or returned from consumers during the CPP regulatory period. It is expressed in present value terms as at the commencement of the CPP regulatory period. | J23: Set to zero.
A25: INPUT10 | B25: Term Credit Spread Differential Allowance | D25: 0 | E25: 0 | F25: 0 | H25: A series of values ($000) for the CPP regulatory period where a single value for a disclosure year relates to financing costs from long term debt. | J25: Set to zero. No incremental allowances arising from earthquake readiness expenditure.
A27: INPUT11 | B27: TF | D27: =(1+D15)^(182/365) -> 1.035227567 | E27: =(1+E15)^(182/365) -> 1.035227567 | F27: 1.022532143 | H27: A series of values (3 d.p.) for the CPP regulatory period where a single value for a disclosure year represents the timing factor for cash flows, calculated as: (1 + cost of capital)182/365 | J27: Calculated using cost of capital consistent with IM 5.3.2 (4)(a).
D28: Proposal: Make dependent on D15:F15.
A29: INPUT12 | B29: TFrev | D29: =(1+D15)^(148/365) -> 1.028553621 | E29: =(1+E15)^(148/365) -> 1.028553621 | F29: 1.018284618 | H29: A series of values (3 d.p.) for the CPP regulatory period where a single value for a disclosure year represents the timing factor for revenue cash flows, calculated as: (1 + cost of capital)148/365 | J29: Calculated using cost of capital consistent with IM 5.3.2 (4)(b).
D30: Proposal: Make dependent on D15:F15.
A31: INPUT13 | B31: Forecast operating expenditure | D31: 227.8424592 | E31: 394.91395 | F31: 605.0105565 | H31: A series of values ($000) for the CPP regulatory period where a single value for a disclosure year represents the EDB’s operating expenditure for that disclosure year expressed in nominal terms. | J31: Inputs sourced from ‘Supporting Model - CPP readiness capex and opex’ in nominal terms consistent with IM 5.3.2 (6). Inputs represent earthquake readiness operating expenditure.
A33: INPUT14 | B33: Other regulated income | D33: 0 | E33: 0 | F33: 0 | H33: A series of values ($000) for the CPP regulatory period where a single value for a disclosure year represents the EDB’s other regulated income for that disclosure year expressed in nominal terms. | J33: Not required for CPP revenue cap. IM 5.3.2(1) and 5.3.13(4).
A35: INPUT15 | B35: Corporate tax rate | D35: 0.28 | E35: 0.28 | F35: 0.28 | H35: A series of values (3 d.p.) for the CPP regulatory period where a single value for a disclosure year represents the rate of taxation applying to companies in that year. | J35: Set to 28% consistent with current expectation of corporate tax rate defined in IM 1.1.4.
A37: INPUT16 | B37: Opening tax losses in the first year of the CPP regulatory period | D37: 0 | H37: A value ($000) for the first year of the CPP regulatory period which represents the carry forward tax losses from prior years that the Commission is satisfied that an EDB has incurred. | J37: Set to zero. No opening tax losses associated with earthquake readiness expenditure as per IM 5.3.14.
A39: INPUT17 | B39: Positive permanent differences | D39: 0 | E39: 0 | F39: 0 | H39: A series of values ($000) for the CPP regulatory period where a single value for a disclosure year represents amounts of income which are permanently taxable but not included as regulatory profit / (loss) before tax, or amounts of expenditure which are permanently not tax deductible, in nominal terms for that year. | J39: Set to zero. No income permanently taxable but not in regulatory profit, or expenditure that is permanently not taxable consistent with IM 5.3.15.
A41: INPUT18 | B41: Discretionary discounts and customer rebates | D41: 0 | E41: 0 | F41: 0 | H41: A series of values ($000) for the CPP regulatory period where a single value for a disclosure year represents the sum of expenditure allowed as a tax deduction in respect of payments or credits given to persons by an EDB because of those person’s direct or indirect ownership in the EDB, in nominal terms for that year. | J41: Set to zero. No discretionary discounts or customer rebates as per IM definition in 2.3.3 (6).
A43: INPUT19 | B43: Negative permanent differences | D43: 0 | E43: 0 | F43: 0 | H43: A series of values ($000) for the CPP regulatory period where a single value for a disclosure year represents amounts of income which are permanently not taxable, or amounts of expenditure which are permanently tax deductible but not included as regulatory profit / (loss) before tax, in nominal terms for that year. | J43: Set to zero. No income permanently not taxable, or expenditure permanently taxable but not in regulatory profit consistent with IM 5.3.15.
A45: INPUT20 | B45: Leverage | C45: 0.44 | H45: A value (percentage 0 d.p.) representing the assumed ratio of debt capital to total capital of the supplier, specified in the input methodologies for all EDBs as 44%. | J45: Input sourced from 2015 DPP cost of capital determination consistent with WACC.
A47: INPUT21 | B47: Cost of debt | D47: 0.0609 | E47: 0.0609 | F47: 0.0292 | H47: A value (percentage 3 d.p.) representing the assumed cost of debt to the supplier for the CPP regulatory period, comprised of the risk free rate plus the debt premium. | J47: Input sourced from 2015 DPP cost of capital determination consistent with WACC.
G48: Cost of debt for 2021 to change to 2.92%
A49: INPUT22 | B49: Opening unamortised initial differences in asset values for most recent ID year | D49: 0 | H49: A value ($000) which represents the amount of the opening unamortised initial differences in asset values for a supplier for the first disclosure year in the CPP regulatory period. | J49: Set to zero. No unamortised initial differences in the value of assets commissioned as a result of the earthquake readiness expenditure. Consistent with IM 5.3.17.
A51: INPUT23 | B51: Adjustment to opening unamortised initial differences in asset values for sold or acquired assets | D51: 0 | E51: 0 | F51: 0 | H51: A series of values ($000) for the CPP regulatory period where a single value for a disclosure year represents the adjustment required to the opening unamortised initial differences in asset values to account for assets sold or acquired in that year calculated with effect from their date of sale or acquisition. | J51: Set to zero. No assets acquired or sold in CPP period.
A53: INPUT24 | B53: Weighted average remaining useful life of relevant assets | D53: 0 | E53: 0 | F53: 0 | H53: A series of values (2 d.p.) for the CPP regulatory period where a single value for a disclosure year represents the weighted average remaining useful life of all asset at the commencement of the year. | J53: Set to zero. Assets are commissioned as a result of earthquake readiness expenditure. Consistent with IM 5.3.17.
A55: INPUT25 | B55: Opening deferred tax for most recent ID year | D55: 0 | H55: A value ($000) which represents the amount of the opening deferred tax balance for a supplier for the first disclosure year of the CPP regulatory period. | J55: Set to zero. No RY19 opening deferred tax balance for expenditure incurred during the CPP regulatory period. Consistent with IM 5.3.19 (2).
A57: INPUT26 | B57: Tax depreciation | D57: ='Tax roll forward'!D8 -> 0 | E57: ='Tax roll forward'!E8 -> 638.8449328 | F57: ='Tax roll forward'!F8 -> 1954.510295 | H57: A series of values ($000) for the CPP regulatory period where a single value for a disclosure year represents the sum of the amounts determined for all assets of the EDB of the tax depreciation rules to the regulatory tax asset value for each asset in that disclosure year. | J57: Inputs sourced from, and calculated in, 'Tax roll forward' sheet.
A59: INPUT27 | B59: Positive temporary differences | D59: 0 | E59: 0 | F59: 0 | H59: A series of values ($000) for the CPP regulatory period where a single value for a disclosure year represents amounts of income which are temporarily taxable but not included as regulatory profit / (loss) before tax, or amounts of expenditure which are temporarily not tax deductible, in nominal terms for that year. | J59: Set to zero. No positive temporary differences associated with earthquake readiness expenditure. Consistent with IM 5.3.20 (4).
A61: INPUT28 | B61: Negative temporary differences | D61: 0 | E61: 0 | F61: 0 | H61: A series of values ($000) for the CPP regulatory period where a single value for a disclosure year represents amounts of income which are temporarily not taxable, or amounts of expenditure which are temporarily tax deductible but not included as regulatory profit / (loss) before tax, in nominal terms for that year. | J61: Set to zero. No negative temporary differences associated with earthquake readiness expenditure. Consistent with IM 5.3.20 (5).
A63: INPUT29 | B63: Deferred tax balance relating to assets acquired in disclosure year | D63: 0 | E63: 0 | F63: 0 | H63: A series of values ($000) for the CPP regulatory period where a single value for a disclosure year represents the sum of the adjustment required to the opening deferred tax balance to account for assets that have been acquired by an EDB from another regulated supplier, in nominal terms for that year. | J63: Set to zero. No assets will be acquired during the CPP regulatory period as per definition in IM 5.3.19 (3).
A65: INPUT30 | B65: Cost allocation adjustment | D65: 0 | E65: 0 | F65: 0 | H65: A series of values ($000) for the CPP regulatory period where a single value for a disclosure year represents the tax effect of the change in the opening deferred tax balance to account for the effect of changes in cost allocation on tax asset values, in nominal terms for that year. | J65: Set to zero. No change in cost allocations during the CPP regulatory period. IM 5.3.19 (5) and 5.3.21(1) and 2.1.1.
A67: INPUT31 | B67: Opening or closing RAB values for ID years | C67: Number of Asset Classes (1 to 9) | H67: A series of values ($000) for the first year of the CPP regulatory period where a value for that disclosure year represents the opening regulatory asset value in nominal terms of all regulated assets held by a supplier for that disclosure year. Up to nine seperate classes of assets can be entered.
C69: 1
C70: One | D70: 0 | J70: Set to zero. No opening values apply to assets arising from earthquake readiness expenditure.
C71: Two
C72: Three
C73: Four
C74: Five
C75: Six
C76: Seven
C77: Eight
C78: Nine
A80: INPUT32 | B80: Disposals | C80: =IF(ISBLANK($C$70),"",$C$70) -> One | D80: 0 | E80: 0 | F80: 0 | H80: A series of values ($000) for the CPP regulatory period, where a single value represents the opening RAB value of the relevant asset category that are forecast to be disposed of in that year. | I80: 1 | J80: Set to zero. No disposals associated with assets arising from earthquake readiness expenditure.
C81: =IF(ISBLANK($C$71),"",$C$71) -> Two | I81: 2
C82: =IF(ISBLANK($C$72),"",$C$72) -> Three | I82: 3
C83: =IF(ISBLANK($C$73),"",$C$73) -> Four | I83: 4
C84: =IF(ISBLANK($C$74),"",$C$74) -> Five | I84: 5
C85: =IF(ISBLANK($C$75),"",$C$75) -> Six | I85: 6
C86: =IF(ISBLANK($C$76),"",$C$76) -> Seven | I86: 7
C87: =IF(ISBLANK($C$77),"",$C$77) -> Eight | I87: 8
C88: Nine | I88: 9
A90: INPUT33 | B90: Total value of commissioned assets | C90: One | D90: ='RAB roll forward'!D18 -> 8319.261752 | E90: ='RAB roll forward'!E18 -> 11145.99001 | F90: ='RAB roll forward'!F18 -> 11881.76128 | H90: A series of values ($000) for the CPP regulatory period where a single value for a disclosure year represents the actual or forecast cost of all assets to be acquired for that year. | I90: 1 | J90: Input sourced from 'RAB roll forward' sheet. See sheet for further information.
C91: =IF(ISBLANK($C$71),"",$C$71) -> Two | I91: 2 | J91: 2
C92: =IF(ISBLANK($C$72),"",$C$72) -> Three | I92: 3 | J92: 3
C93: =IF(ISBLANK($C$73),"",$C$73) -> Four | I93: 4 | J93: 4
C94: =IF(ISBLANK($C$74),"",$C$74) -> Five | I94: 5 | J94: 5
C95: =IF(ISBLANK($C$75),"",$C$75) -> Six | I95: 6
C96: =IF(ISBLANK($C$76),"",$C$76) -> Seven | I96: 7
C97: =IF(ISBLANK($C$77),"",$C$77) -> Eight | I97: 8
C98: Nine | I98: 9
A100: INPUT34 | B100: PVVCA | D100: =D90/((1+D15)^0.75) -> 7897.126334 | E100: =E90/((1+E15)^0.75) -> 10580.42094 | F100: 11490.14453 | H100: A series of values ($000) for the CPP regulatory period where a single value for a disclosure represents the sum of the present value of each item making up the Total Value of Commissioned Assets, where each present value is determined by discounting each closing RAB value by the cost of capital from its relevant commissioning date to the commencement of the disclosure year. | J100: Calculated consistent with IM 5.3.2 (4) (d). Assumes assets are commissioned on 31 December (ie 75% through the year).
D101: Proposal: Make dependent on D15:F15.
A102: INPUT35 | B102: Revaluation rate | C102: =C70 -> One | D102: ='EDB data'!G23 -> 0.0211128946 | E102: ='EDB data'!H23 -> 0.0205564473 | F102: 0.019 | H102: Defined in cl. 5.3.10(4) of the EDB input methodologies. | I102: 1 | J102: Calculated consistent with IM 5.3.10 (4). CPI inputs and calculation sourced from ‘Supporting Model - CPI projections’. Use of DPP CPI consistent with 5.3.10 (5).
C103: =IF(ISBLANK($C$71),"",$C$71) -> Two | I103: 2
C104: =IF(ISBLANK($C$72),"",$C$72) -> Three | I104: 3
C105: =IF(ISBLANK($C$73),"",$C$73) -> Four | I105: 4
C106: =IF(ISBLANK($C$74),"",$C$74) -> Five | I106: 5
C107: =IF(ISBLANK($C$75),"",$C$75) -> Six | I107: 6
C108: =IF(ISBLANK($C$76),"",$C$76) -> Seven | I108: 7
C109: =IF(ISBLANK($C$77),"",$C$77) -> Eight | I109: 8
C110: Nine | I110: 9
A112: INPUT36 | B112: Remaining asset lives | C112: =C70 -> One | D112: ='RAB roll forward'!D10 -> 0 | E112: ='RAB roll forward'!E10 -> 35.8222659 | F112: ='RAB roll forward'!F10 -> 31.18845488 | H112: A series of values (2 d.p.) for the CPP regulatory period where a single value for a disclosure year represents the term remaining of an asset’s or group of asset’s physical asset life at the commencement of the disclosure year as specified by cl. 2.2.8 of the EDB input methodologies. | I112: 1 | J112: Input sourced from 'RAB roll forward' sheet. Represents a weighted average remaining life of commissioned assets arising from earthquake readiness expenditure.
C113: =IF(ISBLANK($C$71),"",$C$71) -> Two | I113: 2
C114: =IF(ISBLANK($C$72),"",$C$72) -> Three | I114: 3
C115: =IF(ISBLANK($C$73),"",$C$73) -> Four | I115: 4
C116: =IF(ISBLANK($C$74),"",$C$74) -> Five | I116: 5
C117: =IF(ISBLANK($C$75),"",$C$75) -> Six | I117: 6
C118: =IF(ISBLANK($C$76),"",$C$76) -> Seven | I118: 7
C119: =IF(ISBLANK($C$77),"",$C$77) -> Eight | I119: 8
C120: Nine | I120: 9
A122: INPUT37 | B122: Opening or closing RAB values for ID years without revaluations | C122: =C70 -> One | D122: 0 | H122: As for Opening or closing RAB values for ID years (INPUT31) but is a series of values ($000) for the CPP regulatory period where a single value for a disclosure year represents the total depreciation amount for all assets for that year as if no indexed revaluation had ever been applied in respect of any asset. | I122: 1 | J122: Set to zero. No opening values apply to assets arising from earthquake readiness expenditure.
C123: =IF(ISBLANK($C$71),"",$C$71) -> Two | I123: 2
C124: =IF(ISBLANK($C$72),"",$C$72) -> Three | I124: 3
C125: =IF(ISBLANK($C$73),"",$C$73) -> Four | I125: 4
C126: =IF(ISBLANK($C$74),"",$C$74) -> Five | I126: 5
C127: =IF(ISBLANK($C$75),"",$C$75) -> Six | I127: 6
C128: =IF(ISBLANK($C$76),"",$C$76) -> Seven | I128: 7
C129: =IF(ISBLANK($C$77),"",$C$77) -> Eight | I129: 8
C130: Nine | I130: 9
A132: INPUT38 | B132: RAB proportionate investment | D132: =(D90-D80)*0.25 -> 2079.815438 | E132: =(E90-E80)*0.25 -> 2786.497502 | F132: 2970.440319 | H132: A series of values ($000) for the CPP regulatory period where a single value for a disclosure year represents the proportion of the value of assets commissioned or disposed. | J132: Calculated consistent with IM 5.3.16 (3-4). Assumes assets arising from earthquake readiness expenditure are commissioned on 31 December (ie 75% through the year).
A134: INPUT39 | B134: Disposals without revaluations | C134: =C70 -> One | D134: 0 | E134: 0 | F134: 0 | H134: A series of values ($000) for the CPP regulatory period, where a single value for an asset or aggregated asset group for a disclosure year represents the opening RAB value of those assets that are disposed of in that year. The value is calculated such that it does not include any revaluation amount which has been added to the RAB since the initial RAB date (31 March 2009). | I134: 1 | J134: Set to zero. No disposals associated with assets arising from earthquake readiness expenditure.
C135: =IF(ISBLANK($C$71),"",$C$71) -> Two | I135: 2
C136: =IF(ISBLANK($C$72),"",$C$72) -> Three | I136: 3
C137: =IF(ISBLANK($C$73),"",$C$73) -> Four | I137: 4
C138: =IF(ISBLANK($C$74),"",$C$74) -> Five | I138: 5
C139: =IF(ISBLANK($C$75),"",$C$75) -> Six | I139: 6
C140: =IF(ISBLANK($C$76),"",$C$76) -> Seven | I140: 7
C141: =IF(ISBLANK($C$77),"",$C$77) -> Eight | I141: 8
C142: Nine | I142: 9
A144: INPUT40 | B144: Fully depreciated assets | C144: =C70 -> One | D144: 0 | E144: 0 | F144: 0 | H144: A series of values ($000) for the CPP regulatory period where a single value for an asset or aggregated asset group for a disclosure year represents the opening RAB value of those assets that are fully depreciated in that year. | I144: 1 | J144: Set to zero. No fully depreciated assets within CPP regulatory period.
C145: =IF(ISBLANK($C$71),"",$C$71) -> Two | I145: 2
C146: =IF(ISBLANK($C$72),"",$C$72) -> Three | I146: 3
C147: =IF(ISBLANK($C$73),"",$C$73) -> Four | I147: 4
C148: =IF(ISBLANK($C$74),"",$C$74) -> Five | I148: 5
C149: =IF(ISBLANK($C$75),"",$C$75) -> Six | I149: 6
C150: =IF(ISBLANK($C$76),"",$C$76) -> Seven | I150: 7
C151: =IF(ISBLANK($C$77),"",$C$77) -> Eight | I151: 8
C152: Nine | I152: 9
A154: INPUT41 | B154: MAR before tax from 2018 CPP determination, Schedule 1.3 | D154: 105206 | E154: 107383 | F154: 109531 | G154: INPUT41 added to model. Set as "MAR before tax from 2018 CPP determination", with values of 105,206, 107,383,109,531.

Sheet Tax & RAB roll forward >
B2: This sheet has been deliberately left blank.

Sheet Tax roll forward
A1: TAX ASSET MODULE | C1: There are no differences on this sheet between the 2018 model and this reconsideration model.
D3: CPP Regulatory Period
D4: ='INPUTS '!D4 -> 2019 | E4: ='INPUTS '!E4 -> 2020 | F4: ='INPUTS '!F4 -> 2021 | G4: Input reference | H4: Logic explanation
A6: TAX DEPRECIATION
A8: Tax depreciation | D8: =D16 -> 0 | E8: =E16 -> 638.8449328 | F8: =F16 -> 1954.510295 | G8: CALC | H8: Calculation added.
A10: REGULATORY TAX ASSET VALUE AGGREGATED INFORMATION
A12: Total Opening regulatory tax asset value
A14: Average DV rate | D14: =IF(D15=0,0,D16/D15) -> 0 | E14: =IF(E15=0,0,E16/E15) -> 0.07679106054 | F14: =IF(F15=0,0,F16/F15) -> 0.1038174896 | G14: CALC | H14: Calculation added.
A15: Opening regulatory tax asset value | D15: =D26+D35+D44+D53+D62+D71 -> 0 | E15: 8319.261752 | F15: 18826.40683 | G15: Σ(INPUT11) | CALC | H15: Calculation added.
A16: less Tax depreciation | D16: 0 | E16: 638.8449328 | F16: 1954.510295 | G16: Σ(DTAXx) | H16: Calculation added.
A17: add Total value of commissioned assets | D17: 8319.261752 | E17: =E28+E37+E46+E55+E64+E73 -> 11145.99001 | F17: 11881.76128 | G17: Σ(INPUT12) | H17: Calculation added.
A18: Closing regulatory tax asset value | D18: =D15-D16+D17 -> 8319.261752 | E18: =E15-E16+E17 -> 18826.40683 | F18: =F15-F16+F17 -> 28753.65781 | G18: CALC | H18: Calculation added.
A19: Warning: out of balance | D19: =D29+D38+D47+D56+D65+D74-D18 -> 0 | E19: =E29+E38+E47+E56+E65+E74-E18 -> 0 | F19: =F29+F38+F47+F56+F65+F74-F18 -> 0
A21: REGULATORY TAX ASSET VALUE BREAKDOWN BY ASSET CLASSES
A22: =D25*100 & "% DV assets" -> 0% DV assets
A23: Total Opening regulatory tax asset value
A25: DV rate | D25: ='INPUTS '!$C$208 -> 0 | E25: ='INPUTS '!$C$208 -> 0 | F25: ='INPUTS '!$C$208 -> 0 | G25: INPUT10 | H25: Calculation added consistent with tax depreciation rules IM 5.3.20 (3).
A26: Opening regulatory tax asset value | D26: =IF(D$4='INPUTS '!$D$4,'INPUTS '!$D$215,C29) -> 0 | E26: =IF(E$4='INPUTS '!$D$4,'INPUTS '!$D$215,D29) -> 2741.114936 | F26: =IF(F$4='INPUTS '!$D$4,'INPUTS '!$D$215,E29) -> 6323.854672 | G26: INPUT11 | CALC | H26: Calculation added consistent with tax depreciation rules IM 5.3.20 (3).
A27: less Tax depreciation | D27: =D26*D25 -> 0 | E27: =E26*E25 -> 0 | F27: =F26*F25 -> 0 | G27: CALC | H27: Calculation added consistent with tax depreciation rules IM 5.3.20 (3).
A28: add Total value of commissioned assets | D28: ='INPUTS '!D$222 -> 2741.114936 | E28: ='INPUTS '!E$222 -> 3582.739735 | F28: ='INPUTS '!F$222 -> 4525.00665 | G28: INPUT12 | H28: Calculation added consistent with tax depreciation rules IM 5.3.20 (3).
A29: Closing regulatory tax asset value | D29: =D26-D27+D28 -> 2741.114936 | E29: =E26-E27+E28 -> 6323.854672 | F29: =F26-F27+F28 -> 10848.86132 | G29: CALC | H29: Calculation added consistent with tax depreciation rules IM 5.3.20 (3).
A31: =D34*100 & "% DV assets" -> 8% DV assets
A32: Total Opening regulatory tax asset value
A34: DV rate | D34: ='INPUTS '!$C$209 -> 0.08 | E34: ='INPUTS '!$C$209 -> 0.08 | F34: ='INPUTS '!$C$209 -> 0.08 | G34: INPUT10 | H34: Calculation added consistent with tax depreciation rules IM 5.3.20 (3).
A35: Opening regulatory tax asset value | D35: =IF(D$4='INPUTS '!$D$4,'INPUTS '!$D$216,C38) -> 0 | E35: =IF(E$4='INPUTS '!$D$4,'INPUTS '!$D$216,D38) -> 4188.29991 | F35: =IF(F$4='INPUTS '!$D$4,'INPUTS '!$D$216,E38) -> 7667.260175 | G35: INPUT11 | CALC | H35: Calculation added consistent with tax depreciation rules IM 5.3.20 (3).
A36: less Tax depreciation | D36: =D35*D34 -> 0 | E36: =E35*E34 -> 335.0639928 | F36: =F35*F34 -> 613.380814 | G36: CALC | H36: Calculation added consistent with tax depreciation rules IM 5.3.20 (3).
A37: add Total value of commissioned assets | D37: ='INPUTS '!D$223 -> 4188.29991 | E37: ='INPUTS '!E$223 -> 3814.024258 | F37: ='INPUTS '!F$223 -> 6431.075623 | G37: INPUT12 | H37: Calculation added consistent with tax depreciation rules IM 5.3.20 (3).
A38: Closing regulatory tax asset value | D38: =D35-D36+D37 -> 4188.29991 | E38: =E35-E36+E37 -> 7667.260175 | F38: =F35-F36+F37 -> 13484.95498 | G38: CALC | H38: Calculation added consistent with tax depreciation rules IM 5.3.20 (3).
A40: =D43*100 & "% DV assets" -> 10% DV assets
A41: Total Opening regulatory tax asset value
A43: DV rate | D43: ='INPUTS '!$C$210 -> 0.1 | E43: ='INPUTS '!$C$210 -> 0.1 | F43: ='INPUTS '!$C$210 -> 0.1 | G43: INPUT10 | H43: Calculation added consistent with tax depreciation rules IM 5.3.20 (3).
A44: Opening regulatory tax asset value | D44: =IF(D$4='INPUTS '!$D$4,'INPUTS '!$D$217,C47) -> 0 | E44: =IF(E$4='INPUTS '!$D$4,'INPUTS '!$D$217,D47) -> 0 | F44: =IF(F$4='INPUTS '!$D$4,'INPUTS '!$D$217,E47) -> 1925.138473 | G44: INPUT11 | CALC | H44: Calculation added consistent with tax depreciation rules IM 5.3.20 (3).
A45: less Tax depreciation | D45: =D44*D43 -> 0 | E45: =E44*E43 -> 0 | F45: =F44*F43 -> 192.5138473 | G45: CALC | H45: Calculation added consistent with tax depreciation rules IM 5.3.20 (3).
A46: add Total value of commissioned assets | D46: ='INPUTS '!D$224 -> 0 | E46: ='INPUTS '!E$224 -> 1925.138473 | F46: ='INPUTS '!F$224 -> 0 | G46: INPUT12 | H46: Calculation added consistent with tax depreciation rules IM 5.3.20 (3).
A47: Closing regulatory tax asset value | D47: =D44-D45+D46 -> 0 | E47: =E44-E45+E46 -> 1925.138473 | F47: =F44-F45+F46 -> 1732.624626 | G47: CALC | H47: Calculation added consistent with tax depreciation rules IM 5.3.20 (3).
A49: =D52*100 & "% DV assets" -> 20% DV assets
A50: Total Opening regulatory tax asset value
A52: DV rate | D52: ='INPUTS '!$C$211 -> 0.2 | E52: ='INPUTS '!$C$211 -> 0.2 | F52: ='INPUTS '!$C$211 -> 0.2 | G52: INPUT10 | H52: Calculation added consistent with tax depreciation rules IM 5.3.20 (3).
A53: Opening regulatory tax asset value | D53: =IF(D$4='INPUTS '!$D$4,'INPUTS '!$D$218,C56) -> 0 | E53: =IF(E$4='INPUTS '!$D$4,'INPUTS '!$D$218,D56) -> 873.6157253 | F53: =IF(F$4='INPUTS '!$D$4,'INPUTS '!$D$218,E56) -> 698.8925802 | G53: INPUT11 | CALC | H53: Calculation added consistent with tax depreciation rules IM 5.3.20 (3).
A54: less Tax depreciation | D54: =D53*D52 -> 0 | E54: =E53*E52 -> 174.7231451 | F54: =F53*F52 -> 139.778516 | G54: CALC | H54: Calculation added consistent with tax depreciation rules IM 5.3.20 (3).
A55: add Total value of commissioned assets | D55: ='INPUTS '!D$225 -> 873.6157253 | E55: ='INPUTS '!E$225 -> 0 | F55: ='INPUTS '!F$225 -> 0 | G55: INPUT12 | H55: Calculation added consistent with tax depreciation rules IM 5.3.20 (3).
A56: Closing regulatory tax asset value | D56: =D53-D54+D55 -> 873.6157253 | E56: =E53-E54+E55 -> 698.8925802 | F56: =F53-F54+F55 -> 559.1140642 | G56: CALC | H56: Calculation added consistent with tax depreciation rules IM 5.3.20 (3).
A58: =D61*100 & "% DV assets" -> 25% DV assets
A59: Total Opening regulatory tax asset value
A61: DV rate | D61: ='INPUTS '!$C$212 -> 0.25 | E61: ='INPUTS '!$C$212 -> 0.25 | F61: ='INPUTS '!$C$212 -> 0.25 | G61: INPUT10 | H61: Calculation added consistent with tax depreciation rules IM 5.3.20 (3).
A62: Opening regulatory tax asset value | D62: =IF(D$4='INPUTS '!$D$4,'INPUTS '!$D$219,C65) -> 0 | E62: =IF(E$4='INPUTS '!$D$4,'INPUTS '!$D$219,D65) -> 516.23118 | F62: =IF(F$4='INPUTS '!$D$4,'INPUTS '!$D$219,E65) -> 387.173385 | G62: INPUT11 | CALC | H62: Calculation added consistent with tax depreciation rules IM 5.3.20 (3).
A63: less Tax depreciation | D63: =D62*D61 -> 0 | E63: =E62*E61 -> 129.057795 | F63: =F62*F61 -> 96.79334625 | G63: CALC | H63: Calculation added consistent with tax depreciation rules IM 5.3.20 (3).
A64: add Total value of commissioned assets | D64: ='INPUTS '!D$226 -> 516.23118 | E64: ='INPUTS '!E$226 -> 0 | F64: ='INPUTS '!F$226 -> 0 | G64: INPUT12 | H64: Calculation added consistent with tax depreciation rules IM 5.3.20 (3).
A65: Closing regulatory tax asset value | D65: =D62-D63+D64 -> 516.23118 | E65: =E62-E63+E64 -> 387.173385 | F65: =F62-F63+F64 -> 290.3800387 | G65: CALC | H65: Calculation added consistent with tax depreciation rules IM 5.3.20 (3).
A67: =D70*100 & "% DV assets" -> 50% DV assets
A68: Total Opening regulatory tax asset value
A70: DV rate | D70: ='INPUTS '!$C$213 -> 0.5 | E70: ='INPUTS '!$C$213 -> 0.5 | F70: ='INPUTS '!$C$213 -> 0.5 | G70: INPUT10 | H70: Calculation added consistent with tax depreciation rules IM 5.3.20 (3).
A71: Opening regulatory tax asset value | D71: =IF(D$4='INPUTS '!$D$4,'INPUTS '!$D$220,C74) -> 0 | E71: =IF(E$4='INPUTS '!$D$4,'INPUTS '!$D$220,D74) -> 0 | F71: =IF(F$4='INPUTS '!$D$4,'INPUTS '!$D$220,E74) -> 1824.087542 | G71: INPUT11 | CALC | H71: Calculation added consistent with tax depreciation rules IM 5.3.20 (3).
A72: less Tax depreciation | D72: =D71*D70 -> 0 | E72: =E71*E70 -> 0 | F72: =F71*F70 -> 912.0437712 | G72: CALC | H72: Calculation added consistent with tax depreciation rules IM 5.3.20 (3).
A73: add Total value of commissioned assets | D73: ='INPUTS '!D$227 -> 0 | E73: ='INPUTS '!E$227 -> 1824.087542 | F73: ='INPUTS '!F$227 -> 925.6790039 | G73: INPUT12 | H73: Calculation added consistent with tax depreciation rules IM 5.3.20 (3).
A74: Closing regulatory tax asset value | D74: =D71-D72+D73 -> 0 | E74: =E71-E72+E73 -> 1824.087542 | F74: =F71-F72+F73 -> 1837.722775 | G74: CALC | H74: Calculation added consistent with tax depreciation rules IM 5.3.20 (3).

Sheet RAB roll forward
A1: REGULATORY ASSET BASE (RAB) MODULE | C1: There are no differences on this sheet between the 2018 model and this reconsideration model.
D3: CPP Regulatory Period | H3: Asset Category
D4: ='INPUTS '!D4 -> 2019 | E4: ='INPUTS '!E4 -> 2020 | F4: ='INPUTS '!F4 -> 2021 | G4: Input reference | H4: for formatting purposes | I4: Logic explanation
A6: RAB AGGREGATED INFORMATION
A8: Remaining life
A10: Remaining life | D10: =IF(D15=0,0,D14/D15) -> 0 | E10: =IF(E15=0,0,E14/E15) -> 35.8222659 | F10: =IF(F15=0,0,F14/F15) -> 31.18845488 | G10: CALC | I10: Calculation added.
A12: Total Opening RAB value
A14: Opening RAB value | D14: =D37+D78+D119+D160+D201+D242+D283+D324+D365+D406+D447+D488+D529+D570+D611+D652+D693+D734+D775+D816+D857+D898+D939+D980+D1021+D1062+D1103 -> 0 | E14: =E37+E78+E119+E160+E201+E242+E283+E324+E365+E406+E447+E488+E529+E570+E611+E652+E693+E734+E775+E816+E857+E898+E939+E980+E1021+E1062+E1103 -> 8319.261752 | F14: =F37+F78+F119+F160+F201+F242+F283+F324+F365+F406+F447+F488+F529+F570+F611+F652+F693+F734+F775+F816+F857+F898+F939+F980+F1021+F1062+F1103 -> 19404.02905 | G14: Σ(INPUT2) | CALC | I14: Updated to include additional asset classes.
A15: less Depreciation | D15: =D57+D98+D139+D180+D221+D262+D303+D344+D385+D426+D467+D508+D549+D590+D631+D672+D713+D754+D795+D836+D877+D918+D959+D1000+D1041+D1082+D1123 -> 0 | E15: =E57+E98+E139+E180+E221+E262+E303+E344+E385+E426+E467+E508+E549+E590+E631+E672+E713+E754+E795+E836+E877+E918+E959+E1000+E1041+E1082+E1123 -> 232.2371727 | F15: =F57+F98+F139+F180+F221+F262+F303+F344+F385+F426+F467+F508+F549+F590+F631+F672+F713+F754+F795+F836+F877+F918+F959+F1000+F1041+F1082+F1123 -> 622.1542274 | G15: Σ(RAB) | I15: Updated to include additional asset classes.
A16: less Disposals | D16: =D39+D80+D121+D162+D203+D244+D285+D326+D367+D408+D449+D490+D531+D572+D613+D654+D695+D736+D777+D818+D859+D900+D941+D982+D1023+D1064+D1105 -> 0 | E16: =E39+E80+E121+E162+E203+E244+E285+E326+E367+E408+E449+E490+E531+E572+E613+E654+E695+E736+E777+E818+E859+E900+E941+E982+E1023+E1064+E1105 -> 0 | F16: =F39+F80+F121+F162+F203+F244+F285+F326+F367+F408+F449+F490+F531+F572+F613+F654+F695+F736+F777+F818+F859+F900+F941+F982+F1023+F1064+F1105 -> 0 | G16: Σ(INPUT3) | I16: Updated to include additional asset classes.
A17: add Revaluation | D17: =D51+D92+D133+D174+D215+D256+D297+D338+D379+D420+D461+D502+D543+D584+D625+D666+D707+D748+D789+D830+D871+D912+D953+D994+D1035+D1076+D1117 -> 0 | E17: =E51+E92+E133+E174+E215+E256+E297+E338+E379+E420+E461+E502+E543+E584+E625+E666+E707+E748+E789+E830+E871+E912+E953+E994+E1035+E1076+E1117 -> 171.0144658 | F17: =F51+F92+F133+F174+F215+F256+F297+F338+F379+F420+F461+F502+F543+F584+F625+F666+F707+F748+F789+F830+F871+F912+F953+F994+F1035+F1076+F1117 -> 368.676552 | G17: Σ(RAB) | I17: Updated to include additional asset classes.
A18: add Total value of commissioned assets | D18: =D41+D82+D123+D164+D205+D246+D287+D328+D369+D410+D451+D492+D533+D574+D615+D656+D697+D738+D779+D820+D861+D902+D943+D984+D1025+D1066+D1107 -> 8319.261752 | E18: =E41+E82+E123+E164+E205+E246+E287+E328+E369+E410+E451+E492+E533+E574+E615+E656+E697+E738+E779+E820+E861+E902+E943+E984+E1025+E1066+E1107 -> 11145.99001 | F18: =F41+F82+F123+F164+F205+F246+F287+F328+F369+F410+F451+F492+F533+F574+F615+F656+F697+F738+F779+F820+F861+F902+F943+F984+F1025+F1066+F1107 -> 11881.76128 | G18: Σ(INPUT4) | I18: Updated to include additional asset classes.
A19: Closing RAB value | D19: =D14-D15-D16+D17+D18 -> 8319.261752 | E19: =E14-E15-E16+E17+E18 -> 19404.02905 | F19: =F14-F15-F16+F17+F18 -> 31032.31266 | G19: CALC | I19: Updated to include additional asset classes.
A20: Warning: out of balance | D20: =D42+D83+D124+D165+D206+D247+D288+D329+D370+D411+D452+D493+D534+D575+D616+D657+D698+D739+D780+D821+D862+D903+D944+D985+D1026+D1067+D1108-D19 -> 0 | E20: =E42+E83+E124+E165+E206+E247+E288+E329+E370+E411+E452+E493+E534+E575+E616+E657+E698+E739+E780+E821+E862+E903+E944+E985+E1026+E1067+E1108-E19 -> 0 | F20: =F42+F83+F124+F165+F206+F247+F288+F329+F370+F411+F452+F493+F534+F575+F616+F657+F698+F739+F780+F821+F862+F903+F944+F985+F1026+F1067+F1108-F19 -> 0 | I20: Updated to include additional asset classes.
A22: RAB roll-forward without revaluations
A24: Opening RAB value without revaluations | D24: =D61+D102+D143+D184+D225+D266+D307+D348+D389+D430+D471+D512+D553+D594+D635+D676+D717+D758+D799+D840+D881+D922+D963+D1004+D1045+D1086+D1127 -> 0 | E24: =E61+E102+E143+E184+E225+E266+E307+E348+E389+E430+E471+E512+E553+E594+E635+E676+E717+E758+E799+E840+E881+E922+E963+E1004+E1045+E1086+E1127 -> 8319.261752 | F24: =F61+F102+F143+F184+F225+F266+F307+F348+F389+F430+F471+F512+F553+F594+F635+F676+F717+F758+F799+F840+F881+F922+F963+F1004+F1045+F1086+F1127 -> 19233.01459 | G24: Σ(INPUT7) | CALC | I24: Updated to include additional asset classes.
A25: less Adjusted depreciation | D25: =D71+D112+D153+D194+D235+D276+D317+D358+D399+D440+D481+D522+D563+D604+D645+D686+D727+D768+D809+D850+D891+D932+D973+D1014+D1055+D1096+D1137 -> 0 | E25: =E71+E112+E153+E194+E235+E276+E317+E358+E399+E440+E481+E522+E563+E604+E645+E686+E727+E768+E809+E850+E891+E932+E973+E1014+E1055+E1096+E1137 -> 232.2371727 | F25: =F71+F112+F153+F194+F235+F276+F317+F358+F399+F440+F481+F522+F563+F604+F645+F686+F727+F768+F809+F850+F891+F932+F973+F1014+F1055+F1096+F1137 -> 617.1845017 | G25: Σ(INPUT6) | CALC | I25: Updated to include additional asset classes.
A26: less Disposals without revaluations | D26: =D63+D104+D145+D186+D227+D268+D309+D350+D391+D432+D473+D514+D555+D596+D637+D678+D719+D760+D801+D842+D883+D924+D965+D1006+D1047+D1088+D1129 -> 0 | E26: 0 | F26: 0 | G26: Σ(INPUT3) | I26: Updated to include additional asset classes.
A27: add Total value of commissioned assets | D27: 8319.261752 | E27: 11145.99001 | F27: 11881.76128 | G27: Σ(RAB) | I27: Updated to include additional asset classes.
A28: Closing RAB value without revaluations | D28: =D24-D25-D26+D27 -> 8319.261752 | E28: =E24-E25-E26+E27 -> 19233.01459 | F28: =F24-F25-F26+F27 -> 30497.59136 | G28: CALC | I28: Updated to include additional asset classes.
A29: Warning: out of balance | D29: =D65+D106+D147+D188+D229+D270+D311+D352+D393+D434+D475+D516+D557+D598+D639+D680+D721+D762+D803+D844+D885+D926+D967+D1008+D1049+D1090+D1131-D28 -> 0 | E29: =E65+E106+E147+E188+E229+E270+E311+E352+E393+E434+E475+E516+E557+E598+E639+E680+E721+E762+E803+E844+E885+E926+E967+E1008+E1049+E1090+E1131-E28 -> 0 | F29: =F65+F106+F147+F188+F229+F270+F311+F352+F393+F434+F475+F516+F557+F598+F639+F680+F721+F762+F803+F844+F885+F926+F967+F1008+F1049+F1090+F1131-F28 -> 0 | I29: Updated to include additional asset classes.
A31: RAB BREAKDOWN BY ASSET CLASSES
H32: Asset Category
A33: ='INPUTS '!C10 -> One | H33: for formatting purposes
A34: =INDEX('INPUTS '!$I$10:$I$36,MATCH(A33,'INPUTS '!$C$10:$C$36,0)) -> RY19 earthquake readiness expenditure - Subtransmission lines
A35: ="Total Opening RAB value ("&A34&")" -> Total Opening RAB value (RY19 earthquake readiness expenditure - Subtransmission lines) | H35: 1
H36: 1
A37: Opening RAB value | D37: =IF($H37>'INPUTS '!$C$9,0,IF(D$4='INPUTS '!$D$4,'INPUTS '!$D$10,C42)) -> 0 | E37: =IF($H37>'INPUTS '!$C$9,0,IF(E$4='INPUTS '!$D$4,'INPUTS '!$D$10,D42)) -> 2495.276483 | F37: =IF($H37>'INPUTS '!$C$9,0,IF(F$4='INPUTS '!$D$4,'INPUTS '!$D$10,E42)) -> 2501.201839 | G37: INPUT2 | CALC | H37: 1 | I37: RY19 linked to input sheet. No change in logic from 2013 CPP model. Consistent with IM 5.3.6.
A38: less Depreciation | D38: =D57 -> 0 | E38: =E57 -> 45.36866333 | F38: =F57 -> 46.31855258 | G38: RAB | H38: 1 | I38: No change in logic from 2013 CPP model. Consistent with IM 5.3.6.
A39: less Disposals | D39: =IF($H39>'INPUTS '!$C$9,0,'INPUTS '!D$38) -> 0 | E39: =IF($H39>'INPUTS '!$C$9,0,'INPUTS '!E$38) -> 0 | F39: =IF($H39>'INPUTS '!$C$9,0,'INPUTS '!F$38) -> 0 | G39: INPUT3 | H39: 1 | I39: No change in logic from 2013 CPP model. Consistent with IM 5.3.6.
A40: add Revaluation | D40: =D51 -> 0 | E40: =E51 -> 51.29401952 | F40: =F51 -> 47.52283494 | G40: RAB | H40: 1 | I40: No change in logic from 2013 CPP model. Consistent with IM 5.3.6.
A41: add Total value of commissioned assets | D41: =IF($H41>'INPUTS '!$C$9,0,'INPUTS '!D$66) -> 2495.276483 | E41: =IF($H41>'INPUTS '!$C$9,0,'INPUTS '!E$66) -> 0 | F41: =IF($H41>'INPUTS '!$C$9,0,'INPUTS '!F$66) -> 0 | G41: INPUT4 | H41: 1 | I41: No change in logic from 2013 CPP model. Consistent with IM 5.3.6.
A42: Closing RAB value | D42: =D37-D38-D39+D40+D41 -> 2495.276483 | E42: =E37-E38-E39+E40+E41 -> 2501.201839 | F42: =F37-F38-F39+F40+F41 -> 2502.406122 | H42: 1 | I42: No change in logic from 2013 CPP model. Consistent with IM 5.3.6.
H43: 1 | I43: No change in logic from 2013 CPP model. Consistent with IM 5.3.6.
A44: ="Total Revaluation ("&A34&")" -> Total Revaluation (RY19 earthquake readiness expenditure - Subtransmission lines) | H44: 1
H45: 1
A46: Opening RAB value | D46: =D37 -> 0 | E46: =E37 -> 2495.276483 | F46: =F37 -> 2501.201839 | G46: RAB | H46: 1 | I46: No change in logic from 2013 CPP model. Consistent with IM 5.3.10.
A47: less Fully depreciated assets | D47: =IF($H47>'INPUTS '!$C$9,0,'INPUTS '!D$180) -> 0 | E47: =IF($H47>'INPUTS '!$C$9,0,'INPUTS '!E$180) -> 0 | F47: =IF($H47>'INPUTS '!$C$9,0,'INPUTS '!F$180) -> 0 | G47: INPUT9 | H47: 1 | I47: No change in logic from 2013 CPP model. Consistent with IM 5.3.10.
A48: less Disposals | D48: =IF($H48>'INPUTS '!$C$9,0,'INPUTS '!D$38) -> 0 | E48: =IF($H48>'INPUTS '!$C$9,0,'INPUTS '!E$38) -> 0 | F48: =IF($H48>'INPUTS '!$C$9,0,'INPUTS '!F$38) -> 0 | G48: INPUT3 | H48: 1 | I48: No change in logic from 2013 CPP model. Consistent with IM 5.3.10.
A49: Adjusted RAB value | D49: =D46-D47-D48 -> 0 | E49: =E46-E47-E48 -> 2495.276483 | F49: =F46-F47-F48 -> 2501.201839 | G49: CALC | H49: 1 | I49: No change in logic from 2013 CPP model. Consistent with IM 5.3.10.
A50: multiply by Revaluation rate | D50: ='INPUTS '!D$94 -> 0.0211128946 | E50: ='INPUTS '!E$94 -> 0.0205564473 | F50: ='INPUTS '!F$94 -> 0.019 | G50: INPUT5 | H50: 1 | I50: No change in logic from 2013 CPP model. Consistent with IM 5.3.10.
A51: Total Revaluation | D51: =D49*D50 -> 0 | E51: =E49*E50 -> 51.29401952 | F51: =F49*F50 -> 47.52283494 | G51: CALC | RAB | H51: 1 | I51: No change in logic from 2013 CPP model. Consistent with IM 5.3.10.
H52: 1
A53: ="Total depreciation ("&A34&")" -> Total depreciation (RY19 earthquake readiness expenditure - Subtransmission lines) | H53: 1
H54: 1
A55: Opening RAB value | D55: =D37 -> 0 | E55: =E37 -> 2495.276483 | F55: =F37 -> 2501.201839 | G55: RAB | H55: 1 | I55: No change in logic from 2013 CPP model. Consistent with 5.3.7 (2)(b)
A56: multiply by (1 / Remaining asset life) | D56: =IF($H56>'INPUTS '!$C$9,0,IFERROR(1/'INPUTS '!D$96,0)) -> 0 | E56: =IF($H56>'INPUTS '!$C$9,0,IFERROR(1/'INPUTS '!E$96,0)) -> 0.01818181818 | F56: =IF($H56>'INPUTS '!$C$9,0,IFERROR(1/'INPUTS '!F$96,0)) -> 0.01851851852 | G56: INPUT6 | CALC | H56: 1 | I56: No change in logic from 2013 CPP model. Consistent with 5.3.7 (2)(b)
A57: Total depreciation | D57: =IFERROR(D55*D56,0) -> 0 | E57: =IFERROR(E55*E56,0) -> 45.36866333 | F57: =IFERROR(F55*F56,0) -> 46.31855258 | H57: 1 | I57: No change in logic from 2013 CPP model. Consistent with 5.3.7 (2)(b)
H58: 1
A59: ="Total opening RAB value without revaluations ("&A34&")" -> Total opening RAB value without revaluations (RY19 earthquake readiness expenditure - Subtransmission lines) | H59: 1
H60: 1
A61: Opening RAB value without revaluations | D61: =IF($H61>'INPUTS '!$C$9,0,IF(D$4='INPUTS '!$D$4,'INPUTS '!D$124,C65)) -> 0 | E61: =IF($H61>'INPUTS '!$C$9,0,IF(E$4='INPUTS '!$D$4,'INPUTS '!E$124,D65)) -> 2495.276483 | F61: =IF($H61>'INPUTS '!$C$9,0,IF(F$4='INPUTS '!$D$4,'INPUTS '!F$124,E65)) -> 2449.90782 | G61: INPUT7 | CALC | H61: 1 | I61: RY19 linked to input sheet. No change in logic from 2013 CPP model. Consistent with adjusted depreciation definition in IM 1.1.4.
A62: less Adjusted depreciation | D62: =D71 -> 0 | E62: =E71 -> 45.36866333 | F62: =F71 -> 45.36866333 | G62: RAB6 | H62: 1 | I62: No change in logic from 2013 CPP model. Consistent with adjusted depreciation definition in IM 1.1.4.
A63: less Disposals without revaluations | D63: =IF($H63>'INPUTS '!$C$9,0,'INPUTS '!D$152) -> 0 | E63: =IF($H63>'INPUTS '!$C$9,0,'INPUTS '!E$152) -> 0 | F63: =IF($H63>'INPUTS '!$C$9,0,'INPUTS '!F$152) -> 0 | G63: INPUT8 | H63: 1 | I63: No change in logic from 2013 CPP model. Consistent with adjusted depreciation definition in IM 1.1.4.
A64: add Total value of commissioned assets | D64: =D41 -> 2495.276483 | E64: =E41 -> 0 | F64: =F41 -> 0 | G64: INPUT4 | H64: 1 | I64: No change in logic from 2013 CPP model. Consistent with adjusted depreciation definition in IM 1.1.4.
A65: Closing RAB value without revaluations | D65: =D61-D62-D63+D64 -> 2495.276483 | E65: =E61-E62-E63+E64 -> 2449.90782 | F65: =F61-F62-F63+F64 -> 2404.539156 | G65: CALC | H65: 1 | I65: No change in logic from 2013 CPP model. Consistent with adjusted depreciation definition in IM 1.1.4.
H66: 1
A67: ="Total adjusted depreciation ("&A34&")" -> Total adjusted depreciation (RY19 earthquake readiness expenditure - Subtransmission lines) | H67: 1
H68: 1
A69: Opening RAB value | D69: =D61 -> 0 | E69: =E61 -> 2495.276483 | F69: =F61 -> 2449.90782 | G69: INPUT7 | CALC | H69: 1 | I69: No change in logic from 2013 CPP model. Consistent with adjusted depreciation definition in IM 1.1.4.
A70: multiply by (1 / Remaining asset life) | D70: =IF($H70>'INPUTS '!$C$9,0,IFERROR(1/'INPUTS '!D$96,0)) -> 0 | E70: =IF($H70>'INPUTS '!$C$9,0,IFERROR(1/'INPUTS '!E$96,0)) -> 0.01818181818 | F70: =IF($H70>'INPUTS '!$C$9,0,IFERROR(1/'INPUTS '!F$96,0)) -> 0.01851851852 | G70: INPUT6 | CALC | H70: 1 | I70: Linked to input sheet. Consistent with adjusted depreciation definition in IM 1.1.4.
A71: Total depreciation | D71: =IFERROR(D69*D70,0) -> 0 | E71: =IFERROR(E69*E70,0) -> 45.36866333 | F71: =IFERROR(F69*F70,0) -> 45.36866333 | H71: 1 | I71: No change in logic from 2013 CPP model. Consistent with adjusted depreciation definition in IM 1.1.4.
H72: 1
H73: 1
A74: =('INPUTS '!C39) -> Two | H74: 2
A75: =INDEX('INPUTS '!$I$10:$I$36,MATCH(A74,'INPUTS '!$C$10:$C$36,0)) -> RY20 earthquake readiness expenditure - Subtransmission lines | H75: 2
A76: ="Total Opening RAB value ("&A75&")" -> Total Opening RAB value (RY20 earthquake readiness expenditure - Subtransmission lines) | H76: 2
H77: 2
A78: Opening RAB value | D78: =IF($H78>'INPUTS '!$C$9,0,IF(D$4='INPUTS '!$D$4,'INPUTS '!$D$11,C83)) -> 0 | E78: =IF($H78>'INPUTS '!$C$9,0,IF(E$4='INPUTS '!$D$4,'INPUTS '!$D$11,D83)) -> 0 | F78: =IF($H78>'INPUTS '!$C$9,0,IF(F$4='INPUTS '!$D$4,'INPUTS '!$D$11,E83)) -> 2109.778332 | G78: INPUT2 | CALC | H78: 2 | I78: RY19 linked to input sheet. No change in logic from 2013 CPP model. Consistent with IM 5.3.6.
A79: less Depreciation | D79: =D98 -> 0 | E79: =E98 -> 0 | F79: =F98 -> 38.35960604 | G79: I-RAB5 | H79: 2 | I79: No change in logic from 2013 CPP model. Consistent with IM 5.3.6.
A80: less Disposals | D80: =IF($H80>'INPUTS '!$C$9,0,'INPUTS '!D$39) -> 0 | E80: =IF($H80>'INPUTS '!$C$9,0,'INPUTS '!E$39) -> 0 | F80: =IF($H80>'INPUTS '!$C$9,0,'INPUTS '!F$39) -> 0 | G80: INPUT3 | H80: 2 | I80: No change in logic from 2013 CPP model. Consistent with IM 5.3.6.
A81: add Revaluation | D81: =D92 -> 0 | E81: =E92 -> 0 | F81: =F92 -> 40.08578831 | G81: I-RAB4 | H81: 2 | I81: No change in logic from 2013 CPP model. Consistent with IM 5.3.6.
A82: add Total value of commissioned assets | D82: =IF($H82>'INPUTS '!$C$9,0,'INPUTS '!D$67) -> 0 | E82: =IF($H82>'INPUTS '!$C$9,0,'INPUTS '!E$67) -> 2109.778332 | F82: =IF($H82>'INPUTS '!$C$9,0,'INPUTS '!F$67) -> 0 | G82: INPUT4 | H82: 2 | I82: No change in logic from 2013 CPP model. Consistent with IM 5.3.6.
A83: Closing RAB value | D83: =D78-D79-D80+D81+D82 -> 0 | E83: =E78-E79-E80+E81+E82 -> 2109.778332 | F83: =F78-F79-F80+F81+F82 -> 2111.504515 | H83: 2 | I83: No change in logic from 2013 CPP model. Consistent with IM 5.3.6.
H84: 2 | I84: No change in logic from 2013 CPP model. Consistent with IM 5.3.6.
A85: ="Total Revaluation ("&A75&")" -> Total Revaluation (RY20 earthquake readiness expenditure - Subtransmission lines) | H85: 2
H86: 2
A87: Opening RAB value | D87: =D78 -> 0 | E87: =E78 -> 0 | F87: =F78 -> 2109.778332 | G87: I-RAB1 | H87: 2 | I87: No change in logic from 2013 CPP model. Consistent with IM 5.3.10.
A88: less Fully depreciated assets | D88: =IF($H88>'INPUTS '!$C$9,0,'INPUTS '!D$181) -> 0 | E88: =IF($H88>'INPUTS '!$C$9,0,'INPUTS '!E$181) -> 0 | F88: =IF($H88>'INPUTS '!$C$9,0,'INPUTS '!F$181) -> 0 | G88: INPUT9 | H88: 2 | I88: No change in logic from 2013 CPP model. Consistent with IM 5.3.10.
A89: less Disposals | D89: =IF($H89>'INPUTS '!$C$9,0,'INPUTS '!D$39) -> 0 | E89: =IF($H89>'INPUTS '!$C$9,0,'INPUTS '!E$39) -> 0 | F89: =IF($H89>'INPUTS '!$C$9,0,'INPUTS '!F$39) -> 0 | G89: INPUT3 | H89: 2 | I89: No change in logic from 2013 CPP model. Consistent with IM 5.3.10.
A90: Adjusted RAB value | D90: =D87-D88-D89 -> 0 | E90: =E87-E88-E89 -> 0 | F90: =F87-F88-F89 -> 2109.778332 | G90: CALC | H90: 2 | I90: No change in logic from 2013 CPP model. Consistent with IM 5.3.10.
A91: multiply by Revaluation rate | D91: ='INPUTS '!D$94 -> 0.0211128946 | E91: ='INPUTS '!E$94 -> 0.0205564473 | F91: ='INPUTS '!F$94 -> 0.019 | G91: INPUT5 | H91: 2 | I91: No change in logic from 2013 CPP model. Consistent with IM 5.3.10.
A92: Total Revaluation | D92: =D90*D91 -> 0 | E92: =E90*E91 -> 0 | F92: =F90*F91 -> 40.08578831 | G92: CALC | O-RAB4 | H92: 2 | I92: No change in logic from 2013 CPP model. Consistent with IM 5.3.10.
H93: 2
A94: ="Total depreciation ("&A75&")" -> Total depreciation (RY20 earthquake readiness expenditure - Subtransmission lines) | H94: 2
H95: 2
A96: Opening RAB value | D96: =D78 -> 0 | E96: =E78 -> 0 | F96: =F78 -> 2109.778332 | G96: I-RAB1 | H96: 2 | I96: No change in logic from 2013 CPP model. Consistent with 5.3.7 (2)(b)
A97: multiply by (1 / Remaining asset life) | D97: =IF($H97>'INPUTS '!$C$9,0,IFERROR(1/'INPUTS '!D$97,0)) -> 0 | E97: =IF($H97>'INPUTS '!$C$9,0,IFERROR(1/'INPUTS '!E$97,0)) -> 0 | F97: =IF($H97>'INPUTS '!$C$9,0,IFERROR(1/'INPUTS '!F$97,0)) -> 0.01818181818 | G97: INPUT6 | CALC | H97: 2 | I97: No change in logic from 2013 CPP model. Consistent with 5.3.7 (2)(b)
A98: Total depreciation | D98: =IFERROR(D96*D97,0) -> 0 | E98: =IFERROR(E96*E97,0) -> 0 | F98: =IFERROR(F96*F97,0) -> 38.35960604 | G98: O-RAB5 | H98: 2 | I98: No change in logic from 2013 CPP model. Consistent with 5.3.7 (2)(b)
H99: 2
A100: ="Total opening RAB value without revaluations ("&A75&")" -> Total opening RAB value without revaluations (RY20 earthquake readiness expenditure - Subtransmission lines) | H100: 2
H101: 2
A102: Opening RAB value without revaluations | D102: =IF($H102>'INPUTS '!$C$9,0,IF(D$4='INPUTS '!$D$4,'INPUTS '!$D$125,C106)) -> 0 | E102: =IF($H102>'INPUTS '!$C$9,0,IF(E$4='INPUTS '!$D$4,'INPUTS '!$D$125,D106)) -> 0 | F102: =IF($H102>'INPUTS '!$C$9,0,IF(F$4='INPUTS '!$D$4,'INPUTS '!$D$125,E106)) -> 2109.778332 | G102: INPUT7 | CALC | H102: 2 | I102: RY19 linked to input sheet. No change in logic from 2013 CPP model. Consistent with adjusted depreciation definition in IM 1.1.4.
A103: less Adjusted depreciation | D103: =D112 -> 0 | E103: =E112 -> 0 | F103: =F112 -> 38.35960604 | G103: I-RAB6 | H103: 2 | I103: No change in logic from 2013 CPP model. Consistent with adjusted depreciation definition in IM 1.1.4.
A104: less Disposals without revaluations | D104: =IF($H104>'INPUTS '!$C$9,0,'INPUTS '!D$153) -> 0 | E104: =IF($H104>'INPUTS '!$C$9,0,'INPUTS '!E$153) -> 0 | F104: =IF($H104>'INPUTS '!$C$9,0,'INPUTS '!F$153) -> 0 | G104: INPUT8 | H104: 2 | I104: No change in logic from 2013 CPP model. Consistent with adjusted depreciation definition in IM 1.1.4.
A105: add Total value of commissioned assets | D105: =D82 -> 0 | E105: =E82 -> 2109.778332 | F105: =F82 -> 0 | G105: INPUT4 | H105: 2 | I105: No change in logic from 2013 CPP model. Consistent with adjusted depreciation definition in IM 1.1.4.
A106: Closing RAB value without revaluations | D106: =D102-D103-D104+D105 -> 0 | E106: =E102-E103-E104+E105 -> 2109.778332 | F106: =F102-F103-F104+F105 -> 2071.418726 | G106: CALC | H106: 2 | I106: No change in logic from 2013 CPP model. Consistent with adjusted depreciation definition in IM 1.1.4.
H107: 2
A108: ="Total adjusted depreciation ("&A75&")" -> Total adjusted depreciation (RY20 earthquake readiness expenditure - Subtransmission lines) | H108: 2
H109: 2
A110: Opening RAB value | D110: =D102 -> 0 | E110: =E102 -> 0 | F110: =F102 -> 2109.778332 | G110: INPUT7 | | H110: 2 | I110: No change in logic from 2013 CPP model. Consistent with adjusted depreciation definition in IM 1.1.4.
A111: multiply by (1 / Remaining asset life) | D111: =IF($H111>'INPUTS '!$C$9,0,IFERROR(1/'INPUTS '!D$97,0)) -> 0 | E111: =IF($H111>'INPUTS '!$C$9,0,IFERROR(1/'INPUTS '!E$97,0)) -> 0 | F111: =IF($H111>'INPUTS '!$C$9,0,IFERROR(1/'INPUTS '!F$97,0)) -> 0.01818181818 | G111: INPUT6 | CALC | H111: 2 | I111: No change in logic from 2013 CPP model. Consistent with adjusted depreciation definition in IM 1.1.4.
A112: Total depreciation | D112: =IFERROR(D110*D111,0) -> 0 | E112: =IFERROR(E110*E111,0) -> 0 | F112: =IFERROR(F110*F111,0) -> 38.35960604 | G112: O-RAB6 | H112: 2 | I112: No change in logic from 2013 CPP model. Consistent with adjusted depreciation definition in IM 1.1.4.
H113: 2
H114: 2
A115: =('INPUTS '!C12) -> Three | H115: 3
A116: =INDEX('INPUTS '!$I$10:$I$36,MATCH(A115,'INPUTS '!$C$10:$C$36,0)) -> RY21 earthquake readiness expenditure - Subtransmission lines | H116: 3
A117: ="Total Opening RAB value ("&A116&")" -> Total Opening RAB value (RY21 earthquake readiness expenditure - Subtransmission lines) | H117: 3
H118: 3
A119: Opening RAB value | D119: =IF($H119>'INPUTS '!$C$9,0,IF(D$4='INPUTS '!$D$4,'INPUTS '!$D$12,C124)) -> 0 | E119: =IF($H119>'INPUTS '!$C$9,0,IF(E$4='INPUTS '!$D$4,'INPUTS '!$D$12,D124)) -> 0 | F119: =IF($H119>'INPUTS '!$C$9,0,IF(F$4='INPUTS '!$D$4,'INPUTS '!$D$12,E124)) -> 0 | G119: INPUT2 | CALC | H119: 3 | I119: RY19 linked to input sheet. No change in logic from 2013 CPP model. Consistent with IM 5.3.6.
A120: less Depreciation | D120: =D139 -> 0 | E120: =E139 -> 0 | F120: =F139 -> 0 | G120: I-RAB5 | H120: 3 | I120: No change in logic from 2013 CPP model. Consistent with IM 5.3.6.
A121: less Disposals | D121: =IF($H121>'INPUTS '!$C$9,0,'INPUTS '!D$40) -> 0 | E121: =IF($H121>'INPUTS '!$C$9,0,'INPUTS '!E$40) -> 0 | F121: =IF($H121>'INPUTS '!$C$9,0,'INPUTS '!F$40) -> 0 | G121: INPUT3 | H121: 3 | I121: No change in logic from 2013 CPP model. Consistent with IM 5.3.6.
A122: add Revaluation | D122: =D133 -> 0 | E122: =E133 -> 0 | F122: =F133 -> 0 | G122: I-RAB4 | H122: 3 | I122: No change in logic from 2013 CPP model. Consistent with IM 5.3.6.
A123: add Total value of commissioned assets | D123: =IF($H123>'INPUTS '!$C$9,0,'INPUTS '!D$68) -> 0 | E123: =IF($H123>'INPUTS '!$C$9,0,'INPUTS '!E$68) -> 0 | F123: =IF($H123>'INPUTS '!$C$9,0,'INPUTS '!F$68) -> 0 | G123: INPUT4 | H123: 3 | I123: No change in logic from 2013 CPP model. Consistent with IM 5.3.6.
A124: Closing RAB value | D124: =D119-D120-D121+D122+D123 -> 0 | E124: =E119-E120-E121+E122+E123 -> 0 | F124: =F119-F120-F121+F122+F123 -> 0 | H124: 3 | I124: No change in logic from 2013 CPP model. Consistent with IM 5.3.6.
H125: 3 | I125: No change in logic from 2013 CPP model. Consistent with IM 5.3.6.
A126: ="Total Revaluation ("&A116&")" -> Total Revaluation (RY21 earthquake readiness expenditure - Subtransmission lines) | H126: 3
H127: 3
A128: Opening RAB value | D128: =D119 -> 0 | E128: =E119 -> 0 | F128: =F119 -> 0 | G128: I-RAB1 | H128: 3 | I128: No change in logic from 2013 CPP model. Consistent with IM 5.3.10.
A129: less Fully depreciated assets | D129: =IF($H129>'INPUTS '!$C$9,0,'INPUTS '!D$182) -> 0 | E129: =IF($H129>'INPUTS '!$C$9,0,'INPUTS '!E$182) -> 0 | F129: =IF($H129>'INPUTS '!$C$9,0,'INPUTS '!F$182) -> 0 | G129: INPUT9 | H129: 3 | I129: No change in logic from 2013 CPP model. Consistent with IM 5.3.10.
A130: less Disposals | D130: =IF($H130>'INPUTS '!$C$9,0,'INPUTS '!D$40) -> 0 | E130: =IF($H130>'INPUTS '!$C$9,0,'INPUTS '!E$40) -> 0 | F130: =IF($H130>'INPUTS '!$C$9,0,'INPUTS '!F$40) -> 0 | G130: INPUT3 | H130: 3 | I130: No change in logic from 2013 CPP model. Consistent with IM 5.3.10.
A131: Adjusted RAB value | D131: =D128-D129-D130 -> 0 | E131: =E128-E129-E130 -> 0 | F131: =F128-F129-F130 -> 0 | G131: CALC | H131: 3 | I131: No change in logic from 2013 CPP model. Consistent with IM 5.3.10.
A132: multiply by Revaluation rate | D132: ='INPUTS '!D$94 -> 0.0211128946 | E132: ='INPUTS '!E$94 -> 0.0205564473 | F132: ='INPUTS '!F$94 -> 0.019 | G132: INPUT5 | H132: 3 | I132: No change in logic from 2013 CPP model. Consistent with IM 5.3.10.
A133: Total Revaluation | D133: =D131*D132 -> 0 | E133: =E131*E132 -> 0 | F133: =F131*F132 -> 0 | G133: CALC | O-RAB4 | H133: 3 | I133: No change in logic from 2013 CPP model. Consistent with IM 5.3.10.
H134: 3
A135: ="Total depreciation ("&A116&")" -> Total depreciation (RY21 earthquake readiness expenditure - Subtransmission lines) | H135: 3
H136: 3
A137: Opening RAB value | D137: =D119 -> 0 | E137: =E119 -> 0 | F137: =F119 -> 0 | G137: I-RAB1 | H137: 3 | I137: No change in logic from 2013 CPP model. Consistent with 5.3.7 (2)(b)
A138: multiply by (1 / Remaining asset life) | D138: =IF($H138>'INPUTS '!$C$9,0,IFERROR(1/'INPUTS '!D$98,0)) -> 0 | E138: =IF($H138>'INPUTS '!$C$9,0,IFERROR(1/'INPUTS '!E$98,0)) -> 0 | F138: =IF($H138>'INPUTS '!$C$9,0,IFERROR(1/'INPUTS '!F$98,0)) -> 0 | G138: INPUT6 | CALC | H138: 3 | I138: No change in logic from 2013 CPP model. Consistent with 5.3.7 (2)(b)
A139: Total depreciation | D139: =IFERROR(D137*D138,0) -> 0 | E139: =IFERROR(E137*E138,0) -> 0 | F139: =IFERROR(F137*F138,0) -> 0 | G139: O-RAB5 | H139: 3 | I139: No change in logic from 2013 CPP model. Consistent with 5.3.7 (2)(b)
H140: 3
A141: ="Total opening RAB value without revaluations ("&A116&")" -> Total opening RAB value without revaluations (RY21 earthquake readiness expenditure - Subtransmission lines) | H141: 3
H142: 3
A143: Opening RAB value without revaluations | D143: =IF($H143>'INPUTS '!$C$9,0,IF(D$4='INPUTS '!$D$4,'INPUTS '!$D$126,C147)) -> 0 | E143: =IF($H143>'INPUTS '!$C$9,0,IF(E$4='INPUTS '!$D$4,'INPUTS '!$D$126,D147)) -> 0 | F143: =IF($H143>'INPUTS '!$C$9,0,IF(F$4='INPUTS '!$D$4,'INPUTS '!$D$126,E147)) -> 0 | G143: INPUT7 | CALC | H143: 3 | I143: RY19 linked to input sheet. No change in logic from 2013 CPP model. Consistent with adjusted depreciation definition in IM 1.1.4.
A144: less Adjusted depreciation | D144: =D153 -> 0 | E144: =E153 -> 0 | F144: =F153 -> 0 | G144: I-RAB6 | H144: 3 | I144: No change in logic from 2013 CPP model. Consistent with adjusted depreciation definition in IM 1.1.4.
A145: less Disposals without revaluations | D145: =IF($H145>'INPUTS '!$C$9,0,'INPUTS '!D$154) -> 0 | E145: =IF($H145>'INPUTS '!$C$9,0,'INPUTS '!E$154) -> 0 | F145: =IF($H145>'INPUTS '!$C$9,0,'INPUTS '!F$154) -> 0 | G145: INPUT8 | H145: 3 | I145: No change in logic from 2013 CPP model. Consistent with adjusted depreciation definition in IM 1.1.4.
A146: add Total value of commissioned assets | D146: =D123 -> 0 | E146: =E123 -> 0 | F146: =F123 -> 0 | G146: INPUT4 | H146: 3 | I146: No change in logic from 2013 CPP model. Consistent with adjusted depreciation definition in IM 1.1.4.
A147: Closing RAB value without revaluations | D147: =D143-D144-D145+D146 -> 0 | E147: =E143-E144-E145+E146 -> 0 | F147: =F143-F144-F145+F146 -> 0 | G147: CALC | H147: 3 | I147: No change in logic from 2013 CPP model. Consistent with adjusted depreciation definition in IM 1.1.4.
H148: 3
A149: ="Total adjusted depreciation ("&A116&")" -> Total adjusted depreciation (RY21 earthquake readiness expenditure - Subtransmission lines) | H149: 3
H150: 3
A151: Opening RAB value | D151: =D143 -> 0 | E151: =E143 -> 0 | F151: =F143 -> 0 | G151: INPUT7 | | H151: 3 | I151: No change in logic from 2013 CPP model. Consistent with adjusted depreciation definition in IM 1.1.4.
A152: multiply by (1 / Remaining asset life) | D152: =IF($H152>'INPUTS '!$C$9,0,IFERROR(1/'INPUTS '!D$98,0)) -> 0 | E152: =IF($H152>'INPUTS '!$C$9,0,IFERROR(1/'INPUTS '!E$98,0)) -> 0 | F152: =IF($H152>'INPUTS '!$C$9,0,IFERROR(1/'INPUTS '!F$98,0)) -> 0 | G152: INPUT6 | CALC | H152: 3 | I152: No change in logic from 2013 CPP model. Consistent with adjusted depreciation definition in IM 1.1.4.
A153: Total depreciation | D153: =IFERROR(D151*D152,0) -> 0 | E153: =IFERROR(E151*E152,0) -> 0 | F153: =IFERROR(F151*F152,0) -> 0 | G153: O-RAB6 | H153: 3 | I153: No change in logic from 2013 CPP model. Consistent with adjusted depreciation definition in IM 1.1.4.
H154: 3
H155: 3
A156: =('INPUTS '!C127) -> Four | H156: =H115+1 -> 4
A157: =INDEX('INPUTS '!$I$10:$I$36,MATCH(A156,'INPUTS '!$C$10:$C$36,0)) -> RY19 earthquake readiness expenditure - Subtransmission cables | H157: 4
A158: ="Total Opening RAB value ("&A157&")" -> Total Opening RAB value (RY19 earthquake readiness expenditure - Subtransmission cables) | H158: 4
H159: 4
A160: Opening RAB value | D160: =IF($H160>'INPUTS '!$C$9,0,IF(D$4='INPUTS '!$D$4,'INPUTS '!$D$13,C165)) -> 0 | E160: =IF($H160>'INPUTS '!$C$9,0,IF(E$4='INPUTS '!$D$4,'INPUTS '!$D$13,D165)) -> 85.054944 | F160: =IF($H160>'INPUTS '!$C$9,0,IF(F$4='INPUTS '!$D$4,'INPUTS '!$D$13,E165)) -> 85.25691795 | G160: INPUT2 | CALC | H160: 4 | I160: RY19 linked to input sheet. No change in logic from 2013 CPP model. Consistent with IM 5.3.6.
A161: less Depreciation | D161: =D180 -> 0 | E161: =E180 -> 1.546453527 | F161: =F180 -> 1.578831814 | G161: I-RAB5 | H161: 4 | I161: No change in logic from 2013 CPP model. Consistent with IM 5.3.6.
A162: less Disposals | D162: =IF($H162>'INPUTS '!$C$9,0,'INPUTS '!D$41) -> 0 | E162: =IF($H162>'INPUTS '!$C$9,0,'INPUTS '!E$41) -> 0 | F162: =IF($H162>'INPUTS '!$C$9,0,'INPUTS '!F$41) -> 0 | G162: INPUT3 | H162: 4 | I162: No change in logic from 2013 CPP model. Consistent with IM 5.3.6.
A163: add Revaluation | D163: =D174 -> 0 | E163: =E174 -> 1.748427474 | F163: =F174 -> 1.619881441 | G163: I-RAB4 | H163: 4 | I163: No change in logic from 2013 CPP model. Consistent with IM 5.3.6.
A164: add Total value of commissioned assets | D164: =IF($H164>'INPUTS '!$C$9,0,'INPUTS '!D$69) -> 85.054944 | E164: =IF($H164>'INPUTS '!$C$9,0,'INPUTS '!E$69) -> 0 | F164: =IF($H164>'INPUTS '!$C$9,0,'INPUTS '!F$69) -> 0 | G164: INPUT4 | H164: 4 | I164: No change in logic from 2013 CPP model. Consistent with IM 5.3.6.
A165: Closing RAB value | D165: =D160-D161-D162+D163+D164 -> 85.054944 | E165: =E160-E161-E162+E163+E164 -> 85.25691795 | F165: =F160-F161-F162+F163+F164 -> 85.29796757 | H165: 4 | I165: No change in logic from 2013 CPP model. Consistent with IM 5.3.6.
H166: 4 | I166: No change in logic from 2013 CPP model. Consistent with IM 5.3.6.
A167: ="Total Revaluation ("&A157&")" -> Total Revaluation (RY19 earthquake readiness expenditure - Subtransmission cables) | H167: 4
H168: 4
A169: Opening RAB value | D169: =D160 -> 0 | E169: =E160 -> 85.054944 | F169: =F160 -> 85.25691795 | G169: I-RAB1 | H169: 4 | I169: No change in logic from 2013 CPP model. Consistent with IM 5.3.10.
A170: less Fully depreciated assets | D170: =IF($H170>'INPUTS '!$C$9,0,'INPUTS '!D$183) -> 0 | E170: =IF($H170>'INPUTS '!$C$9,0,'INPUTS '!E$183) -> 0 | F170: =IF($H170>'INPUTS '!$C$9,0,'INPUTS '!F$183) -> 0 | G170: INPUT9 | H170: 4 | I170: No change in logic from 2013 CPP model. Consistent with IM 5.3.10.
A171: less Disposals | D171: =IF($H171>'INPUTS '!$C$9,0,'INPUTS '!D$41) -> 0 | E171: =IF($H171>'INPUTS '!$C$9,0,'INPUTS '!E$41) -> 0 | F171: =IF($H171>'INPUTS '!$C$9,0,'INPUTS '!F$41) -> 0 | G171: INPUT3 | H171: 4 | I171: No change in logic from 2013 CPP model. Consistent with IM 5.3.10.
A172: Adjusted RAB value | D172: =D169-D170-D171 -> 0 | E172: =E169-E170-E171 -> 85.054944 | F172: =F169-F170-F171 -> 85.25691795 | G172: CALC | H172: 4 | I172: No change in logic from 2013 CPP model. Consistent with IM 5.3.10.
A173: multiply by Revaluation rate | D173: ='INPUTS '!D$94 -> 0.0211128946 | E173: ='INPUTS '!E$94 -> 0.0205564473 | F173: ='INPUTS '!F$94 -> 0.019 | G173: INPUT5 | H173: 4 | I173: No change in logic from 2013 CPP model. Consistent with IM 5.3.10.
A174: Total Revaluation | D174: =D172*D173 -> 0 | E174: =E172*E173 -> 1.748427474 | F174: =F172*F173 -> 1.619881441 | G174: CALC | O-RAB4 | H174: 4 | I174: No change in logic from 2013 CPP model. Consistent with IM 5.3.10.
H175: 4
A176: ="Total depreciation ("&A157&")" -> Total depreciation (RY19 earthquake readiness expenditure - Subtransmission cables) | H176: 4
H177: 4
A178: Opening RAB value | D178: =D160 -> 0 | E178: =E160 -> 85.054944 | F178: =F160 -> 85.25691795 | G178: I-RAB1 | H178: 4 | I178: No change in logic from 2013 CPP model. Consistent with 5.3.7 (2)(b)
A179: multiply by (1 / Remaining asset life) | D179: =IF($H179>'INPUTS '!$C$9,0,IFERROR(1/'INPUTS '!D$99,0)) -> 0 | E179: =IF($H179>'INPUTS '!$C$9,0,IFERROR(1/'INPUTS '!E$99,0)) -> 0.01818181818 | F179: =IF($H179>'INPUTS '!$C$9,0,IFERROR(1/'INPUTS '!F$99,0)) -> 0.01851851852 | G179: INPUT6 | CALC | H179: 4 | I179: No change in logic from 2013 CPP model. Consistent with 5.3.7 (2)(b)
A180: Total depreciation | D180: =IFERROR(D178*D179,0) -> 0 | E180: =IFERROR(E178*E179,0) -> 1.546453527 | F180: =IFERROR(F178*F179,0) -> 1.578831814 | G180: O-RAB5 | H180: 4 | I180: No change in logic from 2013 CPP model. Consistent with 5.3.7 (2)(b)
H181: 4
A182: ="Total opening RAB value without revaluations ("&A157&")" -> Total opening RAB value without revaluations (RY19 earthquake readiness expenditure - Subtransmission cables) | H182: 4
H183: 4
A184: Opening RAB value without revaluations | D184: =IF($H184>'INPUTS '!$C$9,0,IF(D$4='INPUTS '!$D$4,'INPUTS '!$D$127,C188)) -> 0 | E184: =IF($H184>'INPUTS '!$C$9,0,IF(E$4='INPUTS '!$D$4,'INPUTS '!$D$127,D188)) -> 85.054944 | F184: =IF($H184>'INPUTS '!$C$9,0,IF(F$4='INPUTS '!$D$4,'INPUTS '!$D$127,E188)) -> 83.50849047 | G184: INPUT7 | CALC | H184: 4 | I184: RY19 linked to input sheet. No change in logic from 2013 CPP model. Consistent with adjusted depreciation definition in IM 1.1.4.
A185: less Adjusted depreciation | D185: =D194 -> 0 | E185: =E194 -> 1.546453527 | F185: =F194 -> 1.546453527 | G185: I-RAB6 | H185: 4 | I185: No change in logic from 2013 CPP model. Consistent with adjusted depreciation definition in IM 1.1.4.
A186: less Disposals without revaluations | D186: =IF($H186>'INPUTS '!$C$9,0,'INPUTS '!D$155) -> 0 | E186: =IF($H186>'INPUTS '!$C$9,0,'INPUTS '!E$155) -> 0 | F186: =IF($H186>'INPUTS '!$C$9,0,'INPUTS '!F$155) -> 0 | G186: INPUT8 | H186: 4 | I186: No change in logic from 2013 CPP model. Consistent with adjusted depreciation definition in IM 1.1.4.
A187: add Total value of commissioned assets | D187: =D164 -> 85.054944 | E187: =E164 -> 0 | F187: =F164 -> 0 | G187: INPUT4 | H187: 4 | I187: No change in logic from 2013 CPP model. Consistent with adjusted depreciation definition in IM 1.1.4.
A188: Closing RAB value without revaluations | D188: =D184-D185-D186+D187 -> 85.054944 | E188: =E184-E185-E186+E187 -> 83.50849047 | F188: =F184-F185-F186+F187 -> 81.96203695 | G188: CALC | H188: 4 | I188: No change in logic from 2013 CPP model. Consistent with adjusted depreciation definition in IM 1.1.4.
H189: 4
A190: ="Total adjusted depreciation ("&A157&")" -> Total adjusted depreciation (RY19 earthquake readiness expenditure - Subtransmission cables) | H190: 4
H191: 4
A192: Opening RAB value | D192: =D184 -> 0 | E192: =E184 -> 85.054944 | F192: =F184 -> 83.50849047 | G192: INPUT7 | | H192: 4 | I192: No change in logic from 2013 CPP model. Consistent with adjusted depreciation definition in IM 1.1.4.
A193: multiply by (1 / Remaining asset life) | D193: =IF($H193>'INPUTS '!$C$9,0,IFERROR(1/'INPUTS '!D$99,0)) -> 0 | E193: =IF($H193>'INPUTS '!$C$9,0,IFERROR(1/'INPUTS '!E$99,0)) -> 0.01818181818 | F193: =IF($H193>'INPUTS '!$C$9,0,IFERROR(1/'INPUTS '!F$99,0)) -> 0.01851851852 | G193: INPUT6 | CALC | H193: 4 | I193: No change in logic from 2013 CPP model. Consistent with adjusted depreciation definition in IM 1.1.4.
A194: Total depreciation | D194: =IFERROR(D192*D193,0) -> 0 | E194: =IFERROR(E192*E193,0) -> 1.546453527 | F194: =IFERROR(F192*F193,0) -> 1.546453527 | G194: O-RAB6 | H194: 4 | I194: No change in logic from 2013 CPP model. Consistent with adjusted depreciation definition in IM 1.1.4.
H195: 4
H196: 4
A197: =('INPUTS '!C14) -> Five | H197: 5
A198: =INDEX('INPUTS '!$I$10:$I$36,MATCH(A197,'INPUTS '!$C$10:$C$36,0)) -> RY20 earthquake readiness expenditure - Subtransmission cables | H198: 5
A199: ="Total Opening RAB value ("&A198&")" -> Total Opening RAB value (RY20 earthquake readiness expenditure - Subtransmission cables) | H199: 5
H200: 5
A201: Opening RAB value | D201: =IF($H201>'INPUTS '!$C$9,0,IF(D$4='INPUTS '!$D$4,'INPUTS '!$D$14,C206)) -> 0 | E201: =IF($H201>'INPUTS '!$C$9,0,IF(E$4='INPUTS '!$D$4,'INPUTS '!$D$14,D206)) -> 0 | F201: =IF($H201>'INPUTS '!$C$9,0,IF(F$4='INPUTS '!$D$4,'INPUTS '!$D$14,E206)) -> 189.1794486 | G201: INPUT2 | CALC | H201: 5 | I201: RY19 linked to input sheet. No change in logic from 2013 CPP model. Consistent with IM 5.3.6.
A202: less Depreciation | D202: =D221 -> 0 | E202: =E221 -> 0 | F202: =F221 -> 3.439626337 | G202: I-RAB5 | H202: 5 | I202: No change in logic from 2013 CPP model. Consistent with IM 5.3.6.
A203: less Disposals | D203: =IF($H203>'INPUTS '!$C$9,0,'INPUTS '!D$42) -> 0 | E203: =IF($H203>'INPUTS '!$C$9,0,'INPUTS '!E$42) -> 0 | F203: =IF($H203>'INPUTS '!$C$9,0,'INPUTS '!F$42) -> 0 | G203: INPUT3 | H203: 5 | I203: No change in logic from 2013 CPP model. Consistent with IM 5.3.6.
A204: add Revaluation | D204: =D215 -> 0 | E204: =E215 -> 0 | F204: =F215 -> 3.594409522 | G204: I-RAB4 | H204: 5 | I204: No change in logic from 2013 CPP model. Consistent with IM 5.3.6.
A205: add Total value of commissioned assets | D205: =IF($H205>'INPUTS '!$C$9,0,'INPUTS '!D$70) -> 0 | E205: =IF($H205>'INPUTS '!$C$9,0,'INPUTS '!E$70) -> 189.1794486 | F205: =IF($H205>'INPUTS '!$C$9,0,'INPUTS '!F$70) -> 0 | G205: INPUT4 | H205: 5 | I205: No change in logic from 2013 CPP model. Consistent with IM 5.3.6.
A206: Closing RAB value | D206: =D201-D202-D203+D204+D205 -> 0 | E206: =E201-E202-E203+E204+E205 -> 189.1794486 | F206: =F201-F202-F203+F204+F205 -> 189.3342317 | H206: 5 | I206: No change in logic from 2013 CPP model. Consistent with IM 5.3.6.
H207: 5 | I207: No change in logic from 2013 CPP model. Consistent with IM 5.3.6.
A208: ="Total Revaluation ("&A198&")" -> Total Revaluation (RY20 earthquake readiness expenditure - Subtransmission cables) | H208: 5
H209: 5
... 934 more rows

Sheet INPUTS
A1: WELLINGTON ELECTRICITY EXTERNAL INPUTS MODULE | D1: There are no differences on this sheet between the 2018 model and this reconsideration model.
D3: CPP Regulatory Period
A4: Ref. | B4: Input Name | C4: Discrete Input | D4: =$D$5 -> 2019 | E4: =D4+1 -> 2020 | F4: =E4+1 -> 2021 | G4: Description | I4: Input explanation
A5: INPUT1 | B5: CPP regulatory period | C5: 3 | D5: 2019 | G5: The period of continuous disclosure years in respect of which the customised price-quality path applies. Input the number of years in the regulatory period and the first year in the regulatory period. | I5: 3 year CPP regulatory period starting RY19 consistent with CPP proposal.
A7: INPUT2 | B7: Opening or closing RAB values for ID years | C7: Number of Asset Classes | G7: A series of values ($000) for the first year of the CPP regulatory period where a value for that disclosure year represents the opening regulatory asset value in nominal terms of all regulated assets held by a supplier for that disclosure year. | I7: No opening RAB balances consistent with IM 5.3.6 for earthquake readiness expenditure.
C9: 27 | I9: Asset class description:
C10: One | D10: 0 | I10: RY19 earthquake readiness expenditure - Subtransmission lines
C11: Two | D11: 0 | I11: RY20 earthquake readiness expenditure - Subtransmission lines
C12: Three | D12: 0 | I12: RY21 earthquake readiness expenditure - Subtransmission lines
C13: Four | D13: 0 | I13: RY19 earthquake readiness expenditure - Subtransmission cables
C14: Five | D14: 0 | I14: RY20 earthquake readiness expenditure - Subtransmission cables
C15: Six | D15: 0 | I15: RY21 earthquake readiness expenditure - Subtransmission cables
C16: Seven | D16: 0 | I16: RY19 earthquake readiness expenditure - Zone substations
C17: Eight | D17: 0 | I17: RY20 earthquake readiness expenditure - Zone substations
C18: Nine | D18: 0 | I18: RY21 earthquake readiness expenditure - Zone substations
C19: Ten | D19: 0 | I19: RY19 earthquake readiness expenditure - Distribution and LV lines
C20: Eleven | D20: 0 | I20: RY20 earthquake readiness expenditure - Distribution and LV lines
C21: Twelve | D21: 0 | I21: RY21 earthquake readiness expenditure - Distribution and LV lines
C22: Thirteen | D22: 0 | I22: RY19 earthquake readiness expenditure - Distribution and LV cables
C23: Fourteen | D23: 0 | I23: RY20 earthquake readiness expenditure - Distribution and LV cables
C24: Fifteen | D24: 0 | I24: RY21 earthquake readiness expenditure - Distribution and LV cables
C25: Sixteen | D25: 0 | I25: RY19 earthquake readiness expenditure - Distribution substations and transformers
C26: Seventeen | D26: 0 | I26: RY20 earthquake readiness expenditure - Distribution substations and transformers
C27: Eighteen | D27: 0 | I27: RY21 earthquake readiness expenditure - Distribution substations and transformers
C28: Nineteen | D28: 0 | I28: RY19 earthquake readiness expenditure - Distribution swirchgear
C29: Twenty | D29: 0 | I29: RY20 earthquake readiness expenditure - Distribution swirchgear
C30: Twenty-one | D30: 0 | I30: RY21 earthquake readiness expenditure - Distribution swirchgear
C31: Twenty-two | D31: 0 | I31: RY19 earthquake readiness expenditure - Other network assets
C32: Twenty-three | D32: 0 | I32: RY20 earthquake readiness expenditure - Other network assets
C33: Twenty-four | D33: 0 | I33: RY21 earthquake readiness expenditure - Other network assets
C34: Twenty-five | D34: 0 | I34: RY19 earthquake readiness expenditure - Non-network asset
C35: Twenty-six | D35: 0 | I35: RY20 earthquake readiness expenditure - Non-network asset
C36: Twenty-seven | D36: 0 | I36: RY21 earthquake readiness expenditure - Non-network asset
A38: INPUT3 | B38: Disposals | C38: =C10 -> One | D38: 0 | E38: 0 | F38: 0 | G38: A series of values ($000) for the CPP regulatory period, where a single value represents the opening RAB value of the relevant asset category that are forecast to be disposed of in that year. | H38: 1 | I38: No disposals associated with assets arising from earthquake readiness expenditure as per definition of disposed asset in IM 1.1.4.
C39: Two | D39: 0 | E39: 0 | F39: 0 | H39: 2
C40: Three | D40: 0 | E40: 0 | F40: 0 | H40: 3
C41: Four | D41: 0 | E41: 0 | F41: 0 | H41: 4
C42: Five | D42: 0 | E42: 0 | F42: 0 | H42: 5
C43: Six | D43: 0 | E43: 0 | F43: 0 | H43: 6
C44: Seven | D44: 0 | E44: 0 | F44: 0 | H44: 7
C45: Eight | D45: 0 | E45: 0 | F45: 0 | H45: 8
C46: Nine | D46: 0 | E46: 0 | F46: 0
C47: Ten | D47: 0 | E47: 0 | F47: 0
C48: Eleven | D48: 0 | E48: 0 | F48: 0
C49: Twelve | D49: 0 | E49: 0 | F49: 0
C50: Thirteen | D50: 0 | E50: 0 | F50: 0
C51: Fourteen | D51: 0 | E51: 0 | F51: 0
C52: Fifteen | D52: 0 | E52: 0 | F52: 0
C53: Sixteen | D53: 0 | E53: 0 | F53: 0
C54: Seventeen | D54: 0 | E54: 0 | F54: 0
C55: Eighteen | D55: 0 | E55: 0 | F55: 0
C56: Nineteen | D56: 0 | E56: 0 | F56: 0
C57: Twenty | D57: 0 | E57: 0 | F57: 0
C58: Twenty-one | D58: 0 | E58: 0 | F58: 0
C59: Twenty-two | D59: 0 | E59: 0 | F59: 0
C60: Twenty-three | D60: 0 | E60: 0 | F60: 0
C61: Twenty-four | D61: 0 | E61: 0 | F61: 0
C62: Twenty-five | D62: 0 | E62: 0 | F62: 0
C63: Twenty-six | D63: 0 | E63: 0 | F63: 0
C64: Twenty-seven | D64: 0 | E64: 0 | F64: 0 | H64: 9
A66: INPUT4 | B66: Total value of commissioned Assets | C66: =C10 -> One | D66: 2495.276483 | E66: 0 | F66: 0 | G66: A series of values ($000) for the CPP regulatory period where a single value for a disclosure year represents the actual or forecast cost of all assets to be acquired for that year. | H66: 1 | I66: Inputs sourced from ‘Supporting Model - CPP readiness capex and opex’. See notes in spreadsheet for additional information
C67: Two | D67: 0 | E67: 2109.778332 | F67: 0 | H67: 2
C68: Three | D68: 0 | E68: 0 | F68: 0 | H68: 3
C69: Four | D69: 85.054944 | E69: 0 | F69: 0 | H69: 4
C70: Five | D70: 0 | E70: 189.1794486 | F70: 0 | H70: 5
C71: Six | D71: 0 | E71: 0 | F71: 39.83643242 | H71: 6
C72: Seven | D72: 1099.610321 | E72: 0 | F72: 0 | H72: 7
C73: Eight | D73: 0 | E73: 1437.231813 | F73: 0 | H73: 8
C74: Nine | D74: 0 | E74: 0 | F74: 6631.698397
C75: Ten | D75: 0 | E75: 0 | F75: 0
C76: Eleven | D76: 0 | E76: 0 | F76: 0
C77: Twelve | D77: 0 | E77: 0 | F77: 0
C78: Thirteen | D78: 1155.844854 | E78: 0 | F78: 0
C79: Fourteen | D79: 0 | E79: 1159.761741 | F79: 0
C80: Fifteen | D80: 0 | E80: 0 | F80: 1316.564926
C81: Sixteen | D81: 1845.452351 | E81: 0 | F81: 0
C82: Seventeen | D82: 0 | E82: 2247.673246 | F82: 0
C83: Eighteen | D83: 0 | E83: 0 | F83: 2709.780317
C84: Nineteen | D84: 248.175894 | E84: 0 | F84: 0
C85: Twenty | D85: 0 | E85: 253.1394119 | F85: 0
C86: Twenty-one | D86: 0 | E86: 0 | F86: 258.2022001
C87: Twenty-two | D87: 0 | E87: 0 | F87: 0
C88: Twenty-three | D88: 0 | E88: 603.8304732 | F88: 0
C89: Twenty-four | D89: 0 | E89: 0 | F89: 0
C90: Twenty-five | D90: 1389.846905 | E90: 0 | F90: 0
C91: Twenty-six | D91: 0 | E91: 3145.395542 | F91: 0
C92: Twenty-seven | D92: 0 | E92: 0 | F92: 925.6790039 | H92: 9
A94: INPUT5 | B94: Revaluation rate | D94: ='EDB data'!G23 -> 0.0211128946 | E94: ='EDB data'!H23 -> 0.0205564473 | F94: ='EDB data'!I23 -> 0.019 | G94: Defined in cl. 5.3.10(4) of the EDB input methodologies. Uses current Statistics New Zealand data and RBNZ forecasts. | H94: 1 | I94: Calculated consistent with IM 5.3.10 (4). CPI inputs and calculation sourced from DPP Financial Model. Use of DPP CPI consistent with definition of Forecast CPI for CPP Revaluation defined in 5.3.10 (5).
A96: INPUT6 | B96: Remaining asset lives | C96: =C10 -> One | D96: 0 | E96: 55 | F96: 54 | G96: A series of values (2 d.p.) for the CPP regulatory period where a single value for a disclosure year represents the term remaining of an asset’s or group of asset’s physical asset life at the commencement of the disclosure year as specified by cl. 2.2.8 of the EDB input methodologies. | H96: 1 | I96: Inputs sourced from ‘Supporting Model - CPP readiness capex and opex’. Inputs determined consistent with IM Schedule A Table A.2. "Asset lives for CPP commissioned assets" as defined in IM 1.1.4.
C97: Two | D97: 0 | E97: 0 | F97: 55 | H97: 2
C98: Three | D98: 0 | E98: 0 | F98: 0 | H98: 3
C99: Four | D99: 0 | E99: 55 | F99: 54 | H99: 4
C100: Five | D100: 0 | E100: 0 | F100: 55 | H100: 5
C101: Six | D101: 0 | E101: 0 | F101: 0 | H101: 6
C102: Seven | D102: 0 | E102: 45 | F102: 44 | H102: 7
C103: Eight | D103: 0 | E103: 0 | F103: 45 | H103: 8
C104: Nine | D104: 0 | E104: 0 | F104: 0
C105: Ten | D105: 0 | E105: 60 | F105: 59
C106: Eleven | D106: 0 | E106: 0 | F106: 60
C107: Twelve | D107: 0 | E107: 0 | F107: 0
C108: Thirteen | D108: 0 | E108: 55 | F108: 54
C109: Fourteen | D109: 0 | E109: 0 | F109: 55
C110: Fifteen | D110: 0 | E110: 0 | F110: 0
C111: Sixteen | D111: 0 | E111: 45 | F111: 44
C112: Seventeen | D112: 0 | E112: 0 | F112: 45
C113: Eighteen | D113: 0 | E113: 0 | F113: 0
C114: Nineteen | D114: 0 | E114: 40 | F114: 39
C115: Twenty | D115: 0 | E115: 0 | F115: 40
C116: Twenty-one | D116: 0 | E116: 0 | F116: 0
C117: Twenty-two | D117: 0 | E117: 25 | F117: 24
C118: Twenty-three | D118: 0 | E118: 0 | F118: 25
C119: Twenty-four | D119: 0 | E119: 0 | F119: 0
C120: Twenty-five | D120: 0 | E120: 15 | F120: 14
C121: Twenty-six | D121: 0 | E121: 0 | F121: 15
C122: Twenty-seven | D122: 0 | E122: 0 | F122: 0 | H122: 9
A124: INPUT7 | B124: Opening or closing RAB values for ID years without revaluations | C124: =C10 -> One | D124: 0 | G124: As for Opening or closing RAB values for ID years (INPUT31) but is a series of values ($000) for the CPP regulatory period where a single value for a disclosure year represents the total depreciation amount for all assets for that year as if no indexed revaluation had ever been applied in respect of any asset. | H124: 1 | I124: There are no Opening RAB balances consistent with IM 5.3.6 for assets arising from earthquake readiness expenditure. Consistent with IM 5.3.9.
C125: Two | D125: 0 | H125: 2
C126: Three | D126: 0 | H126: 3
C127: Four | D127: 0 | H127: 4
C128: Five | D128: 0 | H128: 5
C129: Six | D129: 0 | H129: 6
C130: Seven | D130: 0 | H130: 7
C131: Eight | D131: 0 | H131: 8
C132: Nine | D132: 0
C133: Ten | D133: 0
C134: Eleven | D134: 0
C135: Twelve | D135: 0
C136: Thirteen | D136: 0
C137: Fourteen | D137: 0
C138: Fifteen | D138: 0
C139: Sixteen | D139: 0
C140: Seventeen | D140: 0
C141: Eighteen | D141: 0
C142: Nineteen | D142: 0
C143: Twenty | D143: 0
C144: Twenty-one | D144: 0
C145: Twenty-two | D145: 0
C146: Twenty-three | D146: 0
C147: Twenty-four | D147: 0
C148: Twenty-five | D148: 0
C149: Twenty-six | D149: 0
C150: Twenty-seven | D150: 0 | H150: 9
A152: INPUT8 | B152: Disposals without revaluations | C152: =C10 -> One | D152: 0 | E152: 0 | F152: 0 | G152: A series of values ($000) for the CPP regulatory period, where a single value for an asset or aggregated asset group for a disclosure year represents the opening RAB value of those assets that are disposed of in that year. The value is calculated such that it does not include any revaluation amount which has been added to the RAB since the initial RAB date (31 March 2009). | H152: 1 | I152: No disposals associated with asset arising from earthquake readiness expenditure as per definition of disposed asset in IM 1.1.4.
C153: Two | D153: 0 | E153: 0 | F153: 0 | H153: 2
C154: Three | D154: 0 | E154: 0 | F154: 0 | H154: 3
C155: Four | D155: 0 | E155: 0 | F155: 0 | H155: 4
C156: Five | D156: 0 | E156: 0 | F156: 0 | H156: 5
C157: Six | D157: 0 | E157: 0 | F157: 0 | H157: 6
C158: Seven | D158: 0 | E158: 0 | F158: 0 | H158: 7
C159: Eight | D159: 0 | E159: 0 | F159: 0 | H159: 8
C160: Nine | D160: 0 | E160: 0 | F160: 0
C161: Ten | D161: 0 | E161: 0 | F161: 0
C162: Eleven | D162: 0 | E162: 0 | F162: 0
C163: Twelve | D163: 0 | E163: 0 | F163: 0
C164: Thirteen | D164: 0 | E164: 0 | F164: 0
C165: Fourteen | D165: 0 | E165: 0 | F165: 0
C166: Fifteen | D166: 0 | E166: 0 | F166: 0
C167: Sixteen | D167: 0 | E167: 0 | F167: 0
C168: Seventeen | D168: 0 | E168: 0 | F168: 0
C169: Eighteen | D169: 0 | E169: 0 | F169: 0
C170: Nineteen | D170: 0 | E170: 0 | F170: 0
C171: Twenty | D171: 0 | E171: 0 | F171: 0
C172: Twenty-one | D172: 0 | E172: 0 | F172: 0
C173: Twenty-two | D173: 0 | E173: 0 | F173: 0
C174: Twenty-three | D174: 0 | E174: 0 | F174: 0
C175: Twenty-four | D175: 0 | E175: 0 | F175: 0
C176: Twenty-five | D176: 0 | E176: 0 | F176: 0
C177: Twenty-six | D177: 0 | E177: 0 | F177: 0
C178: Twenty-seven | D178: 0 | E178: 0 | F178: 0 | H178: 9
A180: INPUT9 | B180: Fully depreciated assets | C180: =C10 -> One | D180: 0 | E180: 0 | F180: 0 | G180: A series of values ($000) for the CPP regulatory period where a single value for an asset or aggregated asset group for a disclosure year represents the opening RAB value of those assets that are fully depreciated in that year. | H180: 1 | I180: No fully depreciated assets associated with assets arising from earthquake readiness expenditure as assets all new with useful lives in excess of 3 years.
C181: Two | D181: 0 | E181: 0 | F181: 0 | H181: 2
C182: Three | D182: 0 | E182: 0 | F182: 0 | H182: 3
C183: Four | D183: 0 | E183: 0 | F183: 0 | H183: 4
C184: Five | D184: 0 | E184: 0 | F184: 0 | H184: 5
C185: Six | D185: 0 | E185: 0 | F185: 0 | H185: 6
C186: Seven | D186: 0 | E186: 0 | F186: 0 | H186: 7
C187: Eight | D187: 0 | E187: 0 | F187: 0 | H187: 8
C188: Nine | D188: 0 | E188: 0 | F188: 0
C189: Ten | D189: 0 | E189: 0 | F189: 0
C190: Eleven | D190: 0 | E190: 0 | F190: 0
C191: Twelve | D191: 0 | E191: 0 | F191: 0
C192: Thirteen | D192: 0 | E192: 0 | F192: 0
C193: Fourteen | D193: 0 | E193: 0 | F193: 0
C194: Fifteen | D194: 0 | E194: 0 | F194: 0
C195: Sixteen | D195: 0 | E195: 0 | F195: 0
C196: Seventeen | D196: 0 | E196: 0 | F196: 0
C197: Eighteen | D197: 0 | E197: 0 | F197: 0
C198: Nineteen | D198: 0 | E198: 0 | F198: 0
C199: Twenty | D199: 0 | E199: 0 | F199: 0
C200: Twenty-one | D200: 0 | E200: 0 | F200: 0
C201: Twenty-two | D201: 0 | E201: 0 | F201: 0
C202: Twenty-three | D202: 0 | E202: 0 | F202: 0
C203: Twenty-four | D203: 0 | E203: 0 | F203: 0
C204: Twenty-five | D204: 0 | E204: 0 | F204: 0
C205: Twenty-six | D205: 0 | E205: 0 | F205: 0
C206: Twenty-seven | D206: 0 | E206: 0 | F206: 0 | H206: 9
A208: INPUT10 | B208: DV rate | C208: 0 | I208: Input sourced from ‘Supporting Model - CPP readiness capex and opex’ consistent with IM 5.3.20 (3) and IRD tax depreciation rules.
C209: 0.08
C210: 0.1
C211: 0.2
... 16 more rows

Sheet DPP Model >
B2: This sheet has been deliberately left blank.

Sheet EDB data
A1: Inputs for Wellington Electricity | K1: Additional Notes | L1: Input explanation
A2: All input data is entered into this worksheet
A3: Supplier | C3: Scenario
A4: Name | C4: Wellington Electricity | L4: EDB selector switch removed as not applicable
A5: Supplier number | L5: Not applicable.
A6: Supplier number (for output data table) | L6: Not applicable.
A7: Claw-back scenario | L7: Not applicable.
A8: General data
A9: Non business-specific single inputs | B9: Value | D9: 2020/21 value | K9: Column of 2020/21 data added in Column D for WACC and cost of debt
A10: Vanilla WACC (67th percentile) | B10: 0.0719 | D10: =INPUTS!F15 -> 0.0457 | K10: revise to 4.57% | L10: Input consistent with 2015 DPP financial model and DPP cost of capital determination. RY21 consistent with IM 5.3.22.
A11: Cost of debt | B11: 0.0609 | D11: =INPUTS!F47 -> 0.0292 | K11: revise to 2.92%, dependents: TAX!D18 | L11: Input consistent with 2015 DPP financial model and DPP cost of capital determination. RY21 cost of debt consistent with WACC.
A12: Leverage | B12: 0.44 | L12: Input consistent with 2015 DPP financial model and DPP cost of capital determination. RY21 leverage consistent with WACC.
A13: Years of remaining life for newly commissioned assets | B13: 44 | C13: years | L13: Input consistent with 2015 DPP financial model. RY21 input consistent with IM 4.2.2 (3) (b).
A14: Industry-wide X factor | B14: 0 | L14: Input consistent with 2015 DPP financial model.
A15: Days in a year | B15: 365 | C15: days | L15: Input consistent with 2015 DPP financial model. RY21 applied as per previous DPP years.
A16: Days from mid-year to year-end | B16: 182 | C16: days | L16: Input consistent with 2015 DPP financial model. RY21 applied as per previous DPP years.
A17: Days from revenue date to year-end | B17: 148 | C17: days | L17: Input consistent with 2015 DPP financial model. RY21 applied as per previous DPP years.
A18: Last day of year 1 of the DPP period | B18: 2016-03-31 | L18: Input consistent with 2015 DPP financial model.
A19: General time-series data
B20: 2013/14 | C20: 2014/15 | D20: 2015/16 | E20: 2016/17 | F20: 2017/18 | G20: 2018/19 | H20: 2019/20 | I20: 2020/21
A21: Year in modelling period | B21: 1 | C21: 2 | D21: 3 | E21: 4 | F21: 5 | G21: 6 | H21: 7 | I21: 8 | L21: RY14-RY20 inputs consistent with 2015 DPP financial model. RY21 added. RY21 input rolled forward consistent with 2015 DPP financial model.
A22: Year in regulatory period | D22: 1 | E22: 2 | F22: 3 | G22: 4 | H22: 5 | I22: 6 | L22: RY16-RY20 inputs consistent with 2015 DPP financial model. RY21 added. RY21 input rolled forward consistent with 2015 DPP financial model.
A23: Forecast changes in CPI used for revaluations | B23: 0.01533219761 | C23: 0.01426174497 | D23: 0.01736972705 | E23: 0.02113821138 | F23: 0.02166934189 | G23: 0.0211128946 | H23: 0.0205564473 | I23: =INPUTS!F102 -> 0.019 | K23: 2020/21 value set to 1.90 when Mode = 'Reconsideration'. The Reserve Bank forecast of change in CPI from March 2020 to March 2021 was 1.9% in its August 2019 monetary policy statement. See Table 2.9, mpsaugust19-data.xlsx. | L23: RY14-RY20 inputs sourced from 2015 DPP financial model. RY21 added. CPI extracted from ‘Supporting Model - CPI projections’ consistent with IM 4.2.3 (3) and IM variation proposal.
A24: Forecast changes in the CPI element of the price path | D24: 0.01529961751 | E24: 0.01506906656 | F24: 0.01773195876 | G24: 0.02106969206 | H24: 0.02152879479 | L24: RY16-RY20 inputs sourced from 2015 DPP financial model. RY21 value not required.
A25: Company tax rate | B25: 0.28 | C25: 0.28 | D25: 0.28 | E25: 0.28 | F25: 0.28 | G25: 0.28 | H25: 0.28 | I25: 0.28 | L25: RY14-RY20 inputs consistent with 2015 DPP financial model. RY21 added consistent with 2015 DPP financial model and expected corporate tax rate as per definition in IM 1.1.4.
A26: Business-specific data
A27: Initial conditions
A28: Opening RAB | B28: 555989.8374 | L28: Input consistent with 2015 DPP financial model.
A29: Lost assets | B29: 0 | L29: Input consistent with 2015 DPP financial model.
A30: Found assets | B30: 0 | L30: Input consistent with 2015 DPP financial model.
A31: Total depreciation | B31: 26602 | L31: Input consistent with 2015 DPP financial model.
A32: Revaluations | B32: 8517.846814 | L32: Input consistent with 2015 DPP financial model.
A33: Closing RAB | B33: 569510.1895 | L33: Input consistent with 2015 DPP financial model.
A34: Opening RAB excluding revaluations | B34: 521133.3345 | L34: Input consistent with 2015 DPP financial model.
A35: Adjusted depreciation | B35: 25002.70595 | L35: Input consistent with 2015 DPP financial model.
A36: Tax depreciation | B36: 28396.70973 | L36: Input consistent with 2015 DPP financial model.
A37: Opening regulatory tax asset value | B37: 345886.8305 | L37: Input consistent with 2015 DPP financial model.
A38: Amortisation of initial differences in asset values | B38: 6153.707972 | L38: Input consistent with 2015 DPP financial model.
A39: Term credit spread differential allowance | B39: 563.4100427 | L39: Input consistent with 2015 DPP financial model.
A40: Opening deferred tax balance | B40: -17901.38546 | L40: Input consistent with 2015 DPP financial model.
A41: Additional allowance in 1 April 2015 PV terms | B41: 0 | L41: Input consistent with 2015 DPP financial model.
A42: Alternative X factor | B42: 0 | L42: Input consistent with 2015 DPP financial model.
A44: Operating expenditure
A45: Operating expenditure, 2013/14 | B45: 29611.04613 | L45: Input consistent with 2015 DPP financial model.
A46: Operating expenditure, 2014/15 | B46: 29751.79577 | L46: Input consistent with 2015 DPP financial model.
A47: Operating expenditure, 2015/16 | B47: 30899.2206 | L47: Input consistent with 2015 DPP financial model.
A48: Operating expenditure, 2016/17 | B48: 31949.9157 | L48: Input consistent with 2015 DPP financial model.
A49: Operating expenditure, 2017/18 | B49: 32913.54284 | L49: Input consistent with 2015 DPP financial model.
A50: Operating expenditure, 2018/19 | B50: 33903.49023 | L50: Input consistent with 2015 DPP financial model.
A51: Operating expenditure, 2019/20 | B51: 34788.813 | L51: Input consistent with 2015 DPP financial model.
A52: Operating expenditure, 2020/21 | B52: 33434 | L52: RY21 added. Input sourced from Wellington Electricity's 2017 Asset Management Plan (AMP) schedules ‘Supporting Model - AMP 2017 schedules’ (schedule 11b) in nominal terms consistent with IM variation proposal. All operating expenditure is 100% directly attributable to regulated electricity distribution services consistent with IM 4.1.1 (1) and IM 2.1.1. All operating expenditure is expensed for the purpose of GAAP consistent with WE's accounting policies.
A54: Constant price revenue growth
A55: Constant price revenue growth, 2013/14 | B55: 0.004460946114 | L55: Input consistent with 2015 DPP financial model.
A56: Constant price revenue growth, 2014/15 | B56: 0.004460946114 | L56: Input consistent with 2015 DPP financial model.
A57: Constant price revenue growth, 2015/16 | B57: 0.004460946114 | L57: Input consistent with 2015 DPP financial model.
A58: Constant price revenue growth, 2016/17 | B58: 0.004471688252 | L58: Input consistent with 2015 DPP financial model.
A59: Constant price revenue growth, 2017/18 | B59: 0.004471688252 | L59: Input consistent with 2015 DPP financial model.
A60: Constant price revenue growth, 2018/19 | B60: 0.004471688252 | L60: Input consistent with 2015 DPP financial model.
A61: Constant price revenue growth, 2019/20 | B61: 0.004471688252 | L61: Input consistent with 2015 DPP financial model.
A63: Value of commissioned assets
A64: Value of commissioned assets, 2013/14 | B64: 31580.53291 | L64: Input consistent with 2015 DPP financial model.
A65: Value of commissioned assets, 2014/15 | B65: =MAR!C85 -> 33380.77505 | L65: Input consistent with 2015 DPP financial model.
A66: Value of commissioned assets, 2015/16 | B66: 27257.41116 | L66: Input consistent with 2015 DPP financial model.
A67: Value of commissioned assets, 2016/17 | B67: 28408.34119 | L67: Input consistent with 2015 DPP financial model.
A68: Value of commissioned assets, 2017/18 | B68: 34853.11279 | L68: Input consistent with 2015 DPP financial model.
A69: Value of commissioned assets, 2018/19 | B69: 31196.83322 | L69: Input consistent with 2015 DPP financial model.
A70: Value of commissioned assets, 2019/20 | B70: 31209.07158 | L70: Input consistent with 2015 DPP financial model.
A71: Value of commissioned assets, 2020/21 | B71: 32603.01262 | L71: RY21 added. Input sourced from Wellington Electricity's 2017 AMP schedules ‘Supporting Model - AMP 2017 schedules’ (schedule 11a) in nominal terms consistent with IM variation proposal. Value of commissioned assets assumed to equal capex, consistent with IM 4.2.5. All forecast expenditure is expected to be capitalised in accordance with GAAP, consistent with IM 4.2.5. Assets are 100% directly attributable to electricity distribution services consistent with IM 4.1.1 (2) and IM 2.1.1.
A73: Disposed assets
A74: Value of disposed assets, 2013/14 | B74: 371 | L74: Input consistent with 2015 DPP financial model.
A75: Value of disposed assets, 2014/15 | B75: 94.27768896 | L75: Input consistent with 2015 DPP financial model.
A76: Value of disposed assets, 2015/16 | B76: 95.91526668 | L76: Input consistent with 2015 DPP financial model.
A77: Value of disposed assets, 2016/17 | B77: 97.94274386 | L77: Input consistent with 2015 DPP financial model.
A78: Value of disposed assets, 2017/18 | B78: 100.0650987 | L78: Input consistent with 2015 DPP financial model.
A79: Value of disposed assets, 2018/19 | B79: 102.1777625 | L79: Input consistent with 2015 DPP financial model.
A80: Value of disposed assets, 2019/20 | B80: 104.2781743 | L80: Input consistent with 2015 DPP financial model.
A81: Value of disposed assets, 2020/21 | B81: 106.4217631 | L81: RY21 added. Input sourced from ‘Supporting Model - Other regulated income and disposed assets' consistent with the IM variation proposal, the 2015 DPP forecasting approach and IM 4.2.6.
A83: Other regulated income
A84: Other regulated income, 2013/14 | B84: 191 | L84: Input consistent with 2015 DPP financial model.
A85: Other regulated income, 2014/15 | B85: 425.2561056 | L85: Input consistent with 2015 DPP financial model.
A86: Other regulated income, 2015/16 | B86: 432.642688 | L86: Input consistent with 2015 DPP financial model.
A87: Other regulated income, 2016/17 | B87: 441.7879806 | L87: Input consistent with 2015 DPP financial model.
A88: Other regulated income, 2017/18 | B88: 451.3612354 | L88: Input consistent with 2015 DPP financial model.
A89: Other regulated income, 2018/19 | B89: 460.8907776 | L89: Input consistent with 2015 DPP financial model.
A90: Other regulated income, 2019/20 | B90: 470.3650546 | L90: Input consistent with 2015 DPP financial model.
A91: Other regulated income, 2020/21 | B91: 480.034089 | L91: RY21 added. Input sourced from ‘Supporting Model - Other regulated income and disposed assets' consistent with the IM variation proposal, the 2015 DPP forecasting approach and definition in IM 1.1.4.
A93: Allowable Notional Revenue
A94: Allowable notional revenue 2014/2015 | B94: 104846.1601 | L94: Input consistent with 2015 DPP financial model.
A95: Pass-through costs 2014/15 | B95: 2907 | L95: Input consistent with 2015 DPP financial model.
A97: Claw-back
A98: Claw-back 2014/15 | B98: 8050.85401 | L98: Input consistent with 2015 DPP financial model.
A99: Claw-back 2015/16 | B99: 0 | L99: Input consistent with 2015 DPP financial model.

Sheet TIMING
A1: Intra-year timing | Q1: Logic explanation
A2: Derivation of the five timing factors TFopex, TFtax, TFVCA, TFori and TFrev.
A3: Inputs
B4: From | C4: Value | E4: 2020/21 Value | G4: Additional Notes
A5: Last day of year 1 of the DPP period | B5: EDB data | C5: ='EDB data'!B18 -> 2016-03-31 | Q5: No change from 2015 DPP financial model.
A6: Days in a year | B6: EDB data | C6: ='EDB data'!B15 -> 365 | Q6: No change from 2015 DPP financial model.
A7: Days from mid-year to year-end | B7: EDB data | C7: ='EDB data'!B16 -> 182 | Q7: No change from 2015 DPP financial model.
A8: Days from revenue date to year-end | B8: EDB data | C8: ='EDB data'!B17 -> 148 | Q8: No change from 2015 DPP financial model.
A9: Vanilla WACC (67th percentile) | B9: EDB data | C9: =WACC -> 0.0719 | E9: =INPUTS!F15 -> 0.0457 | G9: 2020/21 value inserted in Column E | Q9: No change from 2015 DPP financial model.
A10: Calculations
C11: Value
A12: Mid-year date | C12: =EOMONTH(C5,-6) -> 2015-09-30 | Q12: No change from 2015 DPP financial model.
A13: Revenue date | C13: =C5-C8 -> 2015-11-04 | D13: As demonstrated below, 12 equal monthly transactions on the 20th of the following month can be approximated by a single payment on the revenue date. | Q13: No change from 2015 DPP financial model.
A14: Operating expenditure date | C14: =C12 -> 2015-09-30 | D14: i.e. mid-year | Q14: No change from 2015 DPP financial model.
A15: Tax date | C15: =C12 -> 2015-09-30 | D15: i.e. mid-year | Q15: No change from 2015 DPP financial model.
A16: Asset commissioning date | C16: =C12 -> 2015-09-30 | D16: i.e. mid-year | Q16: No change from 2015 DPP financial model.
A17: Interest date | C17: =C12 -> 2015-09-30 | D17: i.e. mid-year | Q17: No change from 2015 DPP financial model.
A18: Asset disposal date | C18: =C12 -> 2015-09-30 | D18: i.e. mid-year | Q18: No change from 2015 DPP financial model.
A19: TF for mid-year cash flows | C19: =(1+$C$9)^(C7/C6) -> 1.035227567 | E19: =(1+$E$9)^(C7/C6) -> 1.022532143 | G19: 2020/21 formula inserted in Column E | H19: Intra-year timing factors: discount from mid year to end of year values | Q19: No change from 2015 DPP financial model.
A20: TFrev | C20: =(1+$C$9)^(C8/C6) -> 1.028553621 | E20: =(1+$E$9)^(C8/C6) -> 1.018284618 | G20: 2020/21 formula inserted in Column E | H20: Intra-year timing factor: discount from revenue date to end of year values | Q20: No change from 2015 DPP financial model.
A21: Outputs
C22: Value
A23: TFopex | C23: =$C$19 -> 1.035227567 | E23: =$E$19 -> 1.022532143 | G23: 2020/21 formula inserted in Column E, Dependents: BBAR!C12 | Q23: No change from 2015 DPP financial model.
A24: TFtax | C24: =$C$19 -> 1.035227567 | E24: =$E$19 -> 1.022532143 | G24: 2020/21 formula inserted in Column E, Dependents: BBAR!C13 | Q24: No change from 2015 DPP financial model.
A25: TFVCA | C25: =$C$19 -> 1.035227567 | E25: 1.022532143 | G25: 2020/21 formula inserted in Column E, Dependents: BBAR!C14 | Q25: No change from 2015 DPP financial model.
A26: TFori | C26: =$C$19 -> 1.035227567 | E26: 1.022532143 | G26: 2020/21 formula inserted in Column E, Dependents: BBAR!C15 | Q26: No change from 2015 DPP financial model.
A27: TFrev | C27: =$C$20 -> 1.028553621 | E27: =$E$20 -> 1.018284618 | G27: 2020/21 formula inserted in Column E, Dependents: BBAR!C16, MAR!C10 | Q27: No change from 2015 DPP financial model.
A28: Check for timing of revenue receipt
A29: Demonstration that a 4 November receipt date for all revenues in a year ending 31 March is almost identical to
A30: receiving 12 equal revenue amounts on the 20th of the month following the provision of service.
A31: Monthly cash flows
A32: Dates of receipt of revenues | C32: =EDATE(C5,-12) -> 2015-03-31 | D32: =EOMONTH(C32,1)+20 -> 2015-05-20 | E32: =EDATE(D32,1) -> 2015-06-20 | F32: 2015-07-20 | G32: 2015-08-20 | H32: 2015-09-20 | I32: 2015-10-20 | J32: 2015-11-20 | K32: 2015-12-20 | L32: 2016-01-20 | M32: 2016-02-20 | N32: 2016-03-20 | O32: 2016-04-20 | Q32: No change from 2015 DPP financial model.
A33: Indexed amount of revenue | C33: 0 | D33: 1 | E33: 1 | F33: 1 | G33: 1 | H33: 1 | I33: 1 | J33: 1 | K33: 1 | L33: 1 | M33: 1 | N33: 1 | O33: 1 | Q33: No change from 2015 DPP financial model.
A35: Equivalent single cash flow
A36: Dates of receipt of revenues | C36: =C32 -> 2015-03-31 | D36: =C13 -> 2015-11-04 | Q36: No change from 2015 DPP financial model.
A37: Indexed amount of revenue | C37: 0 | D37: 12 | Q37: No change from 2015 DPP financial model.
A39: Present value | C39: Value
A40: ="PV as at "&TEXT(C5,"dd mmm yy")&" of the series of unit amounts" -> PV as at 31 Mar 16 of the series of unit amounts | C40: =XNPV(WACC,C33:O33,C32:O32) -> 11.51412997 | Q40: No change from 2015 DPP financial model.
A41: PV of the equivalent single amount | C41: =XNPV(WACC,C37:D37,C36:D36) -> 11.51254386 | Q41: No change from 2015 DPP financial model.
A42: ="Difference in PV for a date of " & TEXT(D36,"d mmm") -> Difference in PV for a date of 4 Nov | C42: =C40-C41 -> 0.001586103298 | Q42: No change from 2015 DPP financial model.
A43: Percentage difference | C43: =C42/C40 -> 0.0001377527701 | Q43: No change from 2015 DPP financial model.

Sheet RAB
A1: Regulatory asset base | C1: There are no differences on this sheet between the 2018 model and this reconsideration model. | M1: Logic explanation
A2: Calculations involving the roll-forward of asset values.
A3: Inputs
B4: From | C4: Value | D4: ='EDB data'!B$20 -> 2013/14 | E4: ='EDB data'!C$20 -> 2014/15 | F4: ='EDB data'!D$20 -> 2015/16 | G4: ='EDB data'!E$20 -> 2016/17 | H4: ='EDB data'!F$20 -> 2017/18 | I4: ='EDB data'!G$20 -> 2018/19 | J4: ='EDB data'!H$20 -> 2019/20 | K4: ='EDB data'!I$20 -> 2020/21
A5: Opening RAB | B5: EDB data | C5: ='EDB data'!B28 -> 555989.8374 | M5: No change from 2015 DPP financial model.
A6: Total depreciation | B6: EDB data | C6: ='EDB data'!B31 -> 26602 | M6: No change from 2015 DPP financial model.
A7: Revaluations | B7: EDB data | C7: ='EDB data'!B32 -> 8517.846814 | M7: No change from 2015 DPP financial model.
A8: Closing RAB | B8: EDB data | C8: ='EDB data'!B33 -> 569510.1895 | M8: No change from 2015 DPP financial model.
A9: Disposed assets | B9: EDB data | D9: ='EDB data'!$B74 -> 371 | E9: ='EDB data'!$B75 -> 94.27768896 | F9: ='EDB data'!$B76 -> 95.91526668 | G9: ='EDB data'!$B77 -> 97.94274386 | H9: ='EDB data'!$B78 -> 100.0650987 | I9: ='EDB data'!$B79 -> 102.1777625 | J9: ='EDB data'!$B80 -> 104.2781743 | K9: ='EDB data'!$B81 -> 106.4217631 | M9: RY21 added. Calculated consistent with 2015 DPP financial model and 'EDB data' inputs.
A10: Value of commissioned assets | B10: EDB data | D10: ='EDB data'!$B64 -> 31580.53291 | E10: ='EDB data'!$B65 -> 33380.77505 | F10: ='EDB data'!$B66 -> 27257.41116 | G10: ='EDB data'!$B67 -> 28408.34119 | H10: ='EDB data'!$B68 -> 34853.11279 | I10: ='EDB data'!$B69 -> 31196.83322 | J10: ='EDB data'!$B70 -> 31209.07158 | K10: ='EDB data'!$B71 -> 32603.01262 | M10: RY21 added. Calculated consistent with 2015 DPP financial model and 'EDB data' inputs.
A11: Remaining life of newly commissioned assets | B11: EDB data | C11: ='EDB data'!B13 -> 44 | M11: No change from 2015 DPP financial model.
A12: Forecast changes in CPI used for revaluations | B12: EDB data | D12: ='EDB data'!B23 -> 0.01533219761 | E12: ='EDB data'!C23 -> 0.01426174497 | F12: ='EDB data'!D23 -> 0.01736972705 | G12: ='EDB data'!E23 -> 0.02113821138 | H12: ='EDB data'!F23 -> 0.02166934189 | I12: ='EDB data'!G23 -> 0.0211128946 | J12: ='EDB data'!H23 -> 0.0205564473 | K12: ='EDB data'!I23 -> 0.019 | M12: RY21 added. Calculated consistent with 2015 DPP financial model and 'EDB data' inputs.
A13: Calculations
A15: Roll forward of existing assets
D16: ='EDB data'!B$20 -> 2013/14 | E16: ='EDB data'!C$20 -> 2014/15 | F16: ='EDB data'!D$20 -> 2015/16 | G16: ='EDB data'!E$20 -> 2016/17 | H16: ='EDB data'!F$20 -> 2017/18 | I16: ='EDB data'!G$20 -> 2018/19 | J16: ='EDB data'!H$20 -> 2019/20 | K16: ='EDB data'!I$20 -> 2020/21
A17: Remaining asset life of existing assets | D17: =C5/C6 -> 20.90030214 | E17: =D17-1 -> 19.90030214 | F17: 18.90030214 | G17: 17.90030214 | H17: 16.90030214 | I17: 15.90030214 | J17: 14.90030214 | K17: =J17-1 -> 13.90030214 | M17: RY21 added. Calculated consistent with 2015 DPP financial model and IM 4.2.2 (3)(a)
A18: Opening RAB value of existing assets | E18: =D22 -> 569510.1895 | F18: 548910.4861 | G18: 529295.3771 | H18: 510803.4582 | I18: 491534.4144 | J18: 470883.8893 | K18: =J22 -> 448845.1829 | M18: RY21 added. Calculated consistent with 2015 DPP financial model and IM 4.2.1 (2).
A19: Disposed assets | E19: =E9 -> 94.27768896 | F19: 95.91526668 | G19: 97.94274386 | H19: 100.0650987 | I19: 102.1777625 | J19: 104.2781743 | K19: =K9 -> 106.4217631 | M19: RY21 added. Calculated consistent with 2015 DPP financial model.
A20: Revaluation of existing assets | E20: =(E18*0.999-E19)*E27 -> 8112.742305 | F20: 9523.22487 | G20: 11175.09887 | H20: 11055.53766 | I20: 10365.1793 | J20: 9667.876565 | K20: =(K18*0.999-K19)*K27 -> 8517.508403 | M20: RY21 added. Calculated consistent with 2015 DPP financial model and IM 4.2.3 (2)(a).
A21: Depreciation of existing assets | E21: =E18/E17 -> 28618.16798 | F21: 29042.41859 | G21: 29569.07504 | H21: 30224.51635 | I21: 30913.52669 | J21: 31602.30477 | K21: =K18/K17 -> 32290.31848 | M21: RY21 added. Calculated consistent with 2015 DPP financial model and IM 4.2.2 (2)(a).
A22: Closing RAB value of existing assets | D22: =C8 -> 569510.1895 | E22: =E18-E19+E20-E21 -> 548910.4861 | F22: 529295.3771 | G22: 510803.4582 | H22: 491534.4144 | I22: 470883.8893 | J22: 448845.1829 | K22: 424965.9511 | M22: RY21 added. Calculated consistent with 2015 DPP financial model and IM 4.2.1 (3).
A24: Individual roll forward of additional assets
D25: ='EDB data'!B$20 -> 2013/14 | E25: ='EDB data'!C$20 -> 2014/15 | F25: ='EDB data'!D$20 -> 2015/16 | G25: ='EDB data'!E$20 -> 2016/17 | H25: ='EDB data'!F$20 -> 2017/18 | I25: ='EDB data'!G$20 -> 2018/19 | J25: ='EDB data'!H$20 -> 2019/20 | K25: ='EDB data'!I$20 -> 2020/21
A26: Year in modelling period | D26: 1 | E26: =D26+1 -> 2 | F26: 3 | G26: 4 | H26: 5 | I26: 6 | J26: 7 | K26: =J26+1 -> 8 | M26: RY21 added. Calculated consistent with 2015 DPP financial model rolled forward 1 year.
A27: Revaluation rate | D27: =D12 -> 0.01533219761 | E27: 0.01426174497 | F27: 0.01736972705 | G27: 0.02113821138 | H27: 0.02166934189 | I27: 0.0211128946 | J27: 0.0205564473 | K27: =K12 -> 0.019 | M27: RY21 added. Calculated consistent with 2015 DPP financial model.
A28: Commissioned assets | D28: =D$10 -> 31580.53291 | E28: 33380.77505 | F28: 27257.41116 | G28: 28408.34119 | H28: 34853.11279 | I28: 31196.83322 | J28: 31209.07158 | K28: 32603.01262 | M28: RY21 added. Calculated consistent with 2015 DPP financial model.
A29: Assets commissioned in 2014/15:
A30: Year asset is added during modelling period | C30: =E26 -> 2 | M30: No change from 2015 DPP financial model.
A31: Opening RAB | D31: 0 | E31: =D35 -> 0 | F31: 33380.77505 | G31: 33201.93603 | H31: 33131.62752 | I31: 33060.71981 | J31: 32952.36829 | K31: =J35 -> 32805.9427 | M31: RY21 added. Calculated consistent with 2015 DPP financial model and IM 4.2.1 (4).
A32: Years of remaining life | D32: =$C$11+$C30 -> 46 | E32: =D32-1 -> 45 | F32: 44 | G32: 43 | H32: 42 | I32: 41 | J32: 40 | K32: =J32-1 -> 39 | M32: RY21 added. Calculated consistent with 2015 DPP financial model and IM 4.2.2(3)(b).
A33: Revaluation of assets | D33: =D31*D$27 -> 0 | E33: 0 | F33: 579.8149513 | G33: 701.8295421 | H33: 717.9405643 | I33: 698.0074927 | J33: 677.383622 | K33: =K31*K$27 -> 623.3129113 | M33: RY21 added. Calculated consistent with 2015 DPP financial model and IM 4.2.3 (2)(b).
A34: Depreciation of assets | D34: =D31/D32 -> 0 | E34: 0 | F34: 758.6539785 | G34: 772.1380472 | H34: 788.8482743 | I34: 806.3590198 | J34: 823.8092071 | K34: =K31/K32 -> 841.178018 | M34: RY21 added. Calculated consistent with 2015 DPP financial model and IM 4.2.2 (2)(b).
A35: Closing RAB | D35: =D31+D33-D34+IF($C30=D$26,D$28,0) -> 0 | E35: 33380.77505 | F35: 33201.93603 | G35: 33131.62752 | H35: 33060.71981 | I35: 32952.36829 | J35: 32805.9427 | K35: =K31+K33-K34+IF($C30=K$26,K$28,0) -> 32588.07759 | M35: RY21 added. Calculated consistent with 2015 DPP financial model and IM 4.2.1 (5).
A36: Assets commissioned in 2015/16:
A37: Year asset is added during modelling period | C37: =F26 -> 3 | M37: No change from 2015 DPP financial model.
A38: Opening RAB | D38: 0 | E38: =D42 -> 0 | F38: 0 | G38: 27257.41116 | H38: 27214.09746 | I38: 27170.92306 | J38: 27097.65315 | K38: =J42 -> 26993.76626 | M38: RY21 added. Calculated consistent with 2015 DPP financial model and IM 4.2.1 (4).
A39: Years of remaining life | D39: =$C$11+$C37 -> 47 | E39: =D39-1 -> 46 | F39: 45 | G39: 44 | H39: 43 | I39: 42 | J39: 41 | K39: =J39-1 -> 40 | M39: RY21 added. Calculated consistent with 2015 DPP financial model and IM 4.2.2(3)(b).
A40: Revaluation of assets | D40: =D38*D$27 -> 0 | E40: 0 | F40: 0 | G40: 576.1729189 | H40: 589.7115823 | I40: 573.6568346 | J40: 557.031479 | K40: =K38*K$27 -> 512.881559 | M40: RY21 added. Calculated consistent with 2015 DPP financial model and IM 4.2.3 (2)(b).
A41: Depreciation of assets | D41: =D38/D39 -> 0 | E41: 0 | F41: 0 | G41: 619.4866173 | H41: 632.8859875 | I41: 646.9267395 | J41: 660.9183696 | K41: =K38/K39 -> 674.8441566 | M41: RY21 added. Calculated consistent with 2015 DPP financial model and IM 4.2.2 (2)(b).
A42: Closing RAB | D42: =D38+D40-D41+IF($C37=D$26,D$28,0) -> 0 | E42: 0 | F42: 27257.41116 | G42: 27214.09746 | H42: 27170.92306 | I42: 27097.65315 | J42: 26993.76626 | K42: 26831.80367 | M42: RY21 added. Calculated consistent with 2015 DPP financial model and IM 4.2.1 (5).
A43: Assets commissioned in 2016/17:
A44: Year asset is added during modelling period | C44: =G26 -> 4 | M44: No change from 2015 DPP financial model.
A45: Opening RAB | D45: 0 | E45: =D49 -> 0 | F45: 0 | G45: 0 | H45: 28408.34119 | I45: 28378.28713 | J45: 28317.47474 | K45: =J49 -> 28225.35583 | M45: RY21 added. Calculated consistent with 2015 DPP financial model and IM 4.2.1 (4).
A46: Years of remaining life | D46: =$C$11+$C44 -> 48 | E46: =D46-1 -> 47 | F46: 46 | G46: 45 | H46: 44 | I46: 43 | J46: 42 | K46: =J46-1 -> 41 | M46: RY21 added. Calculated consistent with 2015 DPP financial model and IM 4.2.2(3)(b).
A47: Revaluation of assets | D47: =D45*D$27 -> 0 | E47: 0 | F47: 0 | G47: 0 | H47: 615.5900578 | I47: 599.1477849 | J47: 582.1066772 | K47: =K45*K$27 -> 536.2817608 | M47: RY21 added. Calculated consistent with 2015 DPP financial model and IM 4.2.3 (2)(b).
A48: Depreciation of assets | D48: =D45/D46 -> 0 | E48: 0 | F48: 0 | G48: 0 | H48: 645.6441179 | I48: 659.9601657 | J48: 674.2255892 | K48: =K45/K46 -> 688.423313 | M48: RY21 added. Calculated consistent with 2015 DPP financial model and IM 4.2.2 (2)(b).
A49: Closing RAB | D49: =D45+D47-D48+IF($C44=D$26,D$28,0) -> 0 | E49: 0 | F49: 0 | G49: 28408.34119 | H49: 28378.28713 | I49: 28317.47474 | J49: 28225.35583 | K49: 28073.21428 | M49: RY21 added. Calculated consistent with 2015 DPP financial model and IM 4.2.1 (5).
A50: Assets commissioned in 2017/18:
A51: Year asset is added during modelling period | C51: =H26 -> 5 | M51: No change from 2015 DPP financial model.
A52: Opening RAB | D52: 0 | E52: =D56 -> 0 | F52: 0 | G52: 0 | H52: 0 | I52: 34853.11279 | J52: 34796.84669 | K52: =J56 -> 34702.91724 | M52: RY21 added. Calculated consistent with 2015 DPP financial model and IM 4.2.1 (4).
A53: Years of remaining life | D53: =$C$11+$C51 -> 49 | E53: =D53-1 -> 48 | F53: 47 | G53: 46 | H53: 45 | I53: 44 | J53: 43 | K53: =J53-1 -> 42 | M53: RY21 added. Calculated consistent with 2015 DPP financial model and IM 4.2.2(3)(b).
A54: Revaluation of assets | D54: =D52*D$27 -> 0 | E54: 0 | F54: 0 | G54: 0 | H54: 0 | I54: 735.8500967 | J54: 715.299545 | K54: =K52*K$27 -> 659.3554275 | M54: RY21 added. Calculated consistent with 2015 DPP financial model and IM 4.2.3 (2)(b).
A55: Depreciation of assets | D55: =D52/D53 -> 0 | E55: 0 | F55: 0 | G55: 0 | H55: 0 | I55: 792.1161998 | J55: 809.2289927 | K55: =K52/K53 -> 826.2599343 | M55: RY21 added. Calculated consistent with 2015 DPP financial model and IM 4.2.2 (2)(b).
A56: Closing RAB | D56: =D52+D54-D55+IF($C51=D$26,D$28,0) -> 0 | E56: 0 | F56: 0 | G56: 0 | H56: 34853.11279 | I56: 34796.84669 | J56: 34702.91724 | K56: 34536.01273 | M56: RY21 added. Calculated consistent with 2015 DPP financial model and IM 4.2.1 (5).
A57: Assets commissioned in 2018/19:
A58: Year asset is added during modelling period | C58: =I26 -> 6 | M58: No change
A59: Opening RAB | D59: 0 | E59: =D63 -> 0 | F59: 0 | G59: 0 | H59: 0 | I59: 0 | J59: 31196.83322 | K59: =J63 -> 31129.11034 | M59: RY21 added. Calculated consistent with 2015 DPP financial model and IM 4.2.1 (4).
A60: Years of remaining life | D60: =$C$11+$C58 -> 50 | E60: =D60-1 -> 49 | F60: 48 | G60: 47 | H60: 46 | I60: 45 | J60: 44 | K60: =J60-1 -> 43 | M60: RY21 added. Calculated consistent with 2015 DPP financial model and IM 4.2.2(3)(b).
A61: Revaluation of assets | D61: =D59*D$27 -> 0 | E61: 0 | F61: 0 | G61: 0 | H61: 0 | I61: 0 | J61: 641.296058 | K61: =K59*K$27 -> 591.4530965 | M61: RY21 added. Calculated consistent with 2015 DPP financial model and IM 4.2.3 (2)(b).
A62: Depreciation of assets | D62: =D59/D60 -> 0 | E62: 0 | F62: 0 | G62: 0 | H62: 0 | I62: 0 | J62: 709.0189368 | K62: =K59/K60 -> 723.9327986 | M62: RY21 added. Calculated consistent with 2015 DPP financial model and IM 4.2.2 (2)(b).
A63: Closing RAB | D63: =D59+D61-D62+IF($C58=D$26,D$28,0) -> 0 | E63: 0 | F63: 0 | G63: 0 | H63: 0 | I63: 31196.83322 | J63: 31129.11034 | K63: 30996.63064 | M63: RY21 added. Calculated consistent with 2015 DPP financial model and IM 4.2.1 (5).
A64: Assets commissioned in 2019/20:
A65: Year asset is added during modelling period | C65: =J26 -> 7 | M65: No change from 2015 DPP financial model.
A66: Opening RAB | D66: 0 | E66: =D70 -> 0 | F66: 0 | G66: 0 | H66: 0 | I66: 0 | J66: 0 | K66: =J70 -> 31209.07158 | M66: RY21 added. Calculated consistent with 2015 DPP financial model and IM 4.2.1 (4).
A67: Years of remaining life | D67: =$C$11+$C65 -> 51 | E67: =D67-1 -> 50 | F67: 49 | G67: 48 | H67: 47 | I67: 46 | J67: 45 | K67: =J67-1 -> 44 | M67: RY21 added. Calculated consistent with 2015 DPP financial model and IM 4.2.2(3)(b).
A68: Revaluation of assets | D68: =D66*D$27 -> 0 | E68: 0 | F68: 0 | G68: 0 | H68: 0 | I68: 0 | J68: 0 | K68: =K66*K$27 -> 592.9723601 | M68: RY21 added. Calculated consistent with 2015 DPP financial model and IM 4.2.3 (2)(b).
A69: Depreciation of assets | D69: =D66/D67 -> 0 | E69: 0 | F69: 0 | G69: 0 | H69: 0 | I69: 0 | J69: 0 | K69: =K66/K67 -> 709.2970815 | M69: RY21 added. Calculated consistent with 2015 DPP financial model and IM 4.2.2 (2)(b).
A70: Closing RAB | D70: =D66+D68-D69+IF($C65=D$26,D$28,0) -> 0 | E70: 0 | F70: 0 | G70: 0 | H70: 0 | I70: 0 | J70: 31209.07158 | K70: 31092.74686 | M70: RY21 added. Calculated consistent with 2015 DPP financial model and IM 4.2.1 (5).
A71: Assets commissioned in 2020/21:
A72: Year asset is added during modelling period | C72: =K26 -> 8 | M72: Added roll forward for assets commissioned in RY21.
A73: Opening RAB | D73: 0 | E73: =D77 -> 0 | F73: 0 | G73: 0 | H73: 0 | I73: 0 | J73: 0 | K73: 0 | M73: Calculated consistent with 2015 DPP financial model and IM 4.2.1 (4) applied to RY21
A74: Years of remaining life | D74: =$C$11+$C72 -> 52 | E74: =D74-1 -> 51 | F74: 50 | G74: 49 | H74: 48 | I74: 47 | J74: 46 | K74: 45 | M74: Calculated consistent with 2015 DPP financial model and IM 4.2.2 (3)(b) applied to RY21
A75: Revaluation of assets | D75: =D73*D$27 -> 0 | E75: 0 | F75: 0 | G75: 0 | H75: 0 | I75: 0 | J75: 0 | K75: 0 | M75: Calculated consistent with 2015 DPP financial model and IM 4.2.3 (2)(b) applied to RY21
A76: Depreciation of assets | D76: =D73/D74 -> 0 | E76: 0 | F76: 0 | G76: 0 | H76: 0 | I76: 0 | J76: 0 | K76: 0 | M76: Calculated consistent with 2015 DPP financial model and IM 4.2.2 (2)(b) applied to RY21
A77: Closing RAB | D77: =D73+D75-D76+IF($C72=D$26,D$28,0) -> 0 | E77: =E73+E75-E76+IF($C72=E$26,E$28,0) -> 0 | F77: =F73+F75-F76+IF($C72=F$26,F$28,0) -> 0 | G77: =G73+G75-G76+IF($C72=G$26,G$28,0) -> 0 | H77: =H73+H75-H76+IF($C72=H$26,H$28,0) -> 0 | I77: =I73+I75-I76+IF($C72=I$26,I$28,0) -> 0 | J77: =J73+J75-J76+IF($C72=J$26,J$28,0) -> 0 | K77: =K73+K75-K76+IF($C72=K$26,K$28,0) -> 32603.01262 | M77: Calculated consistent with 2015 DPP financial model and IM 4.2.1 (5) applied to RY21
A79: Aggregate roll forward of additional assets
A81: Opening RAB of commissioned additional assets | D81: =D31+D38+D45+D52+D59+D66+D73 -> 0 | E81: =E31+E38+E45+E52+E59+E66+E73 -> 0 | F81: 33380.77505 | G81: 60459.34719 | H81: 88754.06617 | I81: 123463.0428 | J81: =J31+J38+J45+J52+J59+J66+J73 -> 154361.1761 | K81: =K31+K38+K45+K52+K59+K66+K73 -> 185066.164 | M81: Calculation amended to include RY21 roll forward of additional assets.
A82: Revaluation of commissioned additional assets | D82: =D33+D40+D47+D54+D61+D68+D75 -> 0 | E82: =E33+E40+E47+E54+E61+E68+E75 -> 0 | F82: 579.8149513 | G82: 1278.002461 | H82: 1923.242204 | I82: 2606.662209 | J82: 3173.117381 | K82: =K33+K40+K47+K54+K61+K68+K75 -> 3516.257115 | M82: Calculation amended to include RY21 roll forward of additional assets.
A83: Depreciation of commissioned additional assets | D83: =D34+D41+D48+D55+D62+D69+D76 -> 0 | E83: 0 | F83: 758.6539785 | G83: 1391.624664 | H83: 2067.37838 | I83: 2905.362125 | J83: 3677.201095 | K83: =K34+K41+K48+K55+K62+K69+K76 -> 4463.935302 | M83: Calculation amended to include RY21 roll forward of additional assets.
A84: Closing RAB of commissioned additional assets | D84: =D35+D42+D49+D56+D63+D70+D77 -> 0 | E84: 33380.77505 | F84: 60459.34719 | G84: 88754.06617 | H84: 123463.0428 | I84: 154361.1761 | J84: 185066.164 | K84: =K35+K42+K49+K56+K63+K70+K77 -> 216721.4984 | M84: Calculation amended to include RY21 roll forward of additional assets.
A86: Combined roll forward of existing and additional assets
D88: ='EDB data'!B$20 -> 2013/14 | E88: ='EDB data'!C$20 -> 2014/15 | F88: ='EDB data'!D$20 -> 2015/16 | G88: ='EDB data'!E$20 -> 2016/17 | H88: ='EDB data'!F$20 -> 2017/18 | I88: ='EDB data'!G$20 -> 2018/19 | J88: ='EDB data'!H$20 -> 2019/20 | K88: ='EDB data'!I$20 -> 2020/21
A89: Aggregate opening RAB value | D89: =C5 -> 555989.8374 | E89: =E18+E81 -> 569510.1895 | F89: 582291.2612 | G89: 589754.7243 | H89: 599557.5244 | I89: 614997.4572 | J89: =J18+J81 -> 625245.0654 | K89: =K18+K81 -> 633911.3469 | M89: RY21 added. Calculated consistent with 2015 DPP financial model.
A90: Total revaluation | D90: =C7 -> 8517.846814 | E90: =E20+E82 -> 8112.742305 | F90: 10103.03982 | G90: 12453.10133 | H90: 12978.77986 | I90: 12971.84151 | J90: 12840.99395 | K90: =K20+K82 -> 12033.76552 | M90: RY21 added. Calculated consistent with 2015 DPP financial model.
A91: Total depreciation | D91: =C6 -> 26602 | E91: 28618.16798 | F91: 29801.07257 | G91: 30960.69971 | H91: 32291.89473 | I91: 33818.88881 | J91: 35279.50586 | K91: =K21+K83 -> 36754.25378 | M91: RY21 added. Calculated consistent with 2015 DPP financial model.
A92: Aggregate closing RAB value | D92: =D22+D84 -> 569510.1895 | E92: 582291.2612 | F92: 589754.7243 | G92: 599557.5244 | H92: 614997.4572 | I92: 625245.0654 | J92: 633911.3469 | K92: =K22+K84 -> 641687.4495 | M92: RY21 added. Calculated consistent with 2015 DPP financial model.
A93: Check that closing value is as expected. Should = 0 | E93: =E89+E28+E90-E91-E19-E92 -> 0 | F93: 0 | G93: 0 | H93: 0 | I93: 0 | J93: 0 | K93: 0 | M93: RY21 added. Calculated consistent with 2015 DPP financial model.
A94: Outputs
D96: ='EDB data'!B$20 -> 2013/14 | E96: ='EDB data'!C$20 -> 2014/15 | F96: ='EDB data'!D$20 -> 2015/16 | G96: ='EDB data'!E$20 -> 2016/17 | H96: ='EDB data'!F$20 -> 2017/18 | I96: ='EDB data'!G$20 -> 2018/19 | J96: ='EDB data'!H$20 -> 2019/20 | K96: ='EDB data'!I$20 -> 2020/21
A97: Remaining asset life of existing assets | D97: =D17 -> 20.90030214 | E97: 19.90030214 | F97: 18.90030214 | G97: 17.90030214 | H97: 16.90030214 | I97: 15.90030214 | J97: 14.90030214 | K97: =K17 -> 13.90030214 | M97: RY21 added. Calculated consistent with 2015 DPP financial model.
A98: Total depreciation | D98: =D91 -> 26602 | E98: 28618.16798 | F98: 29801.07257 | G98: 30960.69971 | H98: 32291.89473 | I98: 33818.88881 | J98: 35279.50586 | K98: =K91 -> 36754.25378 | M98: RY21 added. Calculated consistent with 2015 DPP financial model.
A99: Aggregate opening RAB value | D99: =D89 -> 555989.8374 | E99: 569510.1895 | F99: 582291.2612 | G99: 589754.7243 | H99: 599557.5244 | I99: 614997.4572 | J99: 625245.0654 | K99: =K89 -> 633911.3469 | M99: RY21 added. Calculated consistent with 2015 DPP financial model.
A100: Total revaluation | D100: 8517.846814 | E100: 8112.742305 | F100: 10103.03982 | G100: 12453.10133 | H100: 12978.77986 | I100: 12971.84151 | J100: 12840.99395 | K100: =K90 -> 12033.76552 | M100: RY21 added. Calculated consistent with 2015 DPP financial model.
A101: Aggregate closing RAB value | D101: =D92 -> 569510.1895 | E101: 582291.2612 | F101: 589754.7243 | G101: 599557.5244 | H101: 614997.4572 | I101: 625245.0654 | J101: 633911.3469 | K101: =K92 -> 641687.4495 | M101: RY21 added. Calculated consistent with 2015 DPP financial model.

Sheet TAX
A1: Tax calculations | M1: Additional Notes and Logic explanation
A2: Calculations involving the roll-forward of adjusted depreciation regulatory asset values, deferred tax and tax adjustments.
A3: Inputs
B4: Source | C4: Value | D4: ='EDB data'!B$20 -> 2013/14 | E4: ='EDB data'!C$20 -> 2014/15 | F4: ='EDB data'!D$20 -> 2015/16 | G4: ='EDB data'!E$20 -> 2016/17 | H4: ='EDB data'!F$20 -> 2017/18 | I4: ='EDB data'!G$20 -> 2018/19 | J4: ='EDB data'!H$20 -> 2019/20 | K4: ='EDB data'!I$20 -> 2020/21
A5: Year in modelling period | B5: EDB data | D5: ='EDB data'!B21 -> 1 | E5: ='EDB data'!C21 -> 2 | F5: ='EDB data'!D21 -> 3 | G5: ='EDB data'!E21 -> 4 | H5: ='EDB data'!F21 -> 5 | I5: ='EDB data'!G21 -> 6 | J5: ='EDB data'!H21 -> 7 | K5: ='EDB data'!I21 -> 8 | M5: RY21 added. Calculated consistent with 2015 DPP financial model and 'EDB data' inputs.
A6: Tax rate | B6: EDB data | D6: ='EDB data'!B25 -> 0.28 | E6: ='EDB data'!C25 -> 0.28 | F6: ='EDB data'!D25 -> 0.28 | G6: ='EDB data'!E25 -> 0.28 | H6: ='EDB data'!F25 -> 0.28 | I6: ='EDB data'!G25 -> 0.28 | J6: ='EDB data'!H25 -> 0.28 | K6: ='EDB data'!I25 -> 0.28 | M6: RY21 added. Calculated consistent with 2015 DPP financial model and 'EDB data' inputs.
A7: Value of commissioned assets | B7: EDB data | D7: ='EDB data'!$B64 -> 31580.53291 | E7: ='EDB data'!$B65 -> 33380.77505 | F7: ='EDB data'!$B66 -> 27257.41116 | G7: ='EDB data'!$B67 -> 28408.34119 | H7: ='EDB data'!$B68 -> 34853.11279 | I7: ='EDB data'!$B69 -> 31196.83322 | J7: ='EDB data'!$B70 -> 31209.07158 | K7: ='EDB data'!$B71 -> 32603.01262 | M7: RY21 added. Calculated consistent with 2015 DPP financial model and 'EDB data' inputs.
A8: Remaining life of newly commissioned assets | B8: EDB data | D8: ='EDB data'!B13 -> 44 | M8: No change from 2015 DPP financial model.
A9: Amortisation of initial differences in asset values | B9: EDB data | D9: ='EDB data'!B38 -> 6153.707972 | M9: No change from 2015 DPP financial model.
A10: Lost assets | B10: EDB data | D10: ='EDB data'!B29 -> 0 | M10: No change from 2015 DPP financial model.
A11: Found assets | B11: EDB data | D11: ='EDB data'!B30 -> 0 | M11: No change from 2015 DPP financial model.
A12: Disposed assets | B12: EDB data | D12: ='EDB data'!$B74 -> 371 | E12: ='EDB data'!$B75 -> 94.27768896 | F12: ='EDB data'!$B76 -> 95.91526668 | G12: ='EDB data'!$B77 -> 97.94274386 | H12: ='EDB data'!$B78 -> 100.0650987 | I12: ='EDB data'!$B79 -> 102.1777625 | J12: ='EDB data'!$B80 -> 104.2781743 | K12: ='EDB data'!$B81 -> 106.4217631 | M12: RY21 added. Calculated consistent with 2015 DPP financial model and 'EDB data' inputs.
A13: Opening RAB excluding revaluations | B13: EDB data | D13: ='EDB data'!B34 -> 521133.3345 | M13: No change from 2015 DPP financial model.
A14: Adjusted depreciation | B14: EDB data | D14: ='EDB data'!B35 -> 25002.70595 | M14: No change from 2015 DPP financial model.
A15: Tax depreciation | B15: EDB data | D15: ='EDB data'!B36 -> 28396.70973 | M15: No change from 2015 DPP financial model.
A16: Opening regulatory tax asset value | B16: EDB data | D16: ='EDB data'!B37 -> 345886.8305 | M16: No change from 2015 DPP financial model.
A17: Opening deferred tax balance | B17: EDB data | D17: ='EDB data'!B40 -> -17901.38546 | M17: No change from 2015 DPP financial model.
A18: Cost of debt | B18: EDB data | D18: ='EDB data'!B11 -> 0.0609 | K18: ='EDB data'!D11 -> 0.0292 | M18: No change from 2015 DPP financial model, except addition of 2020/21 cost of debt
A19: Leverage | B19: EDB data | D19: ='EDB data'!B12 -> 0.44 | M19: No change from 2015 DPP financial model.
A20: Remaining asset life of existing assets | B20: RAB | D20: =RAB!D97 -> 20.90030214 | E20: =RAB!E97 -> 19.90030214 | F20: =RAB!F97 -> 18.90030214 | G20: =RAB!G97 -> 17.90030214 | H20: =RAB!H97 -> 16.90030214 | I20: =RAB!I97 -> 15.90030214 | J20: =RAB!J97 -> 14.90030214 | K20: =RAB!K97 -> 13.90030214 | M20: RY21 added. Calculated consistent with 2015 DPP financial model.
A21: Total depreciation | B21: RAB | D21: =RAB!D98 -> 26602 | E21: =RAB!E98 -> 28618.16798 | F21: =RAB!F98 -> 29801.07257 | G21: =RAB!G98 -> 30960.69971 | H21: =RAB!H98 -> 32291.89473 | I21: =RAB!I98 -> 33818.88881 | J21: =RAB!J98 -> 35279.50586 | K21: =RAB!K98 -> 36754.25378 | M21: RY21 added. Calculated consistent with 2015 DPP financial model.
A22: Term credit spread differential allowance | B22: BBAR | D22: =BBAR!D58 -> 563.4100427 | E22: =BBAR!E58 -> 577.1108365 | F22: =BBAR!F58 -> 590.0624836 | G22: =BBAR!G58 -> 597.6255536 | H22: =BBAR!H58 -> 607.5591812 | I22: =BBAR!I58 -> 623.2051744 | J22: =BBAR!J58 -> 633.5895465 | K22: =BBAR!K58 -> 642.3714876 | M22: RY21 added. Calculated consistent with 2015 DPP financial model.
A23: Opening investment value | B23: BBAR | D23: =BBAR!D56 -> 538088.452 | E23: =BBAR!E56 -> 548935.4447 | F23: =BBAR!F56 -> 559388.9602 | G23: =BBAR!G56 -> 564627.3309 | H23: =BBAR!H56 -> 572418.1055 | I23: =BBAR!I56 -> 586036.4495 | J23: =BBAR!J56 -> 594544.7028 | K23: =BBAR!K56 -> 601625.7999 | M23: RY21 added. Calculated consistent with 2015 DPP financial model.
A24: Calculations
A25: Adjusted RAB & depreciation of assets commissioned
C26: Value | D26: ='EDB data'!B$20 -> 2013/14 | E26: ='EDB data'!C$20 -> 2014/15 | F26: ='EDB data'!D$20 -> 2015/16 | G26: ='EDB data'!E$20 -> 2016/17 | H26: ='EDB data'!F$20 -> 2017/18 | I26: ='EDB data'!G$20 -> 2018/19 | J26: ='EDB data'!H$20 -> 2019/20 | K26: ='EDB data'!I$20 -> 2020/21
A27: Commissioned assets | D27: =D7 -> 31580.53291 | E27: 33380.77505 | F27: 27257.41116 | G27: 28408.34119 | H27: 34853.11279 | I27: 31196.83322 | J27: 31209.07158 | K27: 32603.01262 | M27: RY21 added. Calculated consistent with 2015 DPP financial model.
A28: Assets commissioned in 2014/15: | C28: =E5 -> 2 | M28: No change from 2015 DPP financial model.
A29: Opening RAB, adjusted depreciation | D29: 0 | E29: =D32 -> 0 | F29: 33380.77505 | G29: 32622.12108 | H29: 31863.4671 | I29: 31104.81312 | J29: 30346.15914 | K29: 29587.50516 | M29: RY21 added. Calculated consistent with 2015 DPP financial model and the IM definition of adjusted depreciation in IM 1.1.4.
A30: Years of remaining life | D30: =$D$8+$C28 -> 46 | E30: =D30-1 -> 45 | F30: 44 | G30: 43 | H30: 42 | I30: 41 | J30: 40 | K30: 39 | M30: RY21 added. Calculated consistent with 2015 DPP financial model and the IM definition of adjusted depreciation in IM 1.1.4.
A31: Adjusted depreciation | D31: =D29/D30 -> 0 | E31: 0 | F31: 758.6539785 | G31: 758.6539785 | H31: 758.6539785 | I31: 758.6539785 | J31: 758.6539785 | K31: =K29/K30 -> 758.6539785 | M31: RY21 added. Calculated consistent with 2015 DPP financial model and the IM definition of adjusted depreciation in IM 1.1.4.
A32: Closing RAB, adjusted depreciation | D32: =D29-D31+IF($C28=D$5,D$27,0) -> 0 | E32: 33380.77505 | F32: 32622.12108 | G32: 31863.4671 | H32: 31104.81312 | I32: 30346.15914 | J32: 29587.50516 | K32: 28828.85118 | M32: RY21 added. Calculated consistent with 2015 DPP financial model and the IM definition of adjusted depreciation in IM 1.1.4.
A33: Assets commissioned in 2015/16: | C33: =F5 -> 3 | M33: No change from 2015 DPP financial model.
A34: Opening RAB, adjusted depreciation | D34: 0 | E34: =D37 -> 0 | F34: 0 | G34: 27257.41116 | H34: 26637.92455 | I34: 26018.43793 | J34: 25398.95131 | K34: 24779.46469 | M34: RY21 added. Calculated consistent with 2015 DPP financial model and the IM definition of adjusted depreciation in IM 1.1.4.
A35: Years of remaining life | D35: =$D$8+$C33 -> 47 | E35: =D35-1 -> 46 | F35: 45 | G35: 44 | H35: 43 | I35: 42 | J35: 41 | K35: 40 | M35: RY21 added. Calculated consistent with 2015 DPP financial model and the IM definition of adjusted depreciation in IM 1.1.4.
A36: Adjusted depreciation | D36: =D34/D35 -> 0 | E36: 0 | F36: 0 | G36: 619.4866173 | H36: 619.4866173 | I36: 619.4866173 | J36: 619.4866173 | K36: =K34/K35 -> 619.4866173 | M36: RY21 added. Calculated consistent with 2015 DPP financial model and the IM definition of adjusted depreciation in IM 1.1.4.
A37: Closing RAB, adjusted depreciation | D37: =D34-D36+IF($C33=D$5,D$27,0) -> 0 | E37: 0 | F37: 27257.41116 | G37: 26637.92455 | H37: 26018.43793 | I37: 25398.95131 | J37: 24779.46469 | K37: 24159.97808 | M37: RY21 added. Calculated consistent with 2015 DPP financial model and the IM definition of adjusted depreciation in IM 1.1.4.
A38: Assets commissioned in 2016/17: | C38: =G5 -> 4 | M38: No change from 2015 DPP financial model.
A39: Opening RAB, adjusted depreciation | D39: 0 | E39: =D42 -> 0 | F39: 0 | G39: 0 | H39: 28408.34119 | I39: 27762.69707 | J39: 27117.05295 | K39: 26471.40883 | M39: RY21 added. Calculated consistent with 2015 DPP financial model and the IM definition of adjusted depreciation in IM 1.1.4.
A40: Years of remaining life | D40: =$D$8+$C38 -> 48 | E40: =D40-1 -> 47 | F40: 46 | G40: 45 | H40: 44 | I40: 43 | J40: 42 | K40: 41 | M40: RY21 added. Calculated consistent with 2015 DPP financial model and the IM definition of adjusted depreciation in IM 1.1.4.
A41: Adjusted depreciation | D41: =D39/D40 -> 0 | E41: 0 | F41: 0 | G41: 0 | H41: 645.6441179 | I41: 645.6441179 | J41: 645.6441179 | K41: =K39/K40 -> 645.6441179 | M41: RY21 added. Calculated consistent with 2015 DPP financial model and the IM definition of adjusted depreciation in IM 1.1.4.
A42: Closing RAB, adjusted depreciation | D42: =D39-D41+IF($C38=D$5,D$27,0) -> 0 | E42: 0 | F42: 0 | G42: 28408.34119 | H42: 27762.69707 | I42: 27117.05295 | J42: 26471.40883 | K42: 25825.76471 | M42: RY21 added. Calculated consistent with 2015 DPP financial model and the IM definition of adjusted depreciation in IM 1.1.4.
A43: Assets commissioned in 2017/18: | C43: =H5 -> 5 | M43: No change from 2015 DPP financial model.
A44: Opening RAB, adjusted depreciation | D44: 0 | E44: =D47 -> 0 | F44: 0 | G44: 0 | H44: 0 | I44: 34853.11279 | J44: 34060.99659 | K44: 33268.88039 | M44: RY21 added. Calculated consistent with 2015 DPP financial model and the IM definition of adjusted depreciation in IM 1.1.4.
A45: Years of remaining life | D45: =$D$8+$C43 -> 49 | E45: =D45-1 -> 48 | F45: 47 | G45: 46 | H45: 45 | I45: 44 | J45: 43 | K45: 42 | M45: RY21 added. Calculated consistent with 2015 DPP financial model and the IM definition of adjusted depreciation in IM 1.1.4.
A46: Adjusted depreciation | D46: =D44/D45 -> 0 | E46: 0 | F46: 0 | G46: 0 | H46: 0 | I46: 792.1161998 | J46: 792.1161998 | K46: =K44/K45 -> 792.1161998 | M46: RY21 added. Calculated consistent with 2015 DPP financial model and the IM definition of adjusted depreciation in IM 1.1.4.
A47: Closing RAB, adjusted depreciation | D47: =D44-D46+IF($C43=D$5,D$27,0) -> 0 | E47: 0 | F47: 0 | G47: 0 | H47: 34853.11279 | I47: 34060.99659 | J47: 33268.88039 | K47: 32476.76419 | M47: RY21 added. Calculated consistent with 2015 DPP financial model and the IM definition of adjusted depreciation in IM 1.1.4.
A48: Assets commissioned in 2018/19: | C48: =I5 -> 6 | M48: No change from 2015 DPP financial model.
A49: Opening RAB, adjusted depreciation | D49: 0 | E49: =D52 -> 0 | F49: 0 | G49: 0 | H49: 0 | I49: 0 | J49: 31196.83322 | K49: 30487.81428 | M49: RY21 added. Calculated consistent with 2015 DPP financial model and the IM definition of adjusted depreciation in IM 1.1.4.
A50: Years of remaining life | D50: =$D$8+$C48 -> 50 | E50: =D50-1 -> 49 | F50: 48 | G50: 47 | H50: 46 | I50: 45 | J50: 44 | K50: 43 | M50: RY21 added. Calculated consistent with 2015 DPP financial model and the IM definition of adjusted depreciation in IM 1.1.4.
A51: Adjusted depreciation | D51: =D49/D50 -> 0 | E51: 0 | F51: 0 | G51: 0 | H51: 0 | I51: 0 | J51: 709.0189368 | K51: =K49/K50 -> 709.0189368 | M51: RY21 added. Calculated consistent with 2015 DPP financial model and the IM definition of adjusted depreciation in IM 1.1.4.
A52: Closing RAB, adjusted depreciation | D52: =D49-D51+IF($C48=D$5,D$27,0) -> 0 | E52: 0 | F52: 0 | G52: 0 | H52: 0 | I52: 31196.83322 | J52: 30487.81428 | K52: 29778.79535 | M52: RY21 added. Calculated consistent with 2015 DPP financial model and the IM definition of adjusted depreciation in IM 1.1.4.
A53: Assets commissioned in 2019/20: | C53: =J5 -> 7 | M53: No change from 2015 DPP financial model.
A54: Opening RAB, adjusted depreciation | D54: 0 | E54: =D57 -> 0 | F54: 0 | G54: 0 | H54: 0 | I54: 0 | J54: 0 | K54: 31209.07158 | M54: RY21 added. Calculated consistent with 2015 DPP financial model and the IM definition of adjusted depreciation in IM 1.1.4.
A55: Years of remaining life | D55: =$D$8+$C53 -> 51 | E55: =D55-1 -> 50 | F55: 49 | G55: 48 | H55: 47 | I55: 46 | J55: 45 | K55: 44 | M55: RY21 added. Calculated consistent with 2015 DPP financial model and the IM definition of adjusted depreciation in IM 1.1.4.
A56: Adjusted depreciation | D56: =D54/D55 -> 0 | E56: 0 | F56: 0 | G56: 0 | H56: 0 | I56: 0 | J56: 0 | K56: =K54/K55 -> 709.2970815 | M56: RY21 added. Calculated consistent with 2015 DPP financial model and the IM definition of adjusted depreciation in IM 1.1.4.
A57: Closing RAB, adjusted depreciation | D57: =D54-D56+IF($C53=D$5,D$27,0) -> 0 | E57: 0 | F57: 0 | G57: 0 | H57: 0 | I57: 0 | J57: 31209.07158 | K57: 30499.7745 | M57: RY21 added. Calculated consistent with 2015 DPP financial model and the IM definition of adjusted depreciation in IM 1.1.4.
A58: Assets commissioned in 2020/21: | C58: =K5 -> 8 | M58: Added roll forward for assets commissioned in RY21.
A59: Opening RAB, adjusted depreciation | D59: 0 | E59: =D62 -> 0 | F59: =E62 -> 0 | G59: =F62 -> 0 | H59: =G62 -> 0 | I59: =H62 -> 0 | J59: =I62 -> 0 | K59: =J62 -> 0 | M59: RY21 roll forward added. Calculated consistent with 2015 DPP financial model and the IM definition of adjusted depreciation in IM 1.1.4.
A60: Years of remaining life | D60: =$D$8+$C58 -> 52 | E60: =D60-1 -> 51 | F60: =E60-1 -> 50 | G60: =F60-1 -> 49 | H60: =G60-1 -> 48 | I60: =H60-1 -> 47 | J60: =I60-1 -> 46 | K60: =J60-1 -> 45 | M60: RY21 roll forward added. Calculated consistent with 2015 DPP financial model and the IM definition of adjusted depreciation in IM 1.1.4.
A61: Adjusted depreciation | D61: =D59/D60 -> 0 | E61: 0 | F61: 0 | G61: 0 | H61: 0 | I61: 0 | J61: 0 | K61: 0 | M61: RY21 roll forward added. Calculated consistent with 2015 DPP financial model and the IM definition of adjusted depreciation in IM 1.1.4.
A62: Closing RAB, adjusted depreciation | D62: =D59-D61+IF($C58=D$5,D$27,0) -> 0 | E62: 0 | F62: 0 | G62: 0 | H62: 0 | I62: 0 | J62: 0 | K62: 32603.01262 | M62: RY21 roll forward added. Calculated consistent with 2015 DPP financial model and the IM definition of adjusted depreciation in IM 1.1.4.
A63: Total assets commissioned
A64: Total adjusted depreciation of commissioned assets | D64: =D31+D36+D41+D46+D51+D56+D61 -> 0 | E64: =E31+E36+E41+E46+E51+E56+E61 -> 0 | F64: 758.6539785 | G64: 1378.140596 | H64: 2023.784714 | I64: 2815.900913 | J64: 3524.91985 | K64: =K31+K36+K41+K46+K51+K56+K61 -> 4234.216932 | M64: Calculation amended to include RY21 adjusted depreciation of commissioned assets.
A65: Adjusted depreciation of existing assets
C66: Value | D66: ='EDB data'!B$20 -> 2013/14 | E66: ='EDB data'!C$20 -> 2014/15 | F66: ='EDB data'!D$20 -> 2015/16 | G66: ='EDB data'!E$20 -> 2016/17 | H66: ='EDB data'!F$20 -> 2017/18 | I66: ='EDB data'!G$20 -> 2018/19 | J66: ='EDB data'!H$20 -> 2019/20 | K66: ='EDB data'!I$20 -> 2020/21
A67: Opening RAB value of existing assets, adjusted depreciation | D67: =D13 -> 521133.3345 | E67: =D73 -> 527340.1614 | F67: 500746.7805 | G67: 474156.7501 | H67: 447570.0506 | I67: 420987.024 | J67: 394408.178 | K67: 367834.0891 | M67: RY21 added. Calculated consistent with 2015 DPP financial model and the IM definition of adjusted depreciation in IM 1.1.4.
A68: Disposed assets | D68: =D12 -> 371 | E68: 94.27768896 | F68: 95.91526668 | G68: 97.94274386 | H68: 100.0650987 | I68: 102.1777625 | J68: 104.2781743 | K68: 106.4217631 | M68: RY21 added. Calculated consistent with 2015 DPP financial model and the IM definition of adjusted depreciation in IM 1.1.4.
A69: Base year lost assets | D69: =D10 -> 0 | M69: No change from 2015 DPP financial model.
A70: Base year found assets | D70: =D11 -> 0 | M70: No change from 2015 DPP financial model.
A71: Adjusted depreciation of existing assets | D71: =D14 -> 25002.70595 | E71: =E67/E20 -> 26499.10327 | F71: 26494.11511 | G71: 26488.75681 | H71: 26482.96148 | I71: 26476.6682 | J71: 26469.81077 | K71: =K67/K20 -> 26462.30891 | M71: RY21 added. Calculated consistent with 2015 DPP financial model and the IM definition of adjusted depreciation in IM 1.1.4.
A72: Base year commissioned assets | D72: =D7 -> 31580.53291 | M72: No change from 2015 DPP financial model.
A73: Closing RAB value of existing assets, adjusted depreciation | D73: =D67-D68-D69+D70-D71+D72 -> 527340.1614 | E73: =E67-E68-E71 -> 500746.7805 | F73: 474156.7501 | G73: 447570.0506 | H73: 420987.024 | I73: 394408.178 | J73: 367834.0891 | K73: =K67-K68-K71 -> 341265.3584 | M73: RY21 added. Calculated consistent with 2015 DPP financial model and the IM definition of adjusted depreciation in IM 1.1.4.
A74: Regulatory tax asset value
C75: Value | D75: ='EDB data'!B$20 -> 2013/14 | E75: ='EDB data'!C$20 -> 2014/15 | F75: ='EDB data'!D$20 -> 2015/16 | G75: ='EDB data'!E$20 -> 2016/17 | H75: ='EDB data'!F$20 -> 2017/18 | I75: ='EDB data'!G$20 -> 2018/19 | J75: ='EDB data'!H$20 -> 2019/20 | K75: ='EDB data'!I$20 -> 2020/21
A76: Average DV rate | C76: =D15/D16 -> 0.08209826806 | M76: No change from 2015 DPP financial model and IM 4.3.5 (3)(b).
A77: Opening regulatory tax asset value | D77: =D16 -> 345886.8305 | E77: =D80 -> 349070.6537 | F77: 353793.3327 | G77: 352004.924 | H77: 351514.2705 | I77: 357508.6705 | J77: 359354.6611 | K77: =J80 -> 361061.3374 | M77: RY21 added. Calculated consistent with 2015 DPP financial model and IM 4.3.5 (3)(a).
A78: Tax depreciation | D78: =D15 -> 28396.70973 | E78: =E77*$C76 -> 28658.0961 | F78: 29045.81986 | G78: 28898.9946 | H78: 28858.71281 | I78: 29350.84267 | J78: 29502.39529 | K78: =K77*$C76 -> 29642.51046 | M78: RY21 added. Calculated consistent with 2015 DPP financial model and IM 4.3.5 (2).
A79: Value of commissioned assets | D79: =D7 -> 31580.53291 | E79: 33380.77505 | F79: 27257.41116 | G79: 28408.34119 | H79: 34853.11279 | I79: 31196.83322 | J79: 31209.07158 | K79: 32603.01262 | M79: RY21 added. Calculated consistent with 2015 DPP financial model.
A80: Closing regulatory tax asset value | D80: =D77-D78+D79 -> 349070.6537 | E80: 353793.3327 | F80: 352004.924 | G80: 351514.2705 | H80: 357508.6705 | I80: 359354.6611 | J80: 361061.3374 | K80: =K77-K78+K79 -> 364021.8395 | M80: RY21 added. Calculated consistent with 2015 DPP financial model and IM 4.3.5 (3)(c).
A81: Depreciation temporary differences
C82: Value | D82: ='EDB data'!B$20 -> 2013/14 | E82: ='EDB data'!C$20 -> 2014/15 | F82: ='EDB data'!D$20 -> 2015/16 | G82: ='EDB data'!E$20 -> 2016/17 | H82: ='EDB data'!F$20 -> 2017/18 | I82: ='EDB data'!G$20 -> 2018/19 | J82: ='EDB data'!H$20 -> 2019/20 | K82: ='EDB data'!I$20 -> 2020/21
A83: Total adjusted depreciation of assets | D83: =D64+D71 -> 25002.70595 | E83: 26499.10327 | F83: 27252.76909 | G83: 27866.8974 | H83: 28506.7462 | I83: 29292.56911 | J83: 29994.73062 | K83: =K64+K71 -> 30696.52584 | M83: RY21 added. Calculated consistent with 2015 DPP financial model.
A84: Tax depreciation | D84: =D78 -> 28396.70973 | E84: 28658.0961 | F84: 29045.81986 | G84: 28898.9946 | H84: 28858.71281 | I84: 29350.84267 | J84: 29502.39529 | K84: =K78 -> 29642.51046 | M84: RY21 added. Calculated consistent with 2015 DPP financial model.
A85: Depreciation temporary differences | D85: =D83-D84 -> -3394.003776 | E85: -2158.992828 | F85: -1793.05077 | G85: -1032.0972 | H85: -351.9666113 | I85: -58.27355087 | J85: 492.3353296 | K85: =K83-K84 -> 1054.01538 | M85: RY21 added. Calculated consistent with 2015 DPP financial model and IM 4.3.5 (1).
A86: Deductions for regulatory tax purposes
A87: Amortisation of initial differences in asset values | D87: =D9 -> 6153.707972 | E87: =D87 -> 6153.707972 | F87: 6153.707972 | G87: 6153.707972 | H87: 6153.707972 | I87: 6153.707972 | J87: 6153.707972 | K87: 6153.707972 | M87: RY21 added. Calculated consistent with 2015 DPP financial model.
A88: Notional deductible interest | D88: =(D23*$D$19*$D$18+D22)/(1+$D$18)^0.5 -> 14545.65845 | E88: =(E23*$D$19*$D$18+E22)/(1+$D$18)^0.5 -> 14841.1505 | F88: 15125.6787 | G88: 15269.3005 | H88: 15481.62596 | I88: =(I23*$D$19*$D$18+I22)/(1+$D$18)^0.5 -> 15851.10473 | J88: 16082.5334 | K88: =(K23*$D$19*$K$18+K22)/(1+$K$18)^0.5 -> 8252.441059 | M88: RY21 added and references to D18 changed to K18. Calculated consistent with 2015 DPP financial model and IM 5.3.16(2).
A89: Amortisation of revaluations | D89: =D21-D83 -> 1599.294046 | E89: 2119.064713 | F89: 2548.303476 | G89: 3093.8023 | H89: 3785.14853 | I89: 4526.319697 | J89: 5284.775242 | K89: =K21-K83 -> 6057.727937 | M89: RY21 added. Calculated consistent with 2015 DPP financial model and IM 4.3.3 (5).
A90: Regulatory tax adjustments | D90: =D87+D89-D88 -> -6792.656431 | E90: -6568.377814 | F90: -6423.667252 | G90: -6021.790226 | H90: -5542.769456 | I90: -5171.077064 | J90: -4644.050187 | K90: =K87+K89-K88 -> 3958.99485 | M90: RY21 added. Calculated consistent with 2015 DPP financial model and IM 4.3.3 (1).
A92: Deferred tax asset value
C93: Value | D93: ='EDB data'!B$20 -> 2013/14 | E93: ='EDB data'!C$20 -> 2014/15 | F93: ='EDB data'!D$20 -> 2015/16 | G93: ='EDB data'!E$20 -> 2016/17 | H93: ='EDB data'!F$20 -> 2017/18 | I93: ='EDB data'!G$20 -> 2018/19 | J93: ='EDB data'!H$20 -> 2019/20 | K93: ='EDB data'!I$20 -> 2020/21
A94: Opening deferred tax | D94: =D17 -> -17901.38546 | E94: =D97 -> -20574.74475 | F94: -22902.30097 | G94: -25127.39342 | H94: -27139.41887 | I94: -28961.00775 | J94: -30700.36258 | K94: -32285.54692 | M94: RY21 added. Calculated consistent with 2015 DPP financial model and IM 4.3.4 (1).
A95: Depreciation temporary differences | D95: =D85 -> -3394.003776 | E95: -2158.992828 | F95: -1793.05077 | G95: -1032.0972 | H95: -351.9666113 | I95: -58.27355087 | J95: 492.3353296 | K95: =K85 -> 1054.01538 | M95: RY21 added. Calculated consistent with 2015 DPP financial model.
A96: Amortisation of initial differences in asset values | D96: =D87 -> 6153.707972 | E96: 6153.707972 | F96: 6153.707972 | G96: 6153.707972 | H96: 6153.707972 | I96: 6153.707972 | J96: 6153.707972 | K96: =K87 -> 6153.707972 | M96: RY21 added. Calculated consistent with 2015 DPP financial model.
A97: Closing deferred tax | D97: =D94+(D95-D96)*D6 -> -20574.74475 | E97: -22902.30097 | F97: -25127.39342 | G97: -27139.41887 | H97: -28961.00775 | I97: -30700.36258 | J97: -32285.54692 | K97: -33713.46085 | M97: RY21 added. Calculated consistent with 2015 DPP financial model and IM 4.3.4 (2).
A98: Outputs
C99: Value | D99: ='EDB data'!B$20 -> 2013/14 | E99: ='EDB data'!C$20 -> 2014/15 | F99: ='EDB data'!D$20 -> 2015/16 | G99: ='EDB data'!E$20 -> 2016/17 | H99: ='EDB data'!F$20 -> 2017/18 | I99: ='EDB data'!G$20 -> 2018/19 | J99: ='EDB data'!H$20 -> 2019/20 | K99: ='EDB data'!I$20 -> 2020/21
A100: Total adjusted depreciation of commissioned assets | D100: =D64 -> 0 | E100: 0 | F100: 758.6539785 | G100: 1378.140596 | H100: 2023.784714 | I100: 2815.900913 | J100: 3524.91985 | K100: =K64 -> 4234.216932 | M100: RY21 added. Calculated consistent with 2015 DPP financial model.
A101: Opening deferred tax | D101: =D94 -> -17901.38546 | E101: -20574.74475 | F101: -22902.30097 | G101: -25127.39342 | H101: -27139.41887 | I101: -28961.00775 | J101: -30700.36258 | K101: =K94 -> -32285.54692 | M101: RY21 added. Calculated consistent with 2015 DPP financial model.
A102: Closing deferred tax | D102: =D97 -> -20574.74475 | E102: -22902.30097 | F102: -25127.39342 | G102: -27139.41887 | H102: -28961.00775 | I102: -30700.36258 | J102: -32285.54692 | K102: =K97 -> -33713.46085 | M102: RY21 added. Calculated consistent with 2015 DPP financial model.
A103: Regulatory tax adjustments | D103: =D90 -> -6792.656431 | E103: -6568.377814 | F103: -6423.667252 | G103: -6021.790226 | H103: -5542.769456 | I103: -5171.077064 | J103: -4644.050187 | K103: =K90 -> 3958.99485 | M103: RY21 added. Calculated consistent with 2015 DPP financial model.

Sheet BBAR
A1: Building blocks allowable revenue | M1: Logic explanation
A2: Derivation of BBAR present value, opening investment value, and TCSD allowance.
A3: Inputs
B4: Source | C4: Value | D4: ='EDB data'!B$20 -> 2013/14 | E4: ='EDB data'!C$20 -> 2014/15 | F4: ='EDB data'!D$20 -> 2015/16 | G4: ='EDB data'!E$20 -> 2016/17 | H4: ='EDB data'!F$20 -> 2017/18 | I4: ='EDB data'!G$20 -> 2018/19 | J4: ='EDB data'!H$20 -> 2019/20 | K4: ='EDB data'!I$20 -> 2020/21
A5: Year in regulatory period | B5: EDB data | F5: ='EDB data'!D22 -> 1 | G5: ='EDB data'!E22 -> 2 | H5: ='EDB data'!F22 -> 3 | I5: ='EDB data'!G22 -> 4 | J5: ='EDB data'!H22 -> 5 | K5: ='EDB data'!I22 -> 6 | M5: RY21 added. Calculated consistent with 2015 DPP financial model and 'EDB Data' inputs.
A6: Tax rate | B6: EDB data | D6: ='EDB data'!B25 -> 0.28 | E6: ='EDB data'!C25 -> 0.28 | F6: ='EDB data'!D25 -> 0.28 | G6: ='EDB data'!E25 -> 0.28 | H6: ='EDB data'!F25 -> 0.28 | I6: ='EDB data'!G25 -> 0.28 | J6: ='EDB data'!H25 -> 0.28 | K6: ='EDB data'!I25 -> 0.28 | M6: RY21 added. Calculated consistent with 2015 DPP financial model and 'EDB Data' inputs.
A7: Other regulated income | B7: EDB data | D7: ='EDB data'!$B84 -> 191 | E7: ='EDB data'!$B85 -> 425.2561056 | F7: ='EDB data'!$B86 -> 432.642688 | G7: ='EDB data'!$B87 -> 441.7879806 | H7: ='EDB data'!$B88 -> 451.3612354 | I7: ='EDB data'!$B89 -> 460.8907776 | J7: ='EDB data'!$B90 -> 470.3650546 | K7: ='EDB data'!$B91 -> 480.034089 | M7: RY21 added. Calculated consistent with 2015 DPP financial model and 'EDB Data' inputs.
A8: Term credit spread differential allowance | B8: EDB data | D8: ='EDB data'!B39 -> 563.4100427 | M8: No change from 2015 DPP financial model.
A9: Value of commissioned assets | B9: EDB data | D9: ='EDB data'!$B64 -> 31580.53291 | E9: ='EDB data'!$B65 -> 33380.77505 | F9: ='EDB data'!$B66 -> 27257.41116 | G9: ='EDB data'!$B67 -> 28408.34119 | H9: ='EDB data'!$B68 -> 34853.11279 | I9: ='EDB data'!$B69 -> 31196.83322 | J9: ='EDB data'!$B70 -> 31209.07158 | K9: ='EDB data'!$B71 -> 32603.01262 | M9: RY21 added. Calculated consistent with 2015 DPP financial model and 'EDB Data' inputs.
A10: Operating expenditure | B10: EDB data | D10: ='EDB data'!$B45 -> 29611.04613 | E10: ='EDB data'!$B46 -> 29751.79577 | F10: ='EDB data'!$B47 -> 30899.2206 | G10: ='EDB data'!$B48 -> 31949.9157 | H10: ='EDB data'!$B49 -> 32913.54284 | I10: ='EDB data'!$B50 -> 33903.49023 | J10: ='EDB data'!$B51 -> 34788.813 | K10: ='EDB data'!$B52 -> 33434 | M10: RY21 added. Calculated consistent with 2015 DPP financial model and 'EDB Data' inputs.
A11: Vanilla WACC (67th percentile) | B11: EDB data | C11: =WACC -> 0.0719 | K11: ='EDB data'!D10 -> 0.0457 | M11: No change from 2015 DPP financial model, except 2020/21 values added.
A12: TFopex | B12: TIMING | C12: =TIMING!C23 -> 1.035227567 | K12: =TIMING!E23 -> 1.022532143 | M12: No change from 2015 DPP financial model, except 2020/21 values added.
A13: TFtax | B13: TIMING | C13: =TIMING!C24 -> 1.035227567 | K13: =TIMING!E24 -> 1.022532143 | M13: No change from 2015 DPP financial model, except 2020/21 values added.
A14: TFVCA | B14: TIMING | C14: =TIMING!C25 -> 1.035227567 | K14: =TIMING!E25 -> 1.022532143 | M14: No change from 2015 DPP financial model, except 2020/21 values added.
A15: TFori | B15: TIMING | C15: =TIMING!C26 -> 1.035227567 | K15: =TIMING!E26 -> 1.022532143 | M15: No change from 2015 DPP financial model, except 2020/21 values added.
A16: TFrev | B16: TIMING | C16: =TIMING!C27 -> 1.028553621 | K16: =TIMING!E27 -> 1.018284618 | M16: No change from 2015 DPP financial model, except 2020/21 values added.
A17: Aggregate opening RAB value | B17: RAB | D17: =RAB!D99 -> 555989.8374 | E17: =RAB!E99 -> 569510.1895 | F17: =RAB!F99 -> 582291.2612 | G17: =RAB!G99 -> 589754.7243 | H17: =RAB!H99 -> 599557.5244 | I17: =RAB!I99 -> 614997.4572 | J17: =RAB!J99 -> 625245.0654 | K17: =RAB!K99 -> 633911.3469 | M17: RY21 added. Calculated consistent with 2015 DPP financial model.
A18: Total revaluation | B18: RAB | D18: =RAB!D100 -> 8517.846814 | E18: =RAB!E100 -> 8112.742305 | F18: =RAB!F100 -> 10103.03982 | G18: =RAB!G100 -> 12453.10133 | H18: =RAB!H100 -> 12978.77986 | I18: =RAB!I100 -> 12971.84151 | J18: =RAB!J100 -> 12840.99395 | K18: =RAB!K100 -> 12033.76552 | M18: RY21 added. Calculated consistent with 2015 DPP financial model.
A19: Total depreciation | B19: RAB | D19: =RAB!D98 -> 26602 | E19: =RAB!E98 -> 28618.16798 | F19: =RAB!F98 -> 29801.07257 | G19: =RAB!G98 -> 30960.69971 | H19: =RAB!H98 -> 32291.89473 | I19: =RAB!I98 -> 33818.88881 | J19: =RAB!J98 -> 35279.50586 | K19: =RAB!K98 -> 36754.25378 | M19: RY21 added. Calculated consistent with 2015 DPP financial model.
A20: Opening deferred tax | B20: TAX | D20: =TAX!D101 -> -17901.38546 | E20: =TAX!E101 -> -20574.74475 | F20: =TAX!F101 -> -22902.30097 | G20: =TAX!G101 -> -25127.39342 | H20: =TAX!H101 -> -27139.41887 | I20: =TAX!I101 -> -28961.00775 | J20: =TAX!J101 -> -30700.36258 | K20: =TAX!K101 -> -32285.54692 | M20: RY21 added. Calculated consistent with 2015 DPP financial model.
A21: Closing deferred tax | B21: TAX | D21: =TAX!D102 -> -20574.74475 | E21: =TAX!E102 -> -22902.30097 | F21: =TAX!F102 -> -25127.39342 | G21: =TAX!G102 -> -27139.41887 | H21: =TAX!H102 -> -28961.00775 | I21: =TAX!I102 -> -30700.36258 | J21: =TAX!J102 -> -32285.54692 | K21: =TAX!K102 -> -33713.46085 | M21: RY21 added. Calculated consistent with 2015 DPP financial model.
A22: Regulatory tax adjustments | B22: TAX | D22: =TAX!D103 -> -6792.656431 | E22: =TAX!E103 -> -6568.377814 | F22: =TAX!F103 -> -6423.667252 | G22: =TAX!G103 -> -6021.790226 | H22: =TAX!H103 -> -5542.769456 | I22: =TAX!I103 -> -5171.077064 | J22: =TAX!J103 -> -4644.050187 | K22: =TAX!K103 -> 3958.99485 | M22: RY21 added. Calculated consistent with 2015 DPP financial model.
A23: Calculations
A24: Term credit spread differential allowance
D25: ='EDB data'!B$20 -> 2013/14 | E25: ='EDB data'!C$20 -> 2014/15 | F25: ='EDB data'!D$20 -> 2015/16 | G25: ='EDB data'!E$20 -> 2016/17 | H25: ='EDB data'!F$20 -> 2017/18 | I25: ='EDB data'!G$20 -> 2018/19 | J25: ='EDB data'!H$20 -> 2019/20 | K25: ='EDB data'!I$20 -> 2020/21
A26: Asset base scaling factor | D26: =D17/$D$17 -> 1 | E26: 1.024317624 | F26: 1.047305584 | G26: 1.060729324 | H26: 1.078360581 | I26: 1.106130752 | J26: 1.124562039 | K26: =K17/$D$17 -> 1.140149161 | M26: RY21 added. Calculated consistent with 2015 DPP financial model and IM 4.4.7 (2).
A27: Term credit spread differential allowance | D27: =IF(D8>0,D8,0) -> 563.4100427 | E27: =$D27*E26 -> 577.1108365 | F27: 590.0624836 | G27: 597.6255536 | H27: 607.5591812 | I27: 623.2051744 | J27: 633.5895465 | K27: =$D27*K26 -> 642.3714876 | M27: RY21 added. Calculated consistent with 2015 DPP financial model and IM 4.4.7 (2).
A28: Return on capital
D29: ='EDB data'!B$20 -> 2013/14 | E29: ='EDB data'!C$20 -> 2014/15 | F29: ='EDB data'!D$20 -> 2015/16 | G29: ='EDB data'!E$20 -> 2016/17 | H29: ='EDB data'!F$20 -> 2017/18 | I29: ='EDB data'!G$20 -> 2018/19 | J29: ='EDB data'!H$20 -> 2019/20 | K29: ='EDB data'!I$20 -> 2020/21
A30: Opening investment value | D30: =D17+D20 -> 538088.452 | E30: 548935.4447 | F30: 559388.9602 | G30: 564627.3309 | H30: 572418.1055 | I30: 586036.4495 | J30: 594544.7028 | K30: =K17+K20 -> 601625.7999 | M30: RY21 added. Calculated consistent with 2015 DPP financial model and IM 4.3.3 (4).
A31: Value of commissioned assets | D31: =D9 -> 31580.53291 | E31: 33380.77505 | F31: 27257.41116 | G31: 28408.34119 | H31: 34853.11279 | I31: 31196.83322 | J31: 31209.07158 | K31: =K9 -> 32603.01262 | M31: RY21 added. Calculated consistent with 2015 DPP financial model.
A32: Term credit spread differential allowance | D32: =D27 -> 563.4100427 | E32: 577.1108365 | F32: 590.0624836 | G32: 597.6255536 | H32: 607.5591812 | I32: 623.2051744 | J32: 633.5895465 | K32: =K27 -> 642.3714876 | M32: RY21 added. Calculated consistent with 2015 DPP financial model.
A33: Total revaluation | D33: =D18 -> 8517.846814 | E33: 8112.742305 | F33: 10103.03982 | G33: 12453.10133 | H33: 12978.77986 | I33: 12971.84151 | J33: 12840.99395 | K33: =K18 -> 12033.76552 | M33: RY21 added. Calculated consistent with 2015 DPP financial model.
A34: Return on capital | D34: =D30*$C$11+D31*($C$14-1)+D32-D33 -> 31846.62826 | E34: 33108.7505 | F34: 31667.30118 | G34: 29741.98605 | H34: 30013.43147 | I34: 30886.37291 | J34: =J30*$C$11+J31*($C$14-1)+J32-J33 -> 31639.77939 | K34: =K30*$K$11+K31*($K$14-1)+K32-K33 -> 16837.52078 | M34: RY21 added. References changed: C11 to K11, C14 to K14
A35: Operating expenditure
D36: ='EDB data'!B$20 -> 2013/14 | E36: ='EDB data'!C$20 -> 2014/15 | F36: ='EDB data'!D$20 -> 2015/16 | G36: ='EDB data'!E$20 -> 2016/17 | H36: ='EDB data'!F$20 -> 2017/18 | I36: ='EDB data'!G$20 -> 2018/19 | J36: ='EDB data'!H$20 -> 2019/20 | K36: ='EDB data'!I$20 -> 2020/21
A37: Operating expenditure | D37: =D10 -> 29611.04613 | E37: 29751.79577 | F37: 30899.2206 | G37: 31949.9157 | H37: 32913.54284 | I37: 33903.49023 | J37: 34788.813 | K37: =K10 -> 33434 | M37: RY21 added. Calculated consistent with 2015 DPP financial model.
A38: Operating expenditure allowance | D38: =D37*$C$12 -> 30654.17124 | E38: 30799.87914 | F38: 31987.72496 | G38: 33075.4335 | H38: 34073.00688 | I38: 35097.8277 | J38: =J37*$C$12 -> 36014.33824 | K38: =K37*$K$12 -> 34187.33968 | M38: RY21 added. Reference changed: C12 to K12
A39: Building block allowable revenue before tax (BBAR before tax)
D40: ='EDB data'!B$20 -> 2013/14 | E40: ='EDB data'!C$20 -> 2014/15 | F40: ='EDB data'!D$20 -> 2015/16 | G40: ='EDB data'!E$20 -> 2016/17 | H40: ='EDB data'!F$20 -> 2017/18 | I40: ='EDB data'!G$20 -> 2018/19 | J40: ='EDB data'!H$20 -> 2019/20 | K40: ='EDB data'!I$20 -> 2020/21
A41: Increase in deferred tax asset, ΔDT | D41: =D21-D20 -> -2673.359289 | E41: -2327.556224 | F41: -2225.092448 | G41: -2012.025448 | H41: -1821.588883 | I41: -1739.354826 | J41: -1585.18434 | K41: =K21-K20 -> -1427.913926 | M41: RY21 added. Calculated consistent with 2015 DPP financial model.
A42: BBAR before tax in revenue date terms, calculation not referencing tax | D42: =(D34+D19+D38+((D7-D37-D19+D22)*D6+D41)*$C13-D41-D7*$C15)/($C16-D6*$C13) -> 95578.9319 | E42: 99235.90887 | F42: 99633.73932 | G42: 99360.96877 | H42: 102167.9002 | I42: 105956.6625 | J42: =(J34+J19+J38+((J7-J37-J19+J22)*J6+J41)*$C13-J41-J7*$C15)/($C16-J6*$C13) -> 109478.6633 | K42: =(K34+K19+K38+((K7-K37-K19+K22)*K6+K41)*$K13-K41-K7*$K15)/($K16-K6*$K13) -> 93488.76312 | M42: RY21 added. References changed: C13 to K13, C15 to K15, C16 to K16
A43: Regulatory tax allowance before considering possibility of tax losses | D43: =(D42+D7-D37-D19+D22)*D6 -> 9173.984214 | E43: 9722.390555 | F43: 9223.878043 | G43: 8643.698313 | H43: 8923.895247 | I43: 9386.747204 | J43: 9866.264615 | K43: =(K42+K7-K37-K19+K22)*K6 -> 7767.070718 | M43: RY21 added. Calculated consistent with 2015 DPP financial model.
A44: Regulatory tax allowance | D44: =IF(D43<0,#N/A,D43) -> 9173.984214 | E44: 9722.390555 | F44: 9223.878043 | G44: 8643.698313 | H44: 8923.895247 | I44: 9386.747204 | J44: 9866.264615 | K44: =IF(K43<0,#N/A,K43) -> 7767.070718 | M44: RY21 added. Calculated consistent with 2015 DPP financial model.
A45: BBAR before tax in year-end terms, direct simple calculation | D45: =D34+D19+D38+(D44+D41)*$C$13-D41-D7*$C$15 -> 98308.05645 | E45: 102069.4534 | F45: 102478.6433 | G45: 102198.0842 | H45: 105085.1637 | I45: 108982.1088 | J45: 112604.6755 | K45: =K34+K19+K38+(K44+K41)*$K$13-K41-K7*$K$15 -> 95198.16946 | M45: RY21 added. References changed: C13 to K13, C15 to K15
A46: BBAR before tax in revenue date terms | D46: =D45/$C$16 -> 95578.9319 | E46: 99235.90887 | F46: 99633.73932 | G46: 99360.96877 | H46: 102167.9002 | I46: 105956.6625 | J46: 109478.6633 | K46: =K45/$K$16 -> 93488.76312 | M46: RY21 added. Reference changed: C16 to K16
A47: Difference between the two BBAR calculations (should = 0) | D47: =D42-D46 -> 0 | E47: 0 | F47: 0 | G47: 0 | H47: 0 | I47: 0 | J47: 0 | K47: =K42-K46 -> 0 | M47: RY21 added. Calculated consistent with 2015 DPP financial model.
A48: Present value of the building block allowable revenue before tax
C49: Value | D49: ='EDB data'!B$20 -> 2013/14 | E49: ='EDB data'!C$20 -> 2014/15 | F49: ='EDB data'!D$20 -> 2015/16 | G49: ='EDB data'!E$20 -> 2016/17 | H49: ='EDB data'!F$20 -> 2017/18 | I49: ='EDB data'!G$20 -> 2018/19 | J49: ='EDB data'!H$20 -> 2019/20
A50: Number of years to discount the year-end values to start of the present value period | F50: =F5 -> 1 | G50: =G5 -> 2 | H50: =H5 -> 3 | I50: =I5 -> 4 | J50: =J5 -> 5 | M50: No change from 2015 DPP financial model.
A51: BBAR before tax in year-end terms, i.e. Rev * TFrev | F51: =F45 -> 102478.6433 | G51: =G45 -> 102198.0842 | H51: =H45 -> 105085.1637 | I51: =I45 -> 108982.1088 | J51: =J45 -> 112604.6755 | M51: No change from 2015 DPP financial model.
A52: PV at 1 Apr 2015 of BBAR before tax for each year | F52: =F51/(1+WACC)^F$50 -> 95604.6677 | G52: =G51/(1+WACC)^G$50 -> 88947.59555 | H52: =H51/(1+WACC)^H$50 -> 85325.45097 | I52: =I51/(1+WACC)^I$50 -> 82554.00049 | J52: =J51/(1+WACC)^J$50 -> 79576.5431 | M52: No change from 2015 DPP financial model.
A53: PV at 1 Apr 2015 of BBAR before tax over the regulatory period | C53: =SUM(F52:J52) -> 432008.2578 | M53: No change from 2015 DPP financial model.
A54: Outputs
C55: Value | D55: ='EDB data'!B$20 -> 2013/14 | E55: ='EDB data'!C$20 -> 2014/15 | F55: ='EDB data'!D$20 -> 2015/16 | G55: ='EDB data'!E$20 -> 2016/17 | H55: ='EDB data'!F$20 -> 2017/18 | I55: ='EDB data'!G$20 -> 2018/19 | J55: ='EDB data'!H$20 -> 2019/20 | K55: ='EDB data'!I$20 -> 2020/21
A56: Opening investment value | D56: =D30 -> 538088.452 | E56: 548935.4447 | F56: 559388.9602 | G56: 564627.3309 | H56: 572418.1055 | I56: 586036.4495 | J56: 594544.7028 | K56: =K30 -> 601625.7999 | M56: RY21 added. Calculated consistent with 2015 DPP financial model.
A57: PV at 1 Apr 2015 of BBAR before tax over the regulatory period | C57: =C53 -> 432008.2578 | M57: No change from 2015 DPP financial model.
A58: Term credit spread differential allowance | D58: =D27 -> 563.4100427 | E58: 577.1108365 | F58: 590.0624836 | G58: 597.6255536 | H58: 607.5591812 | I58: 623.2051744 | J58: 633.5895465 | K58: =K27 -> 642.3714876 | M58: RY21 added. Calculated consistent with 2015 DPP financial model.
A59: BBAR before tax in revenue date terms, calculation not referencing tax | D59: =D42 -> 95578.9319 | E59: 99235.90887 | F59: 99633.73932 | G59: 99360.96877 | H59: 102167.9002 | I59: 105956.6625 | J59: 109478.6633 | K59: =K42 -> 93488.76312 | M59: RY21 added. Calculated consistent with 2015 DPP financial model.

Sheet REV
A1: Revenue growth index | B1: There are no differences on this sheet between the 2018 model and this reconsideration model. | J1: Logic explanation
A2: Derivation of the normalised profile of the maximum allowable revenue before tax values.
A3: Inputs
B4: Source | C4: Value | D4: ='EDB data'!D$20 -> 2015/16 | E4: ='EDB data'!E$20 -> 2016/17 | F4: ='EDB data'!F$20 -> 2017/18 | G4: ='EDB data'!G$20 -> 2018/19 | H4: ='EDB data'!H$20 -> 2019/20
A5: Constant price revenue growth | B5: EDB data | D5: ='EDB data'!$B57 -> 0.004460946114 | E5: ='EDB data'!$B58 -> 0.004471688252 | F5: ='EDB data'!$B59 -> 0.004471688252 | G5: ='EDB data'!$B60 -> 0.004471688252 | H5: ='EDB data'!$B61 -> 0.004471688252 | J5: No change from 2015 DPP financial model.
A6: Industry-wide X factor | B6: EDB data | C6: ='EDB data'!B14 -> 0 | J6: No change from 2015 DPP financial model.
A7: Alternative X factor | B7: EDB data | C7: ='EDB data'!B42 -> 0 | J7: No change from 2015 DPP financial model.
A8: Forecast changes in the CPI element of the price path | B8: EDB data | D8: ='EDB data'!D24 -> 0.01529961751 | E8: ='EDB data'!E24 -> 0.01506906656 | F8: ='EDB data'!F24 -> 0.01773195876 | G8: ='EDB data'!G24 -> 0.02106969206 | H8: ='EDB data'!H24 -> 0.02152879479 | J8: No change from 2015 DPP financial model.
A9: Calculations
A10: ="Index of price path with industry-wide X factor of "&TEXT(C6,"#0.0%") -> Index of price path with industry-wide X factor of 0.0%
C11: Value | D11: ='EDB data'!D$20 -> 2015/16 | E11: ='EDB data'!E$20 -> 2016/17 | F11: ='EDB data'!F$20 -> 2017/18 | G11: ='EDB data'!G$20 -> 2018/19 | H11: ='EDB data'!H$20 -> 2019/20
A12: X value applied | C12: =C6 -> 0 | J12: No change from 2015 DPP financial model.
A13: Index of price path | D13: 1 | E13: =D13*(1+E$8)*(1-$C$6) -> 1.015069067 | F13: =E13*(1+F$8)*(1-$C$6) -> 1.033068229 | G13: =F13*(1+G$8)*(1-$C$6) -> 1.054834659 | H13: =G13*(1+H$8)*(1-$C$6) -> 1.077543978 | J13: No change from 2015 DPP financial model.
A14: Index of constant price growth | D14: 1 | E14: =D14*(1+E$5) -> 1.004471688 | F14: =E14*(1+F$5) -> 1.008963372 | G14: =F14*(1+G$5) -> 1.013475142 | H14: =G14*(1+H$5) -> 1.018007087 | J14: No change from 2015 DPP financial model.
A15: Indexed maximum allowable revenue before tax | D15: 1 | E15: =E13*E14 -> 1.019608139 | F15: =F13*F14 -> 1.042328005 | G15: =G13*G14 -> 1.069048706 | H15: =H13*H14 -> 1.096947406 | J15: No change from 2015 DPP financial model.
A16: ="CPI minus X revenues with applicable X factor (" & IF(ISNUMBER(C7),"alternate X factor of " & TEXT(C7,"#0.0%"), "industry-wide X factor of " & TEXT(C6,"#0.0%"))&")" -> CPI minus X revenues with applicable X factor (alternate X factor of 0.0%)
C17: Value | D17: ='EDB data'!D$20 -> 2015/16 | E17: ='EDB data'!E$20 -> 2016/17 | F17: ='EDB data'!F$20 -> 2017/18 | G17: ='EDB data'!G$20 -> 2018/19 | H17: ='EDB data'!H$20 -> 2019/20
A18: X value applied | C18: =IF(ISNUMBER(C7),C7,C6) -> 0 | J18: No change from 2015 DPP financial model.
A19: Index of price path | D19: 1 | E19: =D19*(1+E$8)*(1-$C$18) -> 1.015069067 | F19: =E19*(1+F$8)*(1-$C$18) -> 1.033068229 | G19: =F19*(1+G$8)*(1-$C$18) -> 1.054834659 | H19: =G19*(1+H$8)*(1-$C$18) -> 1.077543978 | J19: No change from 2015 DPP financial model.
A20: Index of constant price growth | D20: 1 | E20: =D20*(1+E$5) -> 1.004471688 | F20: =E20*(1+F$5) -> 1.008963372 | G20: =F20*(1+G$5) -> 1.013475142 | H20: =G20*(1+H$5) -> 1.018007087 | J20: No change from 2015 DPP financial model.
A21: Indexed maximum allowable revenue before tax | D21: 1 | E21: =E19*E20 -> 1.019608139 | F21: =F19*F20 -> 1.042328005 | G21: =G19*G20 -> 1.069048706 | H21: =H19*H20 -> 1.096947406 | J21: No change from 2015 DPP financial model.
A23: This data block calculates maximum allowable revenues for the regulatory period for the 2014/15 X value that has been applied. These
A24: Maximum allowable revenues are set PV equivalent to the corresponding maximum allowable revenues for the industry-wide X CPI - X revenues.
A25: Outputs
C26: Misc. | D26: ='EDB data'!D$20 -> 2015/16 | E26: ='EDB data'!E$20 -> 2016/17 | F26: ='EDB data'!F$20 -> 2017/18 | G26: ='EDB data'!G$20 -> 2018/19 | H26: ='EDB data'!H$20 -> 2019/20
A27: Indexed maximum allowable revenue before tax—industry wide X factor | D27: =D15 -> 1 | E27: =E15 -> 1.019608139 | F27: =F15 -> 1.042328005 | G27: =G15 -> 1.069048706 | H27: =H15 -> 1.096947406 | J27: No change from 2015 DPP financial model.
A28: Indexed maximum allowable revenue before tax—applicable X factor | D28: =D21 -> 1 | E28: =E21 -> 1.019608139 | F28: =F21 -> 1.042328005 | G28: =G21 -> 1.069048706 | H28: =H21 -> 1.096947406 | J28: No change from 2015 DPP financial model.

Sheet MAR
A1: Maximum allowable revenue | B1: There are no differences on this sheet between the 2018 model and this reconsideration model. | J1: Logic explanation
A2: Derivation of starting prices.
A3: Inputs
B4: Source | C4: Value | D4: ='EDB data'!D$20 -> 2015/16 | E4: ='EDB data'!E$20 -> 2016/17 | F4: ='EDB data'!F$20 -> 2017/18 | G4: ='EDB data'!G$20 -> 2018/19 | H4: ='EDB data'!H$20 -> 2019/20
A5: Year in regulatory period | B5: EDB data | D5: ='EDB data'!D22 -> 1 | E5: ='EDB data'!E22 -> 2 | F5: ='EDB data'!F22 -> 3 | G5: ='EDB data'!G22 -> 4 | H5: ='EDB data'!H22 -> 5 | J5: No change from 2015 DPP financial model.
A6: Industry-wide X factor | B6: EDB data | C6: ='EDB data'!B14 -> 0 | J6: No change from 2015 DPP financial model.
A7: Additional allowance in 1 April 2015 PV terms | B7: EDB data | C7: ='EDB data'!B41 -> 0 | J7: No change from 2015 DPP financial model.
A8: Alternative X factor | B8: EDB data | C8: ='EDB data'!B42 -> 0 | J8: No change from 2015 DPP financial model.
A9: Vanilla WACC (67th percentile) | B9: EDB data | C9: =WACC -> 0.0719 | J9: No change from 2015 DPP financial model.
A10: TFrev | B10: TIMING | C10: =TIMING!C27 -> 1.028553621 | J10: No change from 2015 DPP financial model.
A11: Constant price revenue growth 2015 | B11: EDB data | C11: ='EDB data'!B56 -> 0.004460946114 | J11: No change from 2015 DPP financial model.
A12: Constant price revenue growth 2016 | B12: EDB data | C12: ='EDB data'!B57 -> 0.004460946114 | J12: No change from 2015 DPP financial model.
A13: PV at 1 Apr 2015 of BBAR before tax over the regulatory period | B13: BBAR | C13: =BBAR!C57 -> 432008.2578 | J13: No change from 2015 DPP financial model.
A14: Indexed maximum allowable revenue before tax—industry wide X factor | B14: REV | D14: =REV!D27 -> 1 | E14: =REV!E27 -> 1.019608139 | F14: =REV!F27 -> 1.042328005 | G14: =REV!G27 -> 1.069048706 | H14: =REV!H27 -> 1.096947406 | J14: No change from 2015 DPP financial model.
A15: Indexed maximum allowable revenue before tax—applicable X factor | B15: REV | D15: =REV!D28 -> 1 | E15: =REV!E28 -> 1.019608139 | F15: =REV!F28 -> 1.042328005 | G15: =REV!G28 -> 1.069048706 | H15: =REV!H28 -> 1.096947406 | J15: No change from 2015 DPP financial model.
A16: Calculations
A17: ="CPI minus X revenues with industry-wide X factor of "&TEXT(C6,"#0.0%") -> CPI minus X revenues with industry-wide X factor of 0.0%
C18: PV at 1-Apr-15 | D18: ='EDB data'!D$20 -> 2015/16 | E18: ='EDB data'!E$20 -> 2016/17 | F18: ='EDB data'!F$20 -> 2017/18 | G18: ='EDB data'!G$20 -> 2018/19 | H18: ='EDB data'!H$20 -> 2019/20
A19: PV at 1 Apr 2015 of BBAR before tax over the regulatory period | C19: =C13 -> 432008.2578 | J19: No change from 2015 DPP financial model.
A20: Additional allowance | C20: =C7 -> 0 | J20: No change from 2015 DPP financial model.
A21: PV at 1 Apr 2015 of maximum allowable revenue before tax | C21: =C19+C20 -> 432008.2578 | J21: No change from 2015 DPP financial model.
A22: Indexed maximum allowable revenue before tax | D22: =D14 -> 1 | E22: =E14 -> 1.019608139 | F22: =F14 -> 1.042328005 | G22: =G14 -> 1.069048706 | H22: =H14 -> 1.096947406 | J22: No change from 2015 DPP financial model.
A23: Present value of indexed maximum allowable revenue for each year | D23: =D22/(1+$C$9)^D$5 -> 0.9329228473 | E23: =E22/(1+$C$9)^E$5 -> 0.8874108855 | F23: =F22/(1+$C$9)^F$5 -> 0.8463336206 | G23: =G22/(1+$C$9)^G$5 -> 0.8098049152 | H23: =H22/(1+$C$9)^H$5 -> 0.7752012259 | J23: No change from 2015 DPP financial model.
A24: Present value of indexed revenue | C24: =SUM(D23:H23) -> 4.251673494 | J24: No change from 2015 DPP financial model.
A25: Maximum allowable revenue before tax in first year of the regulatory period | C25: =C21/C24 -> 101608.9919 | J25: No change from 2015 DPP financial model.
A26: Maximum allowable revenue before tax in year-end terms | D26: =$C25*D22 -> 101608.9919 | E26: =$C25*E22 -> 103601.3552 | F26: =$C25*F22 -> 105909.8978 | G26: =$C25*G22 -> 108624.9613 | H26: =$C25*H22 -> 111459.7201 | J26: No change from 2015 DPP financial model.
A27: Maximum allowable revenue before tax in revenue-date terms | D27: =D26/$C$10 -> 98788.23029 | E27: =E26/$C$10 -> 100725.2836 | F27: =F26/$C$10 -> 102969.739 | G27: =G26/$C$10 -> 105609.4297 | H27: =H26/$C$10 -> 108365.493 | J27: No change from 2015 DPP financial model.
A28: PV at 1 Apr 2015 of maximum allowable revenue before tax in year-end terms in each year | D28: =D26/(1+$C$9)^D5 -> 94793.35007 | E28: =E26/(1+$C$9)^E5 -> 90168.9255 | F28: =F26/(1+$C$9)^F5 -> 85995.10603 | G28: =G26/(1+$C$9)^G5 -> 82283.46109 | H28: =H26/(1+$C$9)^H5 -> 78767.41512 | J28: No change from 2015 DPP financial model.
A29: PV at 1 Apr 2015 of maximum allowable revenue before tax | C29: =SUM(D28:H28) -> 432008.2578 | J29: No change from 2015 DPP financial model.
A30: Error check for PV equivalence (should = 0) | C30: =C21-C29 -> 0 | J30: No change from 2015 DPP financial model.
A31: ΔD | C31: =(1+$C$11)*(1+$C$12) -> 1.008941792 | J31: No change from 2015 DPP financial model.
A32: ANR 2016 (industry-wide X-factor) | C32: =C29/C31 -> 428179.5651 | J32: No change from 2015 DPP financial model.
A33: ="CPI minus X revenues with applicable X factor (" & IF(ISNUMBER(C8),"alternate X factor of " & TEXT(C8,"#0.0%"), "industry-wide X factor of " & TEXT(C6,"#0.0%"))&")" -> CPI minus X revenues with applicable X factor (alternate X factor of 0.0%)
C34: PV at 1-Apr-15 | D34: ='EDB data'!D$20 -> 2015/16 | E34: ='EDB data'!E$20 -> 2016/17 | F34: ='EDB data'!F$20 -> 2017/18 | G34: ='EDB data'!G$20 -> 2018/19 | H34: ='EDB data'!H$20 -> 2019/20
A35: PV at 1 Apr 2015 of BBAR before tax over the regulatory period | C35: =C13 -> 432008.2578 | J35: No change from 2015 DPP financial model.
A36: Additional allowance | C36: =C7 -> 0 | J36: No change from 2015 DPP financial model.
A37: PV at 1 Apr 2015 of maximum allowable revenue before tax | C37: =C35+C36 -> 432008.2578 | J37: No change from 2015 DPP financial model.
A38: Indexed maximum allowable revenue before tax | D38: =D15 -> 1 | E38: =E15 -> 1.019608139 | F38: =F15 -> 1.042328005 | G38: =G15 -> 1.069048706 | H38: =H15 -> 1.096947406 | J38: No change from 2015 DPP financial model.
A39: Present value of indexed maximum allowable revenue for each year | D39: =D38/(1+$C$9)^D$5 -> 0.9329228473 | E39: =E38/(1+$C$9)^E$5 -> 0.8874108855 | F39: =F38/(1+$C$9)^F$5 -> 0.8463336206 | G39: =G38/(1+$C$9)^G$5 -> 0.8098049152 | H39: =H38/(1+$C$9)^H$5 -> 0.7752012259 | J39: No change from 2015 DPP financial model.
A40: Present value of indexed revenue | C40: =SUM(D39:H39) -> 4.251673494 | J40: No change from 2015 DPP financial model.
A41: Maximum allowable revenue before tax in first year of the regulatory period | C41: =C37/C40 -> 101608.9919 | J41: No change from 2015 DPP financial model.
A42: Maximum allowable revenue before tax in year-end terms | D42: =$C41*D38 -> 101608.9919 | E42: =$C41*E38 -> 103601.3552 | F42: =$C41*F38 -> 105909.8978 | G42: =$C41*G38 -> 108624.9613 | H42: =$C41*H38 -> 111459.7201 | J42: No change from 2015 DPP financial model.
A43: Maximum allowable revenue before tax in revenue-date terms | D43: =D42/$C$10 -> 98788.23029 | E43: =E42/$C$10 -> 100725.2836 | F43: =F42/$C$10 -> 102969.739 | G43: =G42/$C$10 -> 105609.4297 | H43: =H42/$C$10 -> 108365.493 | J43: No change from 2015 DPP financial model.
A44: PV at 1 Apr 2015 of maximum allowable revenue before tax in year-end terms in each year | D44: =D42/(1+$C$9)^D$5 -> 94793.35007 | E44: =E42/(1+$C$9)^E$5 -> 90168.9255 | F44: =F42/(1+$C$9)^F$5 -> 85995.10603 | G44: =G42/(1+$C$9)^G$5 -> 82283.46109 | H44: =H42/(1+$C$9)^H$5 -> 78767.41512 | J44: No change from 2015 DPP financial model.
A45: PV at 1 Apr 2015 of maximum allowable revenue before tax | C45: =SUM(D44:H44) -> 432008.2578 | J45: No change from 2015 DPP financial model.
A46: Difference from PV equivalence (incentives etc.) | C46: =C37-C45 -> 0 | J46: No change from 2015 DPP financial model.
A47: ΔD | C47: =(1+$C$11)*(1+$C$12) -> 1.008941792 | J47: No change from 2015 DPP financial model.
A48: ANR 2016 (applicable X-factor) | C48: =D44/C47 -> 93953.23971 | J48: No change from 2015 DPP financial model.
A50: This data block uses the applicable 2014/15 X factor to calculate the maximum allowable revenues for the regulatory period. These allowed
A51: revenues are PV-equivalent to the corresponding revenues calculated with the industry-wide X factor in the previous data block.
A52: Outputs
D53: ='EDB data'!D$20 -> 2015/16 | E53: ='EDB data'!E$20 -> 2016/17 | F53: ='EDB data'!F$20 -> 2017/18 | G53: ='EDB data'!G$20 -> 2018/19 | H53: ='EDB data'!H$20 -> 2019/20
A54: Maximum allowable revenue before tax in revenue-date terms for industry wide X factor | D54: =D27 -> 98788.23029 | E54: =E27 -> 100725.2836 | F54: =F27 -> 102969.739 | G54: =G27 -> 105609.4297 | H54: =H27 -> 108365.493 | J54: No change from 2015 DPP financial model.
A55: Maximum allowable revenue before tax in revenue-date terms for applicable X factor | D55: =D43 -> 98788.23029 | E55: =E43 -> 100725.2836 | F55: =F43 -> 102969.739 | G55: =G43 -> 105609.4297 | H55: =H43 -> 108365.493 | J55: No change from 2015 DPP financial model.
A56: Starting price for industry-wide X factor | D56: =D27 -> 98788.23029 | J56: No change from 2015 DPP financial model.
A57: Starting price for applicable X factor | D57: =D43 -> 98788.23029 | J57: No change from 2015 DPP financial model.
A58: PV at 1 Apr 2015 of MAR before tax over the regulatory period (industry X ) | D58: =C21 -> 432008.2578 | J58: No change from 2015 DPP financial model.
A59: PV at 1 Apr 2015 of MAR before tax over the regulatory period (Applicable X) | D59: =C37 -> 432008.2578 | J59: No change from 2015 DPP financial model.
A60: ΔD | D60: =C47 -> 1.008941792 | J60: No change from 2015 DPP financial model.
A61: ANR 2016 (applicable X-factor) | D61: =C48 -> 93953.23971 | J61: No change from 2015 DPP financial model.
A64: All rows on this sheet below the thick line above have been added by the Commission. All of the sheet above
A65: the line is as it was in Wellington Electricity's financial model that formed part of its CPP application.
A68: Allowable revenue based on most recent CPI data
C69: ='EDB data'!C$20 -> 2014/15 | D69: ='EDB data'!D$20 -> 2015/16 | E69: ='EDB data'!E$20 -> 2016/17 | F69: ='EDB data'!F$20 -> 2017/18 | G69: ='EDB data'!G$20 -> 2018/19 | H69: ='EDB data'!H$20 -> 2019/20 | I69: ='EDB data'!I$20 -> 2020/21
A70: Wellington CPRG, forecast 2015 DPP | E70: =REV!E5 -> 0.004471688252 | F70: =REV!F5 -> 0.004471688252 | G70: =REV!G5 -> 0.004471688252 | H70: =REV!H5 -> 0.004471688252
A71: ∆CPI, lagged, 8 index,most recent CPI data | E71: =CPI!Z65 -> 0.004622496148 | F71: =CPI!AA65 -> 0.003323108384 | G71: =CPI!AB65 -> 0.0178343949 | H71: =CPI!AC65 -> 0.01478848561
A72: MAR2016, business-as-usual (DPP) modelling above | D72: =D57 -> 98788.23029
A73: Wellington DPP Allowable Revenue projected with most recent CPI forecast | D73: =D72 -> 98788.23029 | E73: =D73*(1+E70)*(1+E71) -> 99688.67067 | F73: =E73*(1+F70)*(1+F71) -> 100467.2049 | G73: 102716.247 | H73: 104701.3724
A75: Allowable Revenue from DPP model (projected with forecast CPI) | G75: =G55 -> 105609.4297 | H75: =H55 -> 108365.493
A76: Adjustment in allowable revenue arising from using most recent CPI data | G76: =G75-G73 -> 2893.18273 | H76: =H75-H73 -> 3664.120594
A78: Capex wash-up amount
A79: 2021 BBAR for DPP in year end terms | I79: =BBAR!K45 -> 95198.16946
A81: forecast 2014/15 value of commissioned assets | C81: 33380.77505
A82: actual 2014/15 value of commissioned assets (as disclosed in August 2017 ID) | C82: 38099.89831
A84: Use forecast or actual 2014/15 value of commissioned assets? | C84: forecast | D84: =IF(C84<>"forecast","WARNING: Outputs from this model are incorrect.This cell must be set to ""forecast.""","ok") -> ok
A85: 2014/15 value of commissioned assets used | C85: =IF(C84="forecast",C81,C82) -> 33380.77505
A87: Data table calculating 2020/21 BBAR, according to whether forecast or actual value of commissioned assets used:
D88: =I79 -> 95198.16946
C89: forecast | D89: 95198.16946
C90: actual | D90: 95455.01931
A92: Difference (actual - forecast) in 2020/21 MAR | D92: =D90-D89 -> 256.8498512
A93: Present value of difference as at 31-3-2015, discounted at WACC | D93: =D92/(1+WACC)^6 -> 169.3377141
A94: Present value of 31-3-2021 at cost of debt | D94: =D93*(1+'EDB data'!B11)^5.5 -> 234.4029995 | E94: $000
A97: Forecast values of commissioned assets - for determination schedule
A98: Assessment period ending | B98: Forecast aggregate value of BAU commissioned assets ($000) | C98: Forecast aggregate value of readiness commissioned assets ($000) | D98: Forecast aggregate value of total commissioned assets ($000)
A99: 2019-03-31 | B99: ='EDB data'!B69 -> 31196.83322 | C99: =INPUTS!D$90 -> 8319.261752 | D99: =B99+C99 -> 39516.09497
A100: 2020-03-31 | B100: ='EDB data'!B70 -> 31209.07158 | C100: =INPUTS!E$90 -> 11145.99001 | D100: =B100+C100 -> 42355.06159
A101: 2021-03-31 | B101: ='EDB data'!B71 -> 32603.01262 | C101: =INPUTS!F$90 -> 11881.76128 | D101: 44484.7739
A104: Revenue at risk from resilience completion incentive
F105: ='EDB data'!F$20 -> 2017/18 | G105: ='EDB data'!G$20 -> 2018/19 | H105: ='EDB data'!H$20 -> 2019/20
A106: Resilence expenditure | F106: =INPUTS!D90 -> 8319.261752 | G106: =INPUTS!E90 -> 11145.99001 | H106: =INPUTS!F90 -> 11881.76128
A107: Years to end of CPP regulatory period | F107: 2.5 | G107: 1.5 | H107: 0.5
A108: Present value factor | F108: =(1+WACC)^F107 -> 1.189558151 | G108: =(1+WACC)^G107 -> 1.109765978 | H108: =(1+WACC)^H107 -> 1.035326036
A109: Present value of annual resilience expendiuture at 31-3-2021 | F109: =F106*F108 -> 9896.24563 | G109: =G106*G108 -> 12369.4405 | H109: 12301.4968
A110: Present value of total resilience expendiuture at 31-3-2022 | C110: =SUM(F109:H109) -> 34567.18293
A111: Revenue at risk percentage | C111: 0.15
C112: =C110*C111 -> 5185.077439

Sheet CPI
A1: CPI change calculation | M1: There are no differences on this sheet between the 2018 model and this reconsideration model.
A2: This sheet calculates CPI change using the most recently available CPI data, as at March 2018.
A3: Columns A to S below down to Row 47 are a copy of Statistics NZ's December 2017 CPI release.
A5: Consumers price index
A6: Tradables, non-tradables, and all groups – index numbers and percentage changes(1)
A7: Base: June 2017 quarter (=1000)
C9: Tradables(2) | I9: Non-tradables(3) | O9: All groups
C10: Index | E10: Percentage change | I10: Index | K10: Percentage change | O10: Index | Q10: Percentage change
E11: From previous quarter | G11: From same quarter of previous year | K11: From previous quarter | M11: From same quarter of previous year | Q11: From previous quarter | S11: From same quarter of previous year | V11: Reserve Bank forecast % change | W11: Forecast CPI | Y11: ∆CPI, 8 index calc, lagged | Z11: ∆CPI, 2 index calc, not lagged
A12: Series ref: CPIQ | C12: SE9NS6000 | I12: SE9NS6500 | O12: SE9A
A14: Quarter
A15: 2009 | B15: Dec | C15: 999 | E15: -0.5 | G15: 1.5 | I15: 819 | K15: 0.1 | M15: 2.3 | O15: 892 | Q15: -0.2 | S15: 2 | U15: =EDATE(U16,-3) -> 2009-12-01 | W15: =O15 -> 892
A16: 2010 | B16: Mar | C16: 1000 | E16: 0.1 | G16: 2 | I16: 823 | K16: 0.5 | M16: 2.1 | O16: 895 | Q16: 0.4 | S16: 2 | U16: 2010-03-01 | W16: 895
B17: Jun | C17: 997 | E17: -0.3 | G17: 1 | I17: 828 | K17: 0.6 | M17: 2.2 | O17: 896 | Q17: 0.2 | S17: 1.7 | U17: 2010-06-01 | W17: 896
B18: Sep | C18: 1007 | E18: 0.9 | G18: 0.3 | I18: 838 | K18: 1.2 | M18: 2.5 | O18: 906 | Q18: 1.1 | S18: 1.5 | U18: 2010-09-01 | W18: 906
B19: Dec | C19: 1032 | E19: 2.5 | G19: 3.3 | I19: 857 | K19: 2.2 | M19: 4.6 | O19: 927 | Q19: 2.3 | S19: 4 | U19: 2010-12-01 | W19: 927
A20: 2011 | B20: Mar | C20: 1037 | E20: 0.5 | G20: 3.7 | I20: 866 | K20: 1.1 | M20: 5.2 | O20: 935 | Q20: 0.8 | S20: 4.5 | U20: 2011-03-01 | W20: 935
B21: Jun | C21: 1052 | E21: 1.5 | G21: 5.5 | I21: 871 | K21: 0.6 | M21: 5.2 | O21: 944 | Q21: 1 | S21: 5.3 | U21: 2011-06-01 | W21: 944
B22: Sep | C22: 1053 | E22: 0.1 | G22: 4.6 | I22: 876 | K22: 0.6 | M22: 4.5 | O22: 948 | Q22: 0.4 | S22: 4.6 | U22: 2011-09-01 | W22: 948
B23: Dec | C23: 1043 | E23: -0.9 | G23: 1.1 | I23: 878 | K23: 0.2 | M23: 2.5 | O23: 945 | Q23: -0.3 | S23: 1.8 | U23: 2011-12-01 | W23: 945
A24: 2012 | B24: Mar | C24: 1040 | E24: -0.4 | G24: 0.3 | I24: 888 | K24: 1.2 | M24: 2.5 | O24: 949 | Q24: 0.5 | S24: 1.6 | U24: 2012-03-01 | W24: 949
B25: Jun | C25: 1041 | E25: 0.1 | G25: -1.1 | I25: 892 | K25: 0.5 | M25: 2.4 | O25: 953 | Q25: 0.3 | S25: 1 | U25: 2012-06-01 | W25: 953
B26: Sep | C26: 1041 | E26: 0 | G26: -1.2 | I26: 897 | K26: 0.5 | M26: 2.3 | O26: 955 | Q26: 0.3 | S26: 0.8 | U26: 2012-09-01 | W26: 955
B27: Dec | C27: 1033 | E27: -0.7 | G27: -1 | I27: 899 | K27: 0.3 | M27: 2.5 | O27: 954 | Q27: -0.2 | S27: 0.9 | U27: 2012-12-01 | W27: 954
A28: 2013 | B28: Mar | C28: 1028 | E28: -0.5 | G28: -1.1 | I28: 909 | K28: 1.1 | M28: 2.4 | O28: 958 | Q28: 0.4 | S28: 0.9 | U28: 2013-03-01 | W28: 958 | Y28: =SUM(W19:W22)/SUM(W15:W18)-1 -> 0.04597380886
B29: Jun | C29: 1024 | E29: -0.5 | G29: -1.6 | I29: 915 | K29: 0.6 | M29: 2.5 | O29: 959 | Q29: 0.2 | S29: 0.7 | U29: 2013-06-01 | W29: 959 | Y29: 0.0408388521
B30: Sep | C30: 1036 | E30: 1.2 | G30: -0.5 | I30: 921 | K30: 0.7 | M30: 2.8 | O30: 968 | Q30: 0.9 | S30: 1.4 | U30: 2013-09-01 | W30: 968 | Y30: 0.03329694323
B31: Dec | C31: 1030 | E31: -0.5 | G31: -0.3 | I31: 926 | K31: 0.5 | M31: 2.9 | O31: 969 | Q31: 0.1 | S31: 1.6 | U31: 2013-12-01 | W31: 969 | Y31: 0.02235991379
A32: 2014 | B32: Mar | C32: 1023 | E32: -0.7 | G32: -0.6 | I32: 936 | K32: 1.1 | M32: 3 | O32: 972 | Q32: 0.3 | S32: 1.5 | U32: 2014-03-01 | W32: 972 | Y32: 0.01278636121 | Z32: =W32/W28-1 -> 0.01461377871
B33: Jun | C33: 1025 | E33: 0.2 | G33: 0.1 | I33: 940 | K33: 0.4 | M33: 2.7 | O33: 975 | Q33: 0.3 | S33: 1.6 | U33: 2014-06-01 | W33: 975 | Y33: 0.01033934252 | Z33: 0.01668404588
B34: Sep | C34: 1026 | E34: 0.1 | G34: -1 | I34: 945 | K34: 0.5 | M34: 2.5 | O34: 978 | Q34: 0.3 | S34: 1 | U34: 2014-09-01 | W34: 978 | Y34: 0.008980454305 | Z34: 0.01033057851
B35: Dec | C35: 1017 | E35: -0.8 | G35: -1.3 | I35: 948 | K35: 0.3 | M35: 2.4 | O35: 976 | Q35: -0.2 | S35: 0.8 | U35: 2014-12-01 | W35: 976 | Y35: 0.008168642951 | Z35: 0.007223942208
A36: 2015 | B36: Mar | C36: 998 | E36: -1.9 | G36: -2.4 | I36: 958 | K36: 1.2 | M36: 2.4 | O36: 975 | Q36: -0.2 | S36: 0.3 | U36: 2015-03-01 | W36: 975 | Y36: 0.009731720147 | Z36: 0.003086419753
B37: Jun | C37: 1007 | E37: 0.9 | G37: -1.8 | I37: 959 | K37: 0.1 | M37: 2.1 | O37: 979 | Q37: 0.4 | S37: 0.4 | U37: 2015-06-01 | W37: 979 | Y37: 0.01128312779 | Z37: 0.004102564103
B38: Sep | C38: 1013 | E38: 0.7 | G38: -1.2 | I38: 959 | K38: 0 | M38: 1.5 | O38: 982 | Q38: 0.3 | S38: 0.4 | U38: 2015-09-01 | W38: 982 | Y38: 0.01256544503 | Z38: 0.00408997955
B39: Dec | C39: 995 | E39: -1.8 | G39: -2.1 | I39: 964 | K39: 0.5 | M39: 1.8 | O39: 977 | Q39: -0.5 | S39: 0.1 | U39: 2015-12-01 | W39: 977 | Y39: 0.01515943544 | Z39: 0.001024590164
A40: 2016 | B40: Mar | C40: 986 | E40: -0.9 | G40: -1.2 | I40: 974 | K40: 1 | M40: 1.6 | O40: 979 | Q40: 0.2 | S40: 0.4 | U40: 2016-03-01 | W40: 979 | Y40: 0.01432664756 | Z40: 0.004102564103
B41: Jun | C41: 991 | E41: 0.6 | G41: -1.5 | I41: 977 | K41: 0.3 | M41: 1.8 | O41: 983 | Q41: 0.4 | S41: 0.4 | U41: 2016-06-01 | W41: 983 | Y41: 0.01219512195 | Z41: 0.004085801839
B42: Sep | C42: 991 | E42: 0 | G42: -2.1 | I42: 982 | K42: 0.5 | M42: 2.4 | O42: 986 | Q42: 0.3 | S42: 0.4 | U42: 2016-09-01 | W42: 986 | Y42: 0.009307135471 | Z42: 0.004073319756
B43: Dec | C43: 994 | E43: 0.3 | G43: -0.1 | I43: 988 | K43: 0.6 | M43: 2.4 | O43: 990 | Q43: 0.4 | S43: 1.3 | U43: 2016-12-01 | W43: 990 | Y43: 0.006179196704 | Z43: 0.01330603889
A44: 2017 | B44: Mar | C44: 1002 | E44: 0.8 | G44: 1.6 | I44: 998 | K44: 1 | M44: 2.5 | O44: 1000 | Q44: 1 | S44: 2.2 | U44: 2017-03-01 | W44: 1000 | Y44: 0.004622496148 | Z44: 0.02145045965
B45: Jun | C45: 1000 | E45: -0.2 | G45: 0.9 | I45: 1000 | K45: 0.2 | M45: 2.4 | O45: 1000 | Q45: 0 | S45: 1.7 | U45: 2017-06-01 | W45: 1000 | Y45: 0.003076134325 | Z45: 0.01729399797
B46: Sep | C46: 1002 | E46: 0.2 | G46: 1 | I46: 1007 | K46: 0.7 | M46: 2.6 | O46: 1005 | Q46: 0.5 | S46: 1.9 | U46: 2017-09-01 | W46: 1005 | Y46: 0.003329918033 | Z46: 0.01926977688
B47: Dec | C47: 999 | E47: -0.3 | G47: 0.5 | I47: 1012 | K47: 0.5 | M47: 2.5 | O47: 1006 | Q47: 0.1 | S47: 1.6 | U47: 2017-12-01 | W47: 1006 | Y47: 0.003326509724 | Z47: 0.01616161616
U48: 2018-03-01 | V48: 1.1 | W48: =W44*(1+V48/100) -> 1011 | Y48: 0.003323108384 | Z48: 0.011
U49: =EDATE(U48,3) -> 2018-06-01 | V49: 1.6 | W49: 1016 | Y49: 0.006388959877 | Z49: 0.016
U50: 2018-09-01 | V50: 1.6 | W50: 1021.08 | Y50: 0.0107224917 | Z50: 0.016
U51: 2018-12-01 | V51: 1.8 | W51: 1024.108 | Y51: 0.01402703392 | Z51: 0.018
U52: 2019-03-01 | V52: 1.7 | W52: 1028.187 | Y52: 0.0178343949 | Z52: 0.017
U53: 2019-06-01 | V53: 1.8 | W53: 1034.288 | Y53: 0.01853732859 | Z53: 0.018
U54: 2019-09-01 | V54: 1.8 | W54: 1039.45944 | Y54: 0.01591310937 | Z54: 0.018
U55: 2019-12-01 | V55: 1.8 | W55: 1042.541944 | Y55: 0.01559356137 | Z55: 0.018
U56: 2020-03-01 | V56: 1.8 | W56: 1046.694366 | Y56: 0.01478848561 | Z56: 0.018
U57: 2020-06-01 | V57: 1.9 | W57: 1053.939472 | Y57: 0.01525504862 | Z57: 0.019
U58: 2020-09-01 | V58: 2 | W58: 1060.248629 | Y58: 0.01675161611 | Z58: 0.02
U59: 2020-12-01 | V59: 2 | W59: 1063.392783 | Y59: 0.01725185736 | Z59: 0.02
U60: 2021-03-01 | V60: 2 | W60: 1067.628253 | Y60: 0.0177506216 | Z60: 0.02
W62: 2015/16 MAR, as calculated in the 2015 DPP financial model | Y62: 98788.23029
Y64: 2015/16 | Z64: 2016/17 | AA64: 2017/18 | AB64: 2018/19 | AC64: 2019/20 | AD64: 2020/21
W65: ∆CPI, lagged, 8 index | Y65: =Y40 -> 0.01432664756 | Z65: =Y44 -> 0.004622496148 | AA65: =Y48 -> 0.003323108384 | AB65: =Y52 -> 0.0178343949 | AC65: =Y56 -> 0.01478848561 | AD65: =Y60 -> 0.0177506216
A67: Notes
A68: 1 | B68: The information above in A6:S47 is from Table 1 of the December 2017 quarterly release of CPI from Statistics NZ.
B69: Note that some columns have been hidden.
A70: 2 | B70: The forecasts of ∆CPI in column V are RBNZ forecast data ex Feb 2018 Monetary Policy Statement, Table 1.
B71: That Table 1 included in this workbook as the sheet 'RBNZ'.

Sheet Reconcile
A1: Reconciliation of the 2021 MAR before tax
A3: This workbook can be set to calculate the same 2020/21 MAR as was calculated in the 2018 model. It does this when the 'INPUTS' sheet cells with this green fill colour have been populated by the '2018 data' scenario data, using the Scenario Manager.
A8: Scenario chosen: | B8: =INPUTS!G2 -> Reconsideration data
B9: =IF(Mode="2018 data","2018 data scenario chosen, so 'Difference' Rows below should all be nil","Reconsideration data scenario chosen, so 'Difference' Rows below show the impact of the reconsideration") -> Reconsideration data scenario chosen, so 'Difference' Rows below show the impact of the reconsideration
A11: BBAR before tax, revenue date basis | C11: 2019 | D11: 2020 | E11: 2021
A12: BBAR before tax, revenue date basis, 2018 model | C12: 103122.1138 | D12: 106046.7536 | E12: 113357.249
A13: BBAR before tax, revenue date basis, this model | C13: =OUTPUTS!D9 -> 103122.1138 | D13: =OUTPUTS!E9 -> 106046.7536 | E13: =OUTPUTS!F9 -> 95467.28521
A14: Difference | C14: =C13-C12 -> 0 | D14: =D13-D12 -> 0 | E14: =E13-E12 -> -17889.96379
A16: MAR before tax, revenue date basis | C16: 2019 | D16: 2020 | E16: 2021
A17: MAR before tax, revenue date basis, 2018 model | C17: 105205.8675 | D17: 107383.0463 | E17: 109530.7072
A18: MAR before tax, revenue date basis, this model | C18: =OUTPUTS!D13 -> 105206 | D18: =OUTPUTS!E13 -> 107383 | E18: =OUTPUTS!F13 -> 91696.52686
A19: Difference | C19: =C18-C17 -> 0.1325090574 | D19: =D18-D17 -> -0.04627967731 | E19: -17834.18034
A21: MAR after tax, revenue date basis
A22: MAR after tax, revenue date basis, 2018 model | C22: 95784.42358 | D22: 97396.57547 | E22: 98951.07976
A23: MAR after tax, revenue date basis, this model, reconsideration mode | C23: =MARx_!C23 -> 95784.55609 | D23: =MARx_!D23 -> 97396.52919 | E23: =MARx_!E23 -> 83796.47784
A24: Difference | C24: =C23-C22 -> 0.1325090574 | D24: =D23-D22 -> -0.04627967731 | E24: -15154.60193
